Payment Period,Unique Identifyer,Supplier,Account Description,Amount
Apr-2021,10953,Car-Port UK Ltd,Vehicle Hire - Long Term,"2,007.25"
Apr-2021,11058,Research & Intelligence Support Centre Ltd (RISC),ICT Training,"2,350.00"
Apr-2021,10242,Allstar Business Solutions Ltd,Vehicle Fuel,922.73
Apr-2021,10243,Allstar Business Solutions Ltd,Vehicle Fuel,"1,991.57"
Apr-2021,10245,Allstar Business Solutions Ltd,Vehicle Fuel,674.22
Apr-2021,11096,Motorola Solutions UK Ltd,Protective Clothing,"3,416.00"
Apr-2021,11208,Arrow County Supplies,Cleaning Materials,724.60
Apr-2021,11218,PSS Home Entertainment Limited,Office Equipment - Purchase,"1,180.00"
Apr-2021,11235,Antalis UK,Print Unit - Paper,503.75
Apr-2021,15914,Thompson Accident Repair Centre Ltd,Accident Damage (Below Insurance Threshold),772.46
Apr-2021,15917,Thompson Accident Repair Centre Ltd,Accident Damage (Below Insurance Threshold),"1,000.00"
Apr-2021,15920,Thompson Accident Repair Centre Ltd,Accident Damage (Below Insurance Threshold),"1,000.00"
Apr-2021,17674,REDACTED COMMERCIAL CONFIDENTIALITY,REDACTED COMMERCIAL CONFIDENTIALITY,640.93
Apr-2021,17791,Arnold Clark Automobiles Ltd,Vehicle Maintenance - Parts Purchase,762.02
Apr-2021,17797,Arnold Clark Automobiles Ltd,Vehicle Maintenance - Parts Purchase,717.24
Apr-2021,11085,Greater Manchester Combined Authority,Other Third Party Payments,"2,701.25"
Apr-2021,10408,Frame Swift and Partners LLP,Police Dogs - Vets Fees,"1,759.14"
Apr-2021,10488,FMG Support (RRRM) Ltd,Vehicle Recovery Costs,"1,579.00"
Apr-2021,10914,Border Group Ltd,Temporary Toilet Units / Washing Facilities,"2,270.00"
Apr-2021,11008,Thomas Graham and Sons Limited,Operational Equipment - Other,725.75
Apr-2021,11063,MC Products UK Ltd,Police Dogs - Other Maintenance,759.60
Apr-2021,11173,REDACTED COMMERCIAL CONFIDENTIALITY,REDACTED COMMERCIAL CONFIDENTIALITY,"1,050.00"
Apr-2021,11198,Viking Arms Ltd,Firearms Equipment,"2,533.00"
Apr-2021,11214,Tranam Limited,Protective Clothing,"1,318.93"
Apr-2021,15506,Ciceley Commercials,Vehicle Maintenance - Parts Purchase,931.95
Apr-2021,16344,REDACTED COMMERCIAL CONFIDENTIALITY,REDACTED COMMERCIAL CONFIDENTIALITY,570.00
Apr-2021,17289,Woodway Engineering Ltd,Vehicle Adaptations - Capital,701.00
Apr-2021,17290,Woodway Engineering Ltd,Vehicle Adaptations - Capital,"1,402.00"
Apr-2021,18240,Long Lane Garage,Accident Damage (Below Insurance Threshold),550.48
Apr-2021,18463,REDACTED COMMERCIAL CONFIDENTIALITY,REDACTED COMMERCIAL CONFIDENTIALITY,"1,131.67"
Apr-2021,18596,Volkswagen Group UK Ltd,Vehicle Maintenance - Parts Purchase,522.08
Apr-2021,18598,Volkswagen Group UK Ltd,Accident Damage (Below Insurance Threshold),791.61
Apr-2021,18603,Volkswagen Group UK Ltd,Vehicle Maintenance - Parts Purchase,625.03
Apr-2021,18605,Volkswagen Group UK Ltd,Vehicle Maintenance - Parts Purchase,620.08
Apr-2021,11083,Warrington Borough Council,Council Tax,"1,919.78"
Apr-2021,11599,Reed Rains,Rent,750.00
Apr-2021,12582,Police and Crime Commissioner for Leicestershire,Other Collaboration Payments,"1,800.00"
Apr-2021,13467,CPOSA,Subscriptions,"2,650.00"
Apr-2021,13616,CPOSA,Subscriptions,"2,650.00"
Apr-2021,13832,CPOSA,Subscriptions,"2,650.00"
Apr-2021,14382,Cumbria County Council,Other Collaboration Payments,"3,623.00"
Apr-2021,18170,Police and Crime Commissioner for Durham Constabulary,Other Collaboration Payments,"25,311.67"
Apr-2021,10494,Newsquest Media Group,Non-Staff Advertising,"2,449.98"
Apr-2021,11145,Professional Development Group T/A Government Events,Other Support Function Training,"1,180.00"
Apr-2021,11207,Newsquest Media Group,Non-Staff Advertising,888.75
Apr-2021,10335,Capita Translation and Interpreting (Applied Language Solutions Ltd),Interpreters Fees - Telephone,"2,435.11"
Apr-2021,10336,Capita Translation and Interpreting (Applied Language Solutions Ltd),Interpreters Fees - Translation (Written),"1,262.72"
Apr-2021,10416,REDACTED COMMERCIAL CONFIDENTIALITY,REDACTED COMMERCIAL CONFIDENTIALITY,526.08
Apr-2021,10459,Child Action Northwest,Detained Persons - Appropriate Adult Services,"7,560.42"
Apr-2021,10982,REDACTED COMMERCIAL CONFIDENTIALITY,REDACTED COMMERCIAL CONFIDENTIALITY,654.15
Apr-2021,10999,REDACTED COMMERCIAL CONFIDENTIALITY,REDACTED COMMERCIAL CONFIDENTIALITY,684.98
Apr-2021,11241,REDACTED COMMERCIAL CONFIDENTIALITY,REDACTED COMMERCIAL CONFIDENTIALITY,"1,500.00"
Apr-2021,11291,Cumbria Mechanical and Plumbing Ltd,Other Operational Expenses,582.00
Apr-2021,11318,REDACTED COMMERCIAL CONFIDENTIALITY,REDACTED COMMERCIAL CONFIDENTIALITY,"3,640.00"
Apr-2021,11319,REDACTED COMMERCIAL CONFIDENTIALITY,REDACTED COMMERCIAL CONFIDENTIALITY,"1,400.00"
Apr-2021,17326,REDACTED COMMERCIAL CONFIDENTIALITY,REDACTED COMMERCIAL CONFIDENTIALITY,887.84
Apr-2021,18415,REDACTED COMMERCIAL CONFIDENTIALITY,REDACTED COMMERCIAL CONFIDENTIALITY,665.51
Apr-2021,18655,Comensura Ltd,Agency Staff,955.34
Apr-2021,18661,Comensura Ltd,Agency Staff,955.34
Apr-2021,18670,Comensura Ltd,Agency Staff,"1,910.68"
Apr-2021,18677,Comensura Ltd,Agency Staff,955.34
Apr-2021,18657,Comensura Ltd,Agency Staff,749.63
Apr-2021,18663,Comensura Ltd,Agency Staff,749.62
Apr-2021,18673,Comensura Ltd,Agency Staff,931.98
Apr-2021,18679,Comensura Ltd,Agency Staff,633.14
Apr-2021,11158,Solon Security Limited,Crime Prevention - Labour Costs / Fitting,"2,202.58"
Apr-2021,11159,Solon Security Limited,Crime Prevention - Labour Costs / Fitting,959.13
Apr-2021,11160,Solon Security Limited,Crime Prevention - Labour Costs / Fitting,577.80
Apr-2021,11161,Solon Security Limited,Crime Prevention - Labour Costs / Fitting,"1,385.25"
Apr-2021,11090,Bidfood,Detained Persons - Meals / Refreshments,650.86
Apr-2021,18242,Long Lane Garage,Accident Damage (Below Insurance Threshold),632.54
Apr-2021,18244,Long Lane Garage,Accident Damage (Below Insurance Threshold),714.75
Apr-2021,10167,Link Treasury Services Ltd,Consultants Fees - Finance,"7,000.00"
Apr-2021,10175,Grant Thornton UK LLP,External Audit Fee,"2,887.50"
Apr-2021,11059,PSTAX,Consultants Fees - Finance,"2,065.00"
Apr-2021,10502,Tony Whittle QPM,CID Training,"1,000.00"
Apr-2021,11332,REDACTED COMMERCIAL CONFIDENTIALITY,REDACTED COMMERCIAL CONFIDENTIALITY,"32,348.86"
Apr-2021,18674,Comensura Ltd,Agency Staff,867.56
Apr-2021,18680,Comensura Ltd,Agency Staff,603.52
Apr-2021,10010,Allstar Business Solutions Ltd,Vehicle Fuel,"2,080.11"
Apr-2021,10104,Ulverston Properties Limited,Estates Leases,820.83
Apr-2021,10115,Allstar Business Solutions Ltd,Vehicle Fuel,807.04
Apr-2021,10116,Allstar Business Solutions Ltd,Vehicle Fuel,"45,458.38"
Apr-2021,10134,System Hydraulics Limited,Planned Servicing General Maintenance,"1,063.00"
Apr-2021,10199,S Nicholson Grounds Maintenance,Grounds Maintenance - Contract,700.00
Apr-2021,10212,FMG Support (RRRM) Ltd,Police Vehicle Recovery & Transport,"2,136.00"
Apr-2021,10264,Volvo Car UK Ltd,Vehicle Purchases - Capital,"48,086.19"
Apr-2021,10265,Volvo Car UK Ltd,Vehicle Purchases - Capital,"2,225.82"
Apr-2021,10287,Volvo Car UK Ltd,Vehicle Purchases - Capital,"44,332.23"
Apr-2021,10288,Volvo Car UK Ltd,Vehicle Purchases - Capital,"44,332.23"
Apr-2021,10289,Volvo Car UK Ltd,Vehicle Purchases - Capital,"44,332.23"
Apr-2021,10290,Volvo Car UK Ltd,Vehicle Purchases - Capital,"44,332.23"
Apr-2021,10325,Water and Air Management Limited,Planned Servicing Water Chlorination,989.40
Apr-2021,10399,BID Group Ltd,Unplanned Building Maintenance Non Structural Maintenance,"1,422.97"
Apr-2021,10529,Burtonwood Generator & Switchgear Services Limited,Planned Servicing Generators/UPS,"1,810.00"
Apr-2021,10530,Burtonwood Generator & Switchgear Services Limited,Planned Servicing Generators/UPS,"1,833.00"
Apr-2021,10531,Burtonwood Generator & Switchgear Services Limited,Planned Servicing Generators/UPS,"1,885.50"
Apr-2021,10906,JJ Group (Contracting) Ltd,Planned Survey Electrics,"1,814.23"
Apr-2021,11027,Carigiet Cowen,Asset Valuation Fees,"8,250.00"
Apr-2021,11032,Frederick Potts and Sons Ltd,Planned Survey Alterations & Improvements,"1,257.50"
Apr-2021,11033,Frederick Potts and Sons Ltd,Unplanned Building Services External Other,"5,355.00"
Apr-2021,11034,REDACTED COMMERCIAL CONFIDENTIALITY,REDACTED COMMERCIAL CONFIDENTIALITY,"11,837.00"
Apr-2021,11049,Autodata Ltd,Workshop Equipment & Tools - Servicing / Repairs,"1,428.00"
Apr-2021,11067,British Gas Trading,Electricity,"7,334.66"
Apr-2021,11080,Cromwell Group Ltd,Vehicle Adaptations - Capital,"4,788.00"
Apr-2021,11082,Cumbria Mechanical and Plumbing Ltd,Unplanned Building Maintenance Environmental Services/Plumbing,"1,826.00"
Apr-2021,11153,Frederick Potts and Sons Ltd,North West Ambulance Service - Estates Management Collaboration,"3,980.00"
Apr-2021,11166,FTS Fire and  Security Ltd,North West Ambulance Service - Estates Management Collaboration,"1,106.00"
Apr-2021,11167,Frederick Potts and Sons Ltd,Unplanned Building Services External Other,686.06
Apr-2021,11171,Castle Water Limited,Metered Water,"12,845.31"
Apr-2021,11172,Castle Water Limited,Sewerage & Environmental Services,"12,437.13"
Apr-2021,11174,Thomas Graham and Sons Limited,Operational Equipment - Other,708.02
Apr-2021,11191,Lambert-gill Ltd,North West Ambulance Service - Estates Management Collaboration,"18,850.00"
Apr-2021,11195,Biffa Waste Services Limited,Refuse,747.84
Apr-2021,11196,Biffa Waste Services Limited,Refuse,642.00
Apr-2021,11197,Biffa Waste Services Limited,Refuse,943.50
Apr-2021,11199,Cumbria Mechanical and Plumbing Ltd,Unplanned Building Services Boiler & Heating Plant,502.35
Apr-2021,11200,W S Controls Ltd,Unplanned Building Services Boiler & Heating Plant,500.00
Apr-2021,11201,BID Group Ltd,Unplanned Building Services External Other,"1,209.00"
Apr-2021,11206,BID Group Ltd,Unplanned Building Services Security & Security Equipment Maintenance,"1,026.58"
Apr-2021,11209,JJ Group (Contracting) Ltd,Unplanned Building Maintenance Electrics,580.44
Apr-2021,11210,BID Group Ltd,North West Ambulance Service - Estates Management Collaboration,"1,166.00"
Apr-2021,11211,Pointer Ltd,Unplanned Building Services Security & Security Equipment Maintenance,525.00
Apr-2021,11212,BID Group Ltd,North West Ambulance Service - Estates Management Collaboration,998.00
Apr-2021,11225,Corona Energy,Gas,"12,512.14"
Apr-2021,11226,Corona Energy,Climate Change Levy,"2,128.92"
Apr-2021,11227,Castle Water Limited,Sewerage & Environmental Services,"15,143.94"
Apr-2021,11228,Castle Water Limited,Sewerage & Environmental Services,"4,609.02"
Apr-2021,11229,Castle Water Limited,Sewerage & Environmental Services,"5,102.85"
Apr-2021,11231,CSS Engineering Solutions Limited,Vehicle Maintenance - Parts Purchase,"2,242.50"
Apr-2021,11245,Institute of Workplace and Facilities Management,Professional Fees,"1,011.17"
Apr-2021,11249,Michael Thompson Limited,North West Ambulance Service - Estates Management Collaboration,"6,894.00"
Apr-2021,11250,Frederick Potts and Sons Ltd,North West Ambulance Service - Estates Management Collaboration,"2,102.00"
Apr-2021,11252,Lambert-gill Ltd,North West Ambulance Service - Estates Management Collaboration,"7,516.00"
Apr-2021,11253,Frederick Potts and Sons Ltd,North West Ambulance Service - Estates Management Collaboration,"5,211.00"
Apr-2021,11254,Frederick Potts and Sons Ltd,North West Ambulance Service - Estates Management Collaboration,"8,154.82"
Apr-2021,11260,Ulverston Properties Limited,Estates Leases,820.83
Apr-2021,11264,Carlisle City Council,Estates Leases,"7,750.00"
Apr-2021,11265,REDACTED COMMERCIAL CONFIDENTIALITY,REDACTED COMMERCIAL CONFIDENTIALITY,573.00
Apr-2021,11267,Copeland Borough Council,Business Rates,885.73
Apr-2021,11268,South Lakeland District Council,Business Rates,598.80
Apr-2021,11269,South Lakeland District Council,Business Rates,"3,193.60"
Apr-2021,11270,South Lakeland District Council,Business Rates,"9,106.75"
Apr-2021,11272,South Lakeland District Council,Business Rates,648.70
Apr-2021,11273,South Lakeland District Council,Business Rates,835.83
Apr-2021,11274,Dalton Community Association,Estates Leases,"1,100.00"
Apr-2021,11297,EDF Energy,Electricity,532.14
Apr-2021,11323,TV Licensing,TV Licences,"2,544.00"
Apr-2021,11334,Copeland Borough Council,Business Rates,"53,760.00"
Apr-2021,11335,South Lakeland District Council,Business Rates,"101,888.00"
Apr-2021,11418,EDF Energy,Electricity,"3,110.90"
Apr-2021,11420,EDF Energy,Electricity,"5,524.83"
Apr-2021,11423,EDF Energy,Electricity,"10,846.53"
Apr-2021,11424,EDF Energy,Climate Change Levy,708.93
Apr-2021,11425,EDF Energy,Electricity,"15,089.57"
Apr-2021,11426,EDF Energy,Climate Change Levy,"1,046.23"
Apr-2021,11427,EDF Energy,Electricity,"2,497.57"
Apr-2021,11511,Mawtec Systems Limited,Servicing Cell Call,"2,856.00"
Apr-2021,11548,Corona Energy,Gas,"11,911.76"
Apr-2021,11549,Corona Energy,Climate Change Levy,"1,952.35"
Apr-2021,11551,South Lakeland District Council,Council Tax,"2,008.74"
Apr-2021,11552,Allerdale Borough Council,Business Rates,785.93
Apr-2021,11553,Carlisle City Council,Business Rates,"5,489.00"
Apr-2021,11555,Carlisle City Council,Business Rates,"6,611.75"
Apr-2021,11556,Carlisle City Council,Business Rates,"7,360.25"
Apr-2021,11559,Eden District Council,Business Rates,"1,397.20"
Apr-2021,11560,Eden District Council,Business Rates,"1,921.15"
Apr-2021,11562,Carlisle City Council,Business Rates,536.43
Apr-2021,11566,British Gas Trading,Electricity,"3,911.90"
Apr-2021,11572,Allerdale Borough Council,Business Rates,"16,217.50"
Apr-2021,11594,Carlisle City Council,Business Rates,"17,839.25"
Apr-2021,11596,Eden District Council,Business Rates,"22,704.50"
Apr-2021,11597,Eden District Council,Business Rates,"29,952.00"
Apr-2021,11720,Eden District Council,Business Rates,"332,800.00"
Apr-2021,11721,Carlisle City Council,Business Rates,"273,920.00"
Apr-2021,11722,Barrow Borough Council,Business Rates,"171,520.00"
Apr-2021,15916,Thompson Accident Repair Centre Ltd,Accident Damage (Below Insurance Threshold),865.28
Apr-2021,17698,Post Office Counters Ltd,Vehicle Road Fund Licenses,"1,050.00"
Apr-2021,17982,Co Star,Vehicle Maintenance - Parts Purchase,979.30
Apr-2021,18517,Ian Robinson Electrical Contractors,Unplanned Building Maintenance Electrics,"4,733.00"
Apr-2021,18600,Volkswagen Group UK Ltd,Vehicle Maintenance - AdBlue (DEF),739.45
Apr-2021,10898,Shortridge Ltd,Detained Persons - Laundry,"1,159.61"
Apr-2021,10580,REDACTED COMMERCIAL CONFIDENTIALITY,REDACTED COMMERCIAL CONFIDENTIALITY,"1,119.57"
Apr-2021,10950,United Kingdom Accreditation Service,Conference & Seminar Fees,596.00
Apr-2021,17205,Key Forensic Services Ltd (Orange UK Holdings Ltd),Forensic Analysis - Serious Crime,754.00
Apr-2021,17206,Key Forensic Services Ltd (Orange UK Holdings Ltd),Forensic Analysis - Volume Crime,"1,639.00"
Apr-2021,17211,Key Forensic Services Ltd (Orange UK Holdings Ltd),Forensic Analysis - Serious Crime,946.15
Apr-2021,17215,Key Forensic Services Ltd (Orange UK Holdings Ltd),Forensic Analysis - Over Prescribed Limit,870.00
Apr-2021,17216,Key Forensic Services Ltd (Orange UK Holdings Ltd),Forensic Analysis - Over Prescribed Limit,"1,305.00"
Apr-2021,14388,REDACTED COMMERCIAL CONFIDENTIALITY,REDACTED COMMERCIAL CONFIDENTIALITY,"3,000.00"
Apr-2021,14389,REDACTED COMMERCIAL CONFIDENTIALITY,REDACTED COMMERCIAL CONFIDENTIALITY,651.72
Apr-2021,18654,Comensura Ltd,Agency Staff,"1,118.90"
Apr-2021,18660,Comensura Ltd,Agency Staff,"1,069.80"
Apr-2021,18669,Comensura Ltd,Agency Staff,975.00
Apr-2021,18676,Comensura Ltd,Agency Staff,741.00
Apr-2021,10055,EE Limited,Telephone Charges - Mobile Phones,"7,300.13"
Apr-2021,10056,EE Limited,Telephone Charges - Mobile Phones,"7,279.83"
Apr-2021,10057,EE Limited,Telephone Charges - Mobile Phones,"7,287.64"
Apr-2021,10058,EE Limited,Telephone Charges - Mobile Phones,"7,272.00"
Apr-2021,10095,Softcat PLC,Computer Software - Maintenance,"20,212.76"
Apr-2021,10211,Police Digital Service,Subscriptions,"60,000.00"
Apr-2021,10235,TalkTalk,Telephone Charges - Landlines,"2,523.75"
Apr-2021,10247,Phoenix Software Ltd,Computer Software - Maintenance,"2,419.09"
Apr-2021,10394,Sepura PLC,Radio / Airwave Equipment - Purchases,"-5,038.00"
Apr-2021,10395,Sepura PLC,Radio / Airwave Equipment - Purchases,"207,025.00"
Apr-2021,10415,NDI Recognition Systems Limited,ICT Managed Services,"15,500.00"
Apr-2021,10468,Sepura PLC,Radio / Airwave Equipment - Purchases,"1,900.00"
Apr-2021,10469,Sepura PLC,Radio / Airwave Equipment - Purchases,"1,800.00"
Apr-2021,10551,Airwave Solutions Limited (Subsidiary:- Kelvin Connect),Radio / Airwave Equipment - Maintenance,"29,420.51"
Apr-2021,11092,SCC (Specialist Computer Centre),Networks Hardware Maintenance,"1,760.20"
Apr-2021,11098,Phoenix Software Ltd,Computer Software - Maintenance,"601,189.28"
Apr-2021,11177,EE Limited,Telephone Charges - Mobile Phones,750.00
Apr-2021,11178,EE Limited,Telephone Charges - Mobile Phones,750.00
Apr-2021,11179,EE Limited,Telephone Charges - Mobile Phones,750.00
Apr-2021,11180,EE Limited,Telephone Charges - Mobile Phones,750.00
Apr-2021,11430,Capita Secure Solutions & Services,Other Miscellaneous Expenditure,"19,125.00"
Apr-2021,11431,Capita Secure Solutions & Services,Other Miscellaneous Expenditure,"9,048.00"
Apr-2021,11432,CHI UK Ltd,Computer Software - Maintenance,"1,995.00"
Apr-2021,10503,University of Wolverhampton,Further Education,"2,958.00"
Apr-2021,10504,University of Wolverhampton,Further Education,"-2,958.00"
Apr-2021,10505,University of Wolverhampton,Further Education,"2,958.00"
Apr-2021,10917,Cumbria County Council,Added Years Qtrly - LGPS,"15,965.72"
Apr-2021,10920,University of Cumbria,Other Support Function Training,550.00
Apr-2021,11295,Police and Crime Commissioner for West Yorkshire,Expert Witness Testimony / Reports,844.98
Apr-2021,11296,College of Policing (NPIA),External Assessment Centres,"5,288.79"
Apr-2021,11307,REDACTED COMMERCIAL CONFIDENTIALITY,REDACTED COMMERCIAL CONFIDENTIALITY,500.00
Apr-2021,18656,Comensura Ltd,Agency Staff,535.80
Apr-2021,18662,Comensura Ltd,Agency Staff,535.80
Apr-2021,18667,Comensura Ltd,Agency Staff,535.80
Apr-2021,18671,Comensura Ltd,Agency Staff,535.80
Apr-2021,18672,Comensura Ltd,Force Doctor Fees,"4,593.54"
Apr-2021,18678,Comensura Ltd,Agency Staff,535.80
Apr-2021,10267,West Cumbria Estates Management Limited,Cleaning Contract,981.59
Apr-2021,11109,Thomas Graham and Sons Limited,Other Cleaning & Domestic Equipment,683.64
Apr-2021,11147,Frederick Potts and Sons Ltd,Unplanned Building Services Internal Other,"5,673.75"
Apr-2021,11568,West Cumbria Estates Management Limited,Cleaning Contract,"1,118.44"
Apr-2021,10045,G4S Health Services (UK) Ltd,SARC Doctors,"19,731.65"
Apr-2021,10084,Carlisle Youth Zone,Contributions - PCC Commissioning Services,"1,443.17"
Apr-2021,10085,Time to Change (West Cumbria) Project CIC,Contributions - PCC Commissioning Services,"10,580.00"
Apr-2021,10086,Safety Net UK,SARC Counselling Services,"33,306.25"
Apr-2021,10091,Womens Community Matters,Contributions - PCC Commissioning Services,"7,923.90"
Apr-2021,10128,North Cumbria Integrated care NHS Foundation Trust (NCIC NHS FT),Cleaning Contract,743.47
Apr-2021,10129,North Cumbria Integrated care NHS Foundation Trust (NCIC NHS FT),Cleaning Contract,743.47
Apr-2021,10130,North Cumbria Integrated care NHS Foundation Trust (NCIC NHS FT),Cleaning Contract,743.47
Apr-2021,10131,North Cumbria Integrated care NHS Foundation Trust (NCIC NHS FT),Cleaning Contract,743.47
Apr-2021,10132,North Cumbria Integrated care NHS Foundation Trust (NCIC NHS FT),Cleaning Contract,743.47
Apr-2021,10136,Solway Network Youth Church,Contributions - PCC Commissioning Services,"1,415.18"
Apr-2021,10198,Spiral,Contributions - PCC Commissioning Services,"1,401.90"
Apr-2021,10262,Carlisle Key,Contributions - PCC Commissioning Services,"1,260.00"
Apr-2021,10334,Dalston Bowling Club,Contributions - PCC Commissioning Services,690.00
Apr-2021,10443,Triple A Project (All About Autism),Contributions - PCC Commissioning Services,"3,000.00"
Apr-2021,10495,Barrow Borough Council,Contributions - PCC Commissioning Services,"7,496.00"
Apr-2021,10536,Police and Crime Commissioner for Merseyside,Contributions - PCC Commissioning Services,"13,374.00"
Apr-2021,10577,REDACTED PERSONAL CONFIDENTIALITY,REDACTED PERSONAL CONFIDENTIALITY,"11,093.33"
Apr-2021,10946,REDACTED PERSONAL CONFIDENTIALITY,REDACTED PERSONAL CONFIDENTIALITY,"2,828.60"
Apr-2021,10951,Zest Cumbria cic,Contributions - PCC Commissioning Services,500.00
Apr-2021,11086,Growing Concerns Ltd,Contributions - PCC Commissioning Services,701.99
Apr-2021,11087,Growing Concerns Ltd,Contributions - PCC Commissioning Services,741.58
Apr-2021,11111,Allerdale Borough Council,Contributions - PCC Commissioning Services,"10,705.39"
Apr-2021,11219,REDACTED PERSONAL CONFIDENTIALITY,REDACTED PERSONAL CONFIDENTIALITY,"1,110.70"
Apr-2021,11220,REDACTED PERSONAL CONFIDENTIALITY,REDACTED PERSONAL CONFIDENTIALITY,800.00
Apr-2021,11221,REDACTED PERSONAL CONFIDENTIALITY,REDACTED PERSONAL CONFIDENTIALITY,"1,774.50"
Apr-2021,11222,REDACTED PERSONAL CONFIDENTIALITY,REDACTED PERSONAL CONFIDENTIALITY,"2,260.48"
Apr-2021,11243,REDACTED PERSONAL CONFIDENTIALITY,REDACTED PERSONAL CONFIDENTIALITY,"2,160.98"
Apr-2021,11258,Crimestoppers Trust,Contributions - PCC Commissioning Services,"2,000.00"
Apr-2021,12241,Restorative Solutions CIC,Contributions - PCC Commissioning Services,"2,777.78"
Apr-2021,12242,Restorative Solutions CIC,Contributions - PCC Commissioning Services,"2,777.78"
Apr-2021,10109,Grant Thornton UK LLP,External Audit Fee,"17,520.00"
Apr-2021,10952,Sancus Solutions Ltd,Other Third Party Payments,875.00
Apr-2021,11136,Crowd Technologies t/a CrowdControl HQ,Web Design & Running Costs,780.00
Apr-2021,11205,Independent Custody Visiting Association ICVA,Subscriptions,"1,000.00"
Apr-2021,11163,Allerdale Borough Council,Other Miscellaneous Expenditure,"1,538.68"
May-2021,10954,Car-Port UK Ltd,Vehicle Hire - Long Term,"2,190.00"
May-2021,12003,Chubb Fire and Security Limited,Unplanned Building Services Security & Security Equipment Maintenance,556.92
May-2021,12194,Police and Crime Commissioner for Merseyside,TITAN - North West Collaboration,"22,570.21"
May-2021,12087,Her Majesty's Courts & Tribunal Service (HMCTS),Court Fees,"5,761.00"
May-2021,10417,XPS Administration Limited T/A XPS Administration,Pension Services,"8,911.24"
May-2021,10423,XPS Administration Limited T/A XPS Administration,Pension Services,"8,911.16"
May-2021,10429,Enterprise Car Club,Vehicle Hire - Car Share Scheme,"3,720.00"
May-2021,10942,Cumbria Crystal,Presentations & Awards Ceremonies,"1,544.22"
May-2021,11069,Pitney Bowes Ltd,Postage Costs,"1,665.69"
May-2021,12008,Digital ID,Office Stationery,"3,320.00"
May-2021,12022,Cumbria County Council,Courier Services - Internal Deliveries,"2,858.55"
May-2021,12318,MHR International UK LTD,Consultants Fees - Other,"1,500.00"
May-2021,16901,Cumbria County Council,Courier Services - Internal Deliveries,"3,325.89"
May-2021,18690,Comensura Ltd,Agency Staff,504.00
May-2021,10996,EU Supply Limited,Subscriptions,"1,000.00"
May-2021,11533,Arrow County Supplies,Cleaning Materials,724.60
May-2021,12004,SBI TacPro,Protective Clothing,526.86
May-2021,12097,Arrow County Supplies,Cleaning Materials,643.60
May-2021,11148,Greater Manchester Combined Authority,CID Training,617.00
May-2021,11764,Weststone Ltd T/A Cop UK,Operational Equipment - Other,"1,284.46"
May-2021,11781,Arrow County Supplies,Cleaning Materials,"1,449.20"
May-2021,15923,Thompson Accident Repair Centre Ltd,Accident Damage (Below Insurance Threshold),"1,000.00"
May-2021,15931,Thompson Accident Repair Centre Ltd,Accident Damage (Below Insurance Threshold),"1,000.00"
May-2021,15939,Thompson Accident Repair Centre Ltd,Accident Damage (Below Insurance Threshold),"1,000.00"
May-2021,15942,Thompson Accident Repair Centre Ltd,Accident Damage (Below Insurance Threshold),"1,000.00"
May-2021,15944,Thompson Accident Repair Centre Ltd,Accident Damage (Below Insurance Threshold),703.10
May-2021,15946,Thompson Accident Repair Centre Ltd,Accident Damage (Below Insurance Threshold),873.29
May-2021,16089,Exgratia Payments,Ex-Gratia Payments,"1,050.00"
May-2021,17059,P & HM Ferguson,Vehicle Maintenance - Work Done Externally,"1,124.22"
May-2021,17677,REDACTED COMMERCIAL CONFIDENTIALITY,REDACTED COMMERCIAL CONFIDENTIALITY,528.12
May-2021,17805,Arnold Clark Automobiles Ltd,Vehicle Maintenance - Parts Purchase,788.06
May-2021,17807,Arnold Clark Automobiles Ltd,Vehicle Maintenance - Parts Purchase,573.39
May-2021,18591,ECCO Safety Group UK Ltd,Vehicle Adaptations - Capital,577.20
May-2021,11112,Bedroq TM Ltd,Other Third Party Payments,"39,389.66"
May-2021,11151,Greater Manchester Combined Authority,CID Training,617.00
May-2021,10112,College of Policing (NPIA),CID Training,"1,205.00"
May-2021,10113,College of Policing (NPIA),CID Training,"2,266.50"
May-2021,10177,National Crime Agency,CID Training,690.00
May-2021,10309,Civil Defence Supply Limited,Firearms Equipment,695.00
May-2021,10407,Frame Swift and Partners LLP,Police Dogs - Vets Fees,581.89
May-2021,10486,Thomas Graham and Sons Limited,Operational Equipment - Other,746.10
May-2021,10499,S P Services UK Ltd,First Aid Equipment / Consumables,"1,057.50"
May-2021,10728,Threlkeld Quarry Museum Limited,Other Operational Training,500.00
May-2021,10912,Magnet Forensics,Operational Equipment - Hi-Tech. Crime,"1,715.13"
May-2021,10915,Border Group Ltd,Temporary Toilet Units / Washing Facilities,850.00
May-2021,11088,College of Policing (NPIA),Other Operational Training,991.00
May-2021,11089,College of Policing (NPIA),Hotel Accommodation - Training,"1,220.00"
May-2021,11103,Viking Arms Ltd,Firearms Equipment,"10,800.00"
May-2021,11157,Scenesafe,Operational Equipment - Other,"1,300.02"
May-2021,11189,Police and Crime Commissioner for West Yorkshire,CID Training,"1,400.00"
May-2021,11215,Tranam Limited,Protective Clothing,785.41
May-2021,11242,REDACTED COMMERCIAL CONFIDENTIALITY,REDACTED COMMERCIAL CONFIDENTIALITY,"8,917.50"
May-2021,11301,Greater Manchester Combined Authority,CID Training,617.00
May-2021,11302,Royal Canin,Police Dogs - Feed,734.16
May-2021,11324,Kirkbride Eyecare,Protective Clothing,551.20
May-2021,11535,D.Tec International Ltd,Operational Equipment - Testing Kits & Consumables,"1,643.00"
May-2021,11550,United Kingdom Accreditation Service,Consultants Fees - Other,710.25
May-2021,11852,College of Policing (NPIA),CID Training,658.00
May-2021,11856,THE ATACC GROUP,Other Operational Training,"3,960.00"
May-2021,12006,Tranam Limited,Protective Clothing,785.41
May-2021,12047,Police and Crime Commissioner for Cheshire,Underwater Search,"42,458.33"
May-2021,12196,Police and Crime Commissioner for Merseyside,TITAN - North West Collaboration,"50,417.98"
May-2021,12197,Police and Crime Commissioner for Merseyside,TITAN - North West Collaboration,"46,964.30"
May-2021,12198,Police and Crime Commissioner for Merseyside,TITAN - North West Collaboration,"42,372.20"
May-2021,15933,Thompson Accident Repair Centre Ltd,Accident Damage (Below Insurance Threshold),885.43
May-2021,16222,Frame Swift and Partners LLP,Police Dogs - Vets Fees,"1,610.96"
May-2021,16669,Lloyd Motorrad,Vehicle Maintenance - Work Done Externally,808.38
May-2021,16671,Lloyd Motorrad,Vehicle Maintenance - Work Done Externally,922.20
May-2021,16675,Lloyd Motorrad,Vehicle Maintenance - Work Done Externally,509.00
May-2021,18426,REDACTED COMMERCIAL CONFIDENTIALITY,REDACTED COMMERCIAL CONFIDENTIALITY,"1,239.89"
May-2021,18428,REDACTED COMMERCIAL CONFIDENTIALITY,REDACTED COMMERCIAL CONFIDENTIALITY,"1,178.30"
May-2021,18430,REDACTED COMMERCIAL CONFIDENTIALITY,REDACTED COMMERCIAL CONFIDENTIALITY,"1,137.60"
May-2021,18779,Home Office,Firearms Equipment,"48,096.00"
May-2021,11600,Reed Rains,Rent,800.00
May-2021,17593,Mayors Office for Policing and Crime,Other Collaboration Payments,"8,096.00"
May-2021,17605,Cumbria County Council,Other Collaboration Payments,"10,000.00"
May-2021,18162,Mayors Office for Policing and Crime,National Police Chiefs Council (NPCC),"15,299.00"
May-2021,18164,Mayors Office for Policing and Crime,National Police Co-ordination Centre (NPoCC),"17,478.00"
May-2021,10054,Xerox UK Ltd,Print Unit - Digital Copier Click Charges,545.42
May-2021,11061,Cumberland and Westmorland Herald,External Advertising (Recruitment),675.00
May-2021,11641,REDACTED COMMERCIAL CONFIDENTIALITY,REDACTED COMMERCIAL CONFIDENTIALITY,540.00
May-2021,10337,Capita Translation and Interpreting (Applied Language Solutions Ltd),Interpreters Fees - Face to Face,"1,490.78"
May-2021,10338,Capita Translation and Interpreting (Applied Language Solutions Ltd),Interpreters Fees - Telephone,"1,121.14"
May-2021,10414,University of Central Lancashire,Expert Witness Testimony / Reports,500.00
May-2021,10910,Agiito Limited,Hotel Accommodation - Training,800.00
May-2021,11000,REDACTED COMMERCIAL CONFIDENTIALITY,REDACTED COMMERCIAL CONFIDENTIALITY,859.68
May-2021,11026,Police and Crime Commissioner for West Yorkshire,CID Training,"2,800.00"
May-2021,11149,Greater Manchester Combined Authority,CID Training,617.00
May-2021,11164,REDACTED COMMERCIAL CONFIDENTIALITY,REDACTED COMMERCIAL CONFIDENTIALITY,"1,080.00"
May-2021,11165,REDACTED COMMERCIAL CONFIDENTIALITY,REDACTED COMMERCIAL CONFIDENTIALITY,"1,620.00"
May-2021,12046,REDACTED COMMERCIAL CONFIDENTIALITY,REDACTED COMMERCIAL CONFIDENTIALITY,650.00
May-2021,18683,Comensura Ltd,Agency Staff,955.34
May-2021,18688,Comensura Ltd,Agency Staff,955.34
May-2021,18700,Comensura Ltd,Agency Staff,955.34
May-2021,10967,QA Ltd,CID Training,"2,056.50"
May-2021,18685,Comensura Ltd,Agency Staff,729.36
May-2021,12052,Mayors Office for Policing and Crime,Office Equipment - Purchase,"3,706.25"
May-2021,11053,PSS Home Entertainment Limited,Operational Equipment - Audio / Video Equipment,950.00
May-2021,11433,Arrow County Supplies,Cleaning Materials,"1,134.78"
May-2021,11441,Boatwork Ltd,Accident Damage (Below Insurance Excess)),754.00
May-2021,18345,Guy Perry Ltd,Vehicle Maintenance - Work Done Externally,"2,038.78"
May-2021,10039,MHR International UK LTD,Payroll Services,"15,856.50"
May-2021,10324,Gallagher Bassett,Settlement of 3rd Party Claims for damage to property / vehicles,"4,458.77"
May-2021,11131,Chartered Institute of Public Finance and Accountancy,Subscriptions,"20,000.00"
May-2021,11255,Oracle Corporation UK Limited,Other Support Function Training,"5,541.00"
May-2021,10023,SMSR Ltd,Consultants Fees - Other,840.00
May-2021,10024,SMSR Ltd,Consultants Fees - Other,870.00
May-2021,11101,J S B Print Solutions Ltd,External Printing,850.00
May-2021,11102,J S B Print Solutions Ltd,External Printing,850.00
May-2021,11563,Mayors Office for Policing and Crime,Office Equipment - Purchase,"1,546.20"
May-2021,12195,Police and Crime Commissioner for Merseyside,TITAN - North West Collaboration,"7,528.15"
May-2021,18686,Comensura Ltd,Agency Staff,697.82
May-2021,18691,Comensura Ltd,Agency Staff,622.38
May-2021,10063,Goodyear Dunlop Tyres UK Limited,Vehicle Maintenance - Tyres & Tubes,"23,759.07"
May-2021,10064,Bulloughs Cleaning Services Ltd,Cleaning Contract,"13,867.44"
May-2021,10065,Bulloughs Cleaning Services Ltd,Cleaning Contract,"4,167.26"
May-2021,10066,Bulloughs Cleaning Services Ltd,Cleaning Contract,634.03
May-2021,10068,Bulloughs Cleaning Services Ltd,Cleaning Contract,"5,877.74"
May-2021,10070,Bulloughs Cleaning Services Ltd,Cleaning Contract,"2,775.79"
May-2021,10071,Bulloughs Cleaning Services Ltd,Cleaning Contract,"4,247.98"
May-2021,10072,Bulloughs Cleaning Services Ltd,Cleaning Contract,"1,077.84"
May-2021,10073,Bulloughs Cleaning Services Ltd,Cleaning Contract,507.22
May-2021,10074,Bulloughs Cleaning Services Ltd,Cleaning Contract,634.02
May-2021,10077,Bulloughs Cleaning Services Ltd,Cleaning Contract,"2,897.94"
May-2021,10079,Bulloughs Cleaning Services Ltd,Cleaning Contract,"1,585.06"
May-2021,10270,Ian Robinson Electrical Contractors,Planned Servicing Electrics,"1,056.00"
May-2021,10475,Lantei Ltd,Planned Servicing Electrical Equipment Testing (PAT),"1,067.20"
May-2021,10919,Thomas Armstrong Construction Ltd,Unplanned Building Maintenance Internal Structures,"77,845.60"
May-2021,10921,Thomas Graham and Sons Limited,Workshop Equipment & Tools - Purchases,871.70
May-2021,10925,Ductbusters Limited,Planned Servicing HVAC System,"3,137.00"
May-2021,10927,Ductbusters Limited,Planned Servicing HVAC System,"2,759.00"
May-2021,10928,JJ Group (Contracting) Ltd,Planned Servicing Electrics,"1,385.32"
May-2021,10968,Gresham Office Furniture,Furniture - General,"18,031.60"
May-2021,10970,Gresham Office Furniture,Furniture - General,"11,148.30"
May-2021,11015,Volvo Car UK Ltd,Vehicle Purchases - Capital,"23,660.00"
May-2021,11016,Volvo Car UK Ltd,Vehicle Purchases - Capital,"23,660.00"
May-2021,11017,Volvo Car UK Ltd,Vehicle Purchases - Capital,"23,660.00"
May-2021,11018,Volvo Car UK Ltd,Vehicle Purchases - Capital,"5,418.12"
May-2021,11019,HLA Services Ltd,Planned Survey Electrics,"12,500.00"
May-2021,11031,Evac Chair International Ltd,Planned Survey Alterations & Improvements,980.00
May-2021,11192,Tranam Limited,Protective Clothing,677.08
May-2021,11230,Cumbria County Council,Planned Internal Structures,"16,409.86"
May-2021,11256,Tweddell and Slater Limited,Professional Fees,"3,241.53"
May-2021,11261,Ulverston Properties Limited,Estates Leases,820.83
May-2021,11275,Dalton Community Association,Estates Leases,"1,100.00"
May-2021,11282,Cumbria County Council,Estates Leases,"1,706.25"
May-2021,11288,Solway Plain Futures Ltd,Estates Leases,"1,898.00"
May-2021,11303,Michael Thompson Limited,North West Ambulance Service - Estates Management Collaboration,"14,090.00"
May-2021,11304,Frederick Potts and Sons Ltd,North West Ambulance Service - Estates Management Collaboration,"11,284.50"
May-2021,11306,Autoparts Garage Services,Workshop Equipment & Tools - Servicing / Repairs,"1,055.04"
May-2021,11308,Michael Thompson Limited,North West Ambulance Service - Estates Management Collaboration,570.00
May-2021,11309,Spencer Ivison Decorators Ltd,North West Ambulance Service - Estates Management Collaboration,"5,090.00"
May-2021,11315,3i Studio Ltd,Professional Fees,"4,085.00"
May-2021,11339,S Nicholson Grounds Maintenance,Grounds Maintenance - Contract,700.00
May-2021,11437,Castle Water Limited,Metered Water,"6,262.62"
May-2021,11438,Castle Water Limited,Sewerage & Environmental Services,"8,146.64"
May-2021,11439,Flogas Britain Ltd,Gas,736.35
May-2021,11509,Cumbria Mechanical and Plumbing Ltd,Unplanned Building Maintenance Environmental Services/Plumbing,"4,403.50"
May-2021,11512,Wallgate Limited,Unplanned Building Maintenance Environmental Services/Plumbing,662.68
May-2021,11515,Countrywide Grounds Maintenance Ltd,North West Ambulance Service - Estates Management Collaboration,665.00
May-2021,11598,Certas Energy Limited,Oil,"8,967.57"
May-2021,11611,Margrange Limited � In Administration,Unplanned Building Maintenance Electrics,"1,173.90"
May-2021,11642,Pioneer Foodservice,Canteen - Purchase of Food / Ingredients,"1,140.91"
May-2021,11662,Pioneer Foodservice,Canteen - Purchase of Food / Ingredients,624.04
May-2021,11663,Pioneer Foodservice,Canteen - Purchase of Food / Ingredients,607.96
May-2021,11736,Goodyear Dunlop Tyres UK Limited,Vehicle Maintenance - Tyres & Tubes,"5,748.85"
May-2021,11748,West Cumbria Estates Management Limited,PFI Occupancy Charges,"106,200.00"
May-2021,11749,West Cumbria Estates Management Limited,PFI Occupancy Charges,"106,200.00"
May-2021,11760,Walton Goodland Limited,Estates Leases,"1,750.00"
May-2021,11765,Allstar Business Solutions Ltd,Vehicle Fuel,"1,914.17"
May-2021,11785,Allstar Business Solutions Ltd,Vehicle Fuel,"2,219.56"
May-2021,11786,Allstar Business Solutions Ltd,Vehicle Fuel,"1,365.04"
May-2021,11787,Allstar Business Solutions Ltd,Vehicle Fuel,549.08
May-2021,11788,Allstar Business Solutions Ltd,Vehicle Fuel,798.18
May-2021,11789,Allstar Business Solutions Ltd,Vehicle Fuel,"1,375.90"
May-2021,11851,Allerdale Borough Council,Estates Leases,512.50
May-2021,11858,Sedbergh and District Charitable Incorporated Organisation CIO,Estates Leases,"2,400.00"
May-2021,11859,Eden District Council,Business Rates,910.00
May-2021,11861,Certas Energy Limited,Oil,"1,085.20"
May-2021,11867,Eden District Council,Business Rates,585.00
May-2021,11885,BID Group Ltd,North West Ambulance Service - Estates Management Collaboration,"1,295.00"
May-2021,11900,Certas Energy Limited,Unplanned Building Maintenance Internal Maintenance,"1,998.01"
May-2021,11902,Cumbria Mechanical and Plumbing Ltd,North West Ambulance Service - Estates Management Collaboration,945.69
May-2021,12000,Ian Robinson Electrical Contractors,North West Ambulance Service - Estates Management Collaboration,612.48
May-2021,12001,Ian Robinson Electrical Contractors,North West Ambulance Service - Estates Management Collaboration,805.92
May-2021,12002,JJ Group (Contracting) Ltd,Unplanned Building Services Electrics,656.00
May-2021,12005,Suez Recycling & Recovery UK Ltd,Refuse,"6,191.07"
May-2021,12009,Frederick Potts and Sons Ltd,Unplanned Building Services External Other,"1,953.10"
May-2021,12013,Chubb Fire and Security Limited,Purchase of Security and Alarms (inc locks),"1,209.27"
May-2021,12015,Chubb Fire and Security Limited,Purchase of Security and Alarms (inc locks),803.40
May-2021,12016,Chubb Fire and Security Limited,Purchase of Security and Alarms (inc locks),833.46
May-2021,12040,CSS Engineering Solutions Limited,Vehicle Maintenance - Parts Purchase,"1,792.50"
May-2021,12041,John Sandelands Limited,North West Ambulance Service - Estates Management Collaboration,"7,700.00"
May-2021,12043,Northern Steeplejacks Ltd,North West Ambulance Service - Estates Management Collaboration,585.00
May-2021,12053,Power Tecnique Limited,Planned Servicing Generators/UPS,"3,560.00"
May-2021,12059,Chubb Fire and Security Limited,Purchase of Security and Alarms (inc locks),"4,599.08"
May-2021,12064,Chubb Fire and Security Limited,Purchase of Security and Alarms (inc locks),710.57
May-2021,12065,Chubb Fire and Security Limited,Purchase of Security and Alarms (inc locks),731.02
May-2021,12068,Chubb Fire and Security Limited,Purchase of Security and Alarms (inc locks),"-4,599.08"
May-2021,12073,Chubb Fire and Security Limited,Purchase of Security and Alarms (inc locks),-710.57
May-2021,12074,Chubb Fire and Security Limited,Purchase of Security and Alarms (inc locks),-731.02
May-2021,12099,REDACTED COMMERCIAL CONFIDENTIALITY,REDACTED COMMERCIAL CONFIDENTIALITY,765.00
May-2021,12105,Countrywide Grounds Maintenance Ltd,North West Ambulance Service - Estates Management Collaboration,"3,850.00"
May-2021,12106,FMG Support (RRRM) Ltd,Police Vehicle Recovery & Transport,"2,362.00"
May-2021,12127,EDF Energy,Electricity,"3,163.65"
May-2021,12138,EDF Energy,Electricity,"10,550.28"
May-2021,12139,EDF Energy,Climate Change Levy,633.07
May-2021,12140,EDF Energy,Electricity,"3,005.07"
May-2021,12154,Allstar Business Solutions Ltd,Vehicle Fuel,"1,090.86"
May-2021,12155,Allstar Business Solutions Ltd,Vehicle Fuel,"61,129.10"
May-2021,12203,British Gas Trading,Electricity,"2,502.20"
May-2021,12213,BID Group Ltd,North West Ambulance Service - Estates Management Collaboration,720.25
May-2021,12214,BID Group Ltd,North West Ambulance Service - Estates Management Collaboration,"1,132.00"
May-2021,12215,BID Group Ltd,North West Ambulance Service - Estates Management Collaboration,962.00
May-2021,12216,BID Group Ltd,North West Ambulance Service - Estates Management Collaboration,"1,512.50"
May-2021,12235,EDF Energy,Electricity,"15,016.74"
May-2021,12236,EDF Energy,Climate Change Levy,913.82
May-2021,12237,Keswick Superglaze Ltd,North West Ambulance Service - Estates Management Collaboration,500.00
May-2021,12240,Cumbria Mechanical and Plumbing Ltd,Unplanned Building Services Boiler & Heating Plant,579.43
May-2021,12247,BID Group Ltd,North West Ambulance Service - Estates Management Collaboration,"2,193.00"
May-2021,12284,EDF Energy,Electricity,"5,156.30"
May-2021,17984,Co Star,Vehicle Adaptations - Capital,"3,170.00"
May-2021,10965,Mr Wilson's Tea Rooms,Subsistence - Training,778.05
May-2021,11857,Shortridge Ltd,Detained Persons - Laundry,820.84
May-2021,11881,Arrow County Supplies,Cleaning Materials,643.60
May-2021,12136,Shortridge Ltd,Detained Persons - Laundry,895.18
May-2021,15926,Thompson Accident Repair Centre Ltd,Accident Damage (Below Insurance Threshold),"1,000.00"
May-2021,15928,Thompson Accident Repair Centre Ltd,Accident Damage (Below Insurance Threshold),878.78
May-2021,17795,Arnold Clark Automobiles Ltd,Vehicle Maintenance - Parts Purchase,597.57
May-2021,10467,Police and Crime Commissioner for Merseyside,Other Collaboration Payments,"24,108.62"
May-2021,10563,Police and Crime Commissioner for Lancashire,Other Collaboration Payments,"33,425.00"
May-2021,10581,REDACTED COMMERCIAL CONFIDENTIALITY,REDACTED COMMERCIAL CONFIDENTIALITY,"2,088.75"
May-2021,10599,Orchid Cellmark Ltd,Forensic Analysis - Serious Crime,"2,176.45"
May-2021,10734,Key Forensic Services Ltd (Orange UK Holdings Ltd),Forensic Analysis - Volume Crime,661.56
May-2021,10737,Key Forensic Services Ltd (Orange UK Holdings Ltd),Forensic Analysis - Over Prescribed Limit,941.06
May-2021,10740,Key Forensic Services Ltd (Orange UK Holdings Ltd),Forensic Analysis - Volume Crime,"2,525.55"
May-2021,10741,Key Forensic Services Ltd (Orange UK Holdings Ltd),Forensic Analysis - Volume Crime,"1,057.90"
May-2021,10742,Key Forensic Services Ltd (Orange UK Holdings Ltd),Forensic Analysis - Over Prescribed Limit,"2,392.50"
May-2021,10743,Key Forensic Services Ltd (Orange UK Holdings Ltd),Forensic Analysis - Over Prescribed Limit,870.00
May-2021,10744,Key Forensic Services Ltd (Orange UK Holdings Ltd),Forensic Analysis - Over Prescribed Limit,500.25
May-2021,10747,Key Forensic Services Ltd (Orange UK Holdings Ltd),Forensic Analysis - Volume Crime,"5,102.55"
May-2021,11154,Wex Photo Video,Photographic & Imaging,542.77
May-2021,12007,The Chartered Society of Forensic Sciences,CSI Consumables,"7,700.00"
May-2021,10579,Cumbria County Council,CCC - Safeguarding Vulnerable People,"10,000.00"
May-2021,12282,Cumbria County Council,Other Third Party Payments,"1,125.00"
May-2021,18682,Comensura Ltd,Agency Staff,677.62
May-2021,18699,Comensura Ltd,Agency Staff,750.75
May-2021,10099,JML Software Solutions Ltd,Computer Hardware - Purchase,"10,866.00"
May-2021,10106,MHR International UK LTD,Computer Software - Purchase,"1,500.00"
May-2021,10178,Vodafone Limited,Networks Private Circuits,"1,776.00"
May-2021,10184,Xerox UK Ltd,Computer & Printer Consumables,"3,434.47"
May-2021,10210,Police Digital Service,Computer Software - Maintenance,"39,436.45"
May-2021,10216,Softcat PLC,Computer Software - Maintenance,"10,948.00"
May-2021,10230,Insight Direct (UK) Ltd,Networks Private Circuits,"3,753.22"
May-2021,10263,SCC (Specialist Computer Centre),ICT Disposal (Equipment),"4,833.00"
May-2021,10477,Phoenix Software Ltd,Consultants Fees - ICT,"9,360.00"
May-2021,10552,Airwave Solutions Limited (Subsidiary:- Kelvin Connect),Radio / Airwave Equipment - Maintenance,"32,285.92"
May-2021,10903,NDI Technologies Limited,Computer Software - Maintenance,"39,778.66"
May-2021,10904,NDI Technologies Limited,Computer Software - Maintenance,"2,979.00"
May-2021,10913,Magnet Forensics,Computer Software - Maintenance,"19,328.36"
May-2021,10931,Stone Computers Ltd,Computer Hardware - Purchase,"1,194.56"
May-2021,11029,Softcat PLC,Consultants Fees - ICT,"2,237.51"
May-2021,11030,Softcat PLC,Consultants Fees - ICT,"8,413.94"
May-2021,11050,Open Text UK Ltd,Computer Software - Maintenance,"2,149.30"
May-2021,11093,Computacenter UK Ltd,Networks Hardware Purchase,"7,384.48"
May-2021,11224,One Source IT Ltd,Computer Hardware - Maintenance,"1,994.21"
May-2021,11232,Microsoft Limited,Computer Software - Maintenance,"79,914.00"
May-2021,11236,One Source IT Ltd,Computer Hardware - Maintenance,"8,950.00"
May-2021,11237,Stone Computers Ltd,Computer Hardware - Purchase,697.60
May-2021,11305,Saab AB,Consultants Fees - ICT,"4,337.00"
May-2021,11331,Amazon Services UK Limited,Computer Sundry Purchases,632.80
May-2021,11412,Dell Corporation Ltd,Computer Hardware - Maintenance,"43,083.13"
May-2021,11413,Dell Corporation Ltd,Computer Hardware - Maintenance,"89,626.14"
May-2021,11414,Dell Corporation Ltd,Computer Hardware - Maintenance,"115,373.86"
May-2021,11429,BT Business Direct Ltd,Computer Sundry Purchases,"1,143.90"
May-2021,11442,SCC (Specialist Computer Centre),Computer Software - Purchase,"1,373.90"
May-2021,11522,Specialised Equipment Cleaning,Computer Hardware - Maintenance,595.00
May-2021,11723,Sepura PLC,Radio / Airwave Equipment - Purchases,"26,756.00"
May-2021,11724,Sepura PLC,Radio / Airwave Equipment - Purchases,"6,400.00"
May-2021,11725,Sepura PLC,Radio / Airwave Equipment - Purchases,"1,950.00"
May-2021,11986,Micro Systemation Ltd,Computer Software - Maintenance,"2,995.00"
May-2021,12206,Clue Computing Company Ltd,Computer Software - Maintenance,"11,115.00"
May-2021,12297,Police and Crime Commissioner for Durham Constabulary,PND Costs,"1,478.89"
May-2021,12308,MHR International UK LTD,Computer Software - Maintenance,"1,104.00"
May-2021,12315,MHR International UK LTD,Consultants Fees - ICT,"3,595.92"
May-2021,12317,MHR International UK LTD,Consultants Fees - ICT,898.98
May-2021,14250,Digital Image Booth Limited,Computer Software - Maintenance,"3,600.00"
May-2021,10722,NW RFCA,Room Hire,-927.50
May-2021,10723,NW RFCA,Room Hire,927.50
May-2021,10724,NW RFCA,Room Hire,877.50
May-2021,10936,Civil Defence Supply Limited,Training Equipment & Materials,"3,352.00"
May-2021,10948,Agiito Limited,Hotel Accommodation - Training,"1,000.00"
May-2021,10949,Agiito Limited,Hotel Accommodation - Training,950.00
May-2021,11044,Omniplex (Group) LTD,Training Equipment & Materials,"1,680.00"
May-2021,11052,PSS Home Entertainment Limited,Training Equipment & Materials,"2,687.40"
May-2021,11116,University of Central Lancashire,DHEP Training,"50,000.00"
May-2021,11316,REDACTED PERSONAL CONFIDENTIALITY,REDACTED PERSONAL CONFIDENTIALITY,500.00
May-2021,11317,REDACTED PERSONAL CONFIDENTIALITY,REDACTED PERSONAL CONFIDENTIALITY,500.00
May-2021,11405,REDACTED PERSONAL CONFIDENTIALITY,REDACTED PERSONAL CONFIDENTIALITY,"2,390.00"
May-2021,11434,REDACTED PERSONAL CONFIDENTIALITY,REDACTED PERSONAL CONFIDENTIALITY,"1,167.02"
May-2021,11554,Centric Office Solutions Limited,Furniture - General,840.00
May-2021,12096,REDACTED PERSONAL CONFIDENTIALITY,REDACTED PERSONAL CONFIDENTIALITY,"1,000.00"
May-2021,12292,REDACTED PERSONAL CONFIDENTIALITY,REDACTED PERSONAL CONFIDENTIALITY,"1,200.00"
May-2021,17799,Arnold Clark Automobiles Ltd,Vehicle Maintenance - Parts Purchase,632.82
May-2021,18684,Comensura Ltd,Agency Staff,535.80
May-2021,18689,Comensura Ltd,Agency Staff,535.80
May-2021,10938,Cromwell Group Ltd,Other Cleaning & Domestic Equipment,580.30
May-2021,11514,Frederick Potts and Sons Ltd,Planned Survey Alterations & Improvements,"7,985.61"
May-2021,12034,Frederick Potts and Sons Ltd,Minor Works,"7,635.13"
May-2021,12103,West Cumbria Estates Management Limited,Cleaning Contract,"1,125.76"
May-2021,10012,Victim Support,Contributions - PCC Commissioning Services,"14,394.92"
May-2021,10013,Victim Support,Contributions - PCC Commissioning Services,"74,509.25"
May-2021,10083,Cumbria Gateway,Contributions - PCC Commissioning Services,"10,655.00"
May-2021,10090,Cowran Training Ltd,Contributions - PCC Commissioning Services,"1,500.00"
May-2021,10092,Drop Zone Youth Project,Contributions - PCC Commissioning Services,"1,500.00"
May-2021,10093,Gateway Church (Kendal),Contributions - PCC Commissioning Services,"1,442.10"
May-2021,10126,Age UK Carlisle and Eden,Contributions - PCC Commissioning Services,"1,500.00"
May-2021,10170,Signal Film and Media,Contributions - PCC Commissioning Services,"1,500.00"
May-2021,10194,North Cumbria Integrated care NHS Foundation Trust (NCIC NHS FT),Rent,"1,400.00"
May-2021,10195,Cumbria Youth Alliance,Contributions - PCC Commissioning Services,"1,350.00"
May-2021,10312,Victim Support,Contributions - PCC Commissioning Services,"6,666.66"
May-2021,10354,Penrith Pumas WRC CIC,Contributions - PCC Commissioning Services,"1,500.00"
May-2021,10393,Carlisle MENCAP Ltd,Contributions - PCC Commissioning Services,"1,410.00"
May-2021,10396,Millom Junior Football Club,Contributions - PCC Commissioning Services,636.88
May-2021,10522,Police and Crime Commissioner for Durham Constabulary,Contributions - PCC Commissioning Services,"49,504.70"
May-2021,11055,Growing Concerns Ltd,Contributions - PCC Commissioning Services,543.29
May-2021,11186,Eden District Council,Contributions - PCC Commissioning Services,"30,000.00"
May-2021,11187,Cumbria County Council,Contributions - PCC Commissioning Services,"5,000.00"
May-2021,11595,Eden District Council,Business Rates,"4,191.60"
May-2021,11779,Womens Community Matters,Contributions - PCC Commissioning Services,"1,876.76"
May-2021,11989,North Cumbria Integrated care NHS Foundation Trust (NCIC NHS FT),Electricity,884.33
May-2021,12035,Brathay Trust,Contributions - PCC Commissioning Services,"6,091.00"
May-2021,12036,Brathay Trust,Contributions - PCC Commissioning Services,"6,091.00"
May-2021,12137,The Alcohol Education Trust,Contributions - PCC Commissioning Services,"1,500.00"
May-2021,12253,North Cumbria Integrated care NHS Foundation Trust (NCIC NHS FT),Rent,"2,800.00"
May-2021,14237,Brathay Trust,Contributions - PCC Commissioning Services,"6,728.50"
May-2021,11239,Slave Free Alliance,Other Support Function Training,750.00
May-2021,11782,Association of Police and Crime Commissioners,Subscriptions,"30,000.00"
May-2021,11995,Association of Police and Crime Commissioners,Subscriptions,"1,109.21"
May-2021,12188,Sancus Solutions Ltd,Other Third Party Payments,"1,825.00"
May-2021,11998,Carlisle City Council,Other Miscellaneous Expenditure,"3,189.61"
May-2021,12233,Barrow Borough Council,Other Miscellaneous Expenditure,"4,827.43"
Jun-2021,10955,Car-Port UK Ltd,Vehicle Hire - Long Term,"1,980.00"
Jun-2021,10751,Key Forensic Services Ltd (Orange UK Holdings Ltd),Forensic Analysis - Serious Crime,"3,186.70"
Jun-2021,11862,Enterprise Rent-a-car UK Limited,Vehicle Hire - Long Term,584.28
Jun-2021,12086,Key Forensic Services Ltd (Orange UK Holdings Ltd),Forensic Analysis - Serious Crime,"6,876.90"
Jun-2021,12350,First Forensic Solutions Ltd,Expert Witness Testimony / Reports,576.00
Jun-2021,17218,Key Forensic Services Ltd (Orange UK Holdings Ltd),Forensic Analysis - Serious Crime,951.20
Jun-2021,12088,Her Majesty's Courts & Tribunal Service (HMCTS),Court Fees,567.00
Jun-2021,10001,Pitney Bowes Ltd,Postage Costs,"5,168.89"
Jun-2021,10357,REDACTED COMMERCIAL CONFIDENTIALITY,REDACTED COMMERCIAL CONFIDENTIALITY,823.26
Jun-2021,10358,REDACTED COMMERCIAL CONFIDENTIALITY,REDACTED COMMERCIAL CONFIDENTIALITY,799.20
Jun-2021,10359,REDACTED COMMERCIAL CONFIDENTIALITY,REDACTED COMMERCIAL CONFIDENTIALITY,809.70
Jun-2021,10360,REDACTED COMMERCIAL CONFIDENTIALITY,REDACTED COMMERCIAL CONFIDENTIALITY,801.66
Jun-2021,10361,REDACTED COMMERCIAL CONFIDENTIALITY,REDACTED COMMERCIAL CONFIDENTIALITY,826.25
Jun-2021,10381,REDACTED COMMERCIAL CONFIDENTIALITY,REDACTED COMMERCIAL CONFIDENTIALITY,529.41
Jun-2021,10382,REDACTED COMMERCIAL CONFIDENTIALITY,REDACTED COMMERCIAL CONFIDENTIALITY,544.11
Jun-2021,10383,REDACTED COMMERCIAL CONFIDENTIALITY,REDACTED COMMERCIAL CONFIDENTIALITY,536.76
Jun-2021,10384,REDACTED COMMERCIAL CONFIDENTIALITY,REDACTED COMMERCIAL CONFIDENTIALITY,549.42
Jun-2021,10385,REDACTED COMMERCIAL CONFIDENTIALITY,REDACTED COMMERCIAL CONFIDENTIALITY,561.42
Jun-2021,10418,XPS Administration Limited T/A XPS Administration,Pension Services,"8,911.16"
Jun-2021,10419,XPS Administration Limited T/A XPS Administration,Pension Services,"8,911.16"
Jun-2021,10430,REDACTED COMMERCIAL CONFIDENTIALITY,REDACTED COMMERCIAL CONFIDENTIALITY,591.39
Jun-2021,10431,REDACTED COMMERCIAL CONFIDENTIALITY,REDACTED COMMERCIAL CONFIDENTIALITY,601.89
Jun-2021,10432,REDACTED COMMERCIAL CONFIDENTIALITY,REDACTED COMMERCIAL CONFIDENTIALITY,589.32
Jun-2021,10433,REDACTED COMMERCIAL CONFIDENTIALITY,REDACTED COMMERCIAL CONFIDENTIALITY,584.07
Jun-2021,10434,REDACTED COMMERCIAL CONFIDENTIALITY,REDACTED COMMERCIAL CONFIDENTIALITY,579.18
Jun-2021,11070,Pitney Bowes Ltd,Postage Costs,"3,650.66"
Jun-2021,11071,Pitney Bowes Ltd,Postage Costs,"5,160.57"
Jun-2021,11338,Kardex Systems UK Limited,Office Equipment - Maintenance & Service Costs,"2,456.80"
Jun-2021,12023,Cumbria County Council,Courier Services - Internal Deliveries,"2,729.43"
Jun-2021,12024,Cumbria County Council,Courier Services - Internal Deliveries,"3,177.72"
Jun-2021,12280,Centric Office Solutions Limited,Furniture - DSE Specialist Furniture,560.00
Jun-2021,12351,Enterprise Car Club,Vehicle Hire - Car Share Scheme,"3,720.00"
Jun-2021,12352,Enterprise Car Club,Vehicle Hire - Car Share Scheme,"3,720.00"
Jun-2021,12364,Banner Group Limited,Office Stationery,679.47
Jun-2021,12365,Clavering Stationers,Office Stationery,"1,580.00"
Jun-2021,12826,Cummins Allison Ltd,Operational Equipment - Maintenance,"1,181.00"
Jun-2021,15760,Lloyd Motors Ltd,Vehicle Maintenance - Work Done Externally,821.48
Jun-2021,16097,Collisions Refund,Copies of Photographs,867.80
Jun-2021,10932,Mehler Vario System GmbH,Protective Clothing,602.00
Jun-2021,11204,Oracle Corporation UK Limited,Other Support Function Training,"5,000.00"
Jun-2021,11337,CW Headdress Ltd,Staff Clothing & Police Uniform,"1,780.00"
Jun-2021,11780,Clavering Stationers,Office Stationery,"1,580.00"
Jun-2021,11984,Kirkbride Eyecare,Protective Clothing,577.20
Jun-2021,12311,Arrow County Supplies,Cleaning Materials,643.60
Jun-2021,12572,Needle Sports,Staff Clothing & Police Uniform,925.88
Jun-2021,12591,J & L Motorcycles,Protective Clothing,783.73
Jun-2021,12732,Arrow County Supplies,Cleaning Materials,977.20
Jun-2021,12871,Arrow County Supplies,Cleaning Materials,805.60
Jun-2021,10398,Earle International,Operational Equipment - Other,612.50
Jun-2021,11571,Truvelo (UK) Limited,Operational Equipment - Other,"1,035.00"
Jun-2021,12271,Shortridge Ltd,Detained Persons - Laundry,996.59
Jun-2021,12367,Scenesafe,Operational Equipment - Other,533.36
Jun-2021,12570,Arrow County Supplies,Cleaning Materials,"1,287.20"
Jun-2021,12892,Shortridge Ltd,Detained Persons - Laundry,916.41
Jun-2021,15952,Thompson Accident Repair Centre Ltd,Accident Damage (Below Insurance Threshold),926.01
Jun-2021,15955,Thompson Accident Repair Centre Ltd,Accident Damage (Below Insurance Threshold),"1,000.00"
Jun-2021,16091,Exgratia Payments,Ex-Gratia Payments,550.00
Jun-2021,17811,Arnold Clark Automobiles Ltd,Vehicle Maintenance - Parts Purchase,"1,269.56"
Jun-2021,12125,Avoira Limited,Operational Equipment - Audio / Video Equipment,609.95
Jun-2021,12335,Border Buildings(Jedburgh) Ltd,Rent,"1,000.00"
Jun-2021,12587,Serco Ltd,Other Operational Training,"4,800.00"
Jun-2021,12861,REDACTED COMMERCIAL CONFIDENTIALITY,REDACTED COMMERCIAL CONFIDENTIALITY,856.50
Jun-2021,10275,Ai Training Services Ltd,ICT Training,"1,370.00"
Jun-2021,10489,FMG Support (RRRM) Ltd,Vehicle Recovery Costs,"1,460.00"
Jun-2021,10566,National Crime Agency,Subscriptions,580.00
Jun-2021,10909,United Kingdom Accreditation Service,Consultants Fees - Other,"1,420.50"
Jun-2021,11010,Agiito Limited,Hotel Accommodation - Training,900.00
Jun-2021,11011,Agiito Limited,Hotel Accommodation - Training,900.00
Jun-2021,11051,Colena Ltd (Heliguy),Other Operational Training,"3,199.82"
Jun-2021,11216,Tranam Limited,Protective Clothing,-785.41
Jun-2021,11744,Corrugated Plastic Products Ltd,Firearms Equipment,"1,330.00"
Jun-2021,11777,Truvelo (UK) Limited,Operational Equipment - Other,566.00
Jun-2021,11993,S P Services UK Ltd,First Aid Equipment / Consumables,578.29
Jun-2021,12057,Agiito Limited,Hotel Accommodation - Training,576.00
Jun-2021,12147,REDACTED COMMERCIAL CONFIDENTIALITY,REDACTED COMMERCIAL CONFIDENTIALITY,"8,636.00"
Jun-2021,12150,Centric Office Solutions Limited,Furniture - General,"1,424.00"
Jun-2021,12218,REDACTED COMMERCIAL CONFIDENTIALITY,REDACTED COMMERCIAL CONFIDENTIALITY,805.00
Jun-2021,12312,MCCOLLUM CONSULTANTS LIMITED,Expert Witness Testimony / Reports,"1,536.00"
Jun-2021,12320,REDACTED COMMERCIAL CONFIDENTIALITY,REDACTED COMMERCIAL CONFIDENTIALITY,"1,225.00"
Jun-2021,12323,REDACTED COMMERCIAL CONFIDENTIALITY,REDACTED COMMERCIAL CONFIDENTIALITY,850.00
Jun-2021,12348,REDACTED COMMERCIAL CONFIDENTIALITY,REDACTED COMMERCIAL CONFIDENTIALITY,"2,826.73"
Jun-2021,12567,Ai Training Services Ltd,Other Operational Training,"2,750.00"
Jun-2021,12747,Civil Defence Supply Limited,Operational Equipment - Other,815.00
Jun-2021,12751,Cellebrite UK Limited,Other Support Function Training,"5,200.00"
Jun-2021,12774,Royal Canin,Police Dogs - Feed,807.62
Jun-2021,12837,Arco Limited,Firearms Equipment,695.20
Jun-2021,13458,REDACTED COMMERCIAL CONFIDENTIALITY,REDACTED COMMERCIAL CONFIDENTIALITY,864.00
Jun-2021,14829,Corrugated Plastic Products Ltd,Firearms Equipment,"2,660.00"
Jun-2021,15460,National Windscreens,Accident Damage (Below Insurance Threshold),597.07
Jun-2021,15508,Ciceley Commercials,Vehicle Maintenance - Parts Purchase,517.21
Jun-2021,15948,Thompson Accident Repair Centre Ltd,Accident Damage (Below Insurance Threshold),559.48
Jun-2021,15950,Thompson Accident Repair Centre Ltd,Vehicle Misuse & Neglect,932.13
Jun-2021,16346,REDACTED COMMERCIAL CONFIDENTIALITY,REDACTED COMMERCIAL CONFIDENTIALITY,770.00
Jun-2021,16348,REDACTED COMMERCIAL CONFIDENTIALITY,REDACTED COMMERCIAL CONFIDENTIALITY,525.00
Jun-2021,17330,M J Telford Carlisle Ltd,Vehicle Maintenance - Parts Purchase,883.38
Jun-2021,18609,Volkswagen Group UK Ltd,Vehicle Maintenance - Parts Purchase,823.09
Jun-2021,11601,Reed Rains,Rent,800.00
Jun-2021,13958,CPOSA,Subscriptions,"2,650.00"
Jun-2021,11247,Agiito Limited,Hotel Accommodation - Training,595.76
Jun-2021,12752,Police and Crime Commissioner for Lancashire,Other Collaboration Payments,"1,914.70"
Jun-2021,17090,Police and Crime Commissioner for Cheshire,Other Collaboration Payments,"5,999.18"
Jun-2021,17311,Carlisle City Council,Other Collaboration Payments,"6,000.00"
Jun-2021,17473,Police and Crime Commissioner for Merseyside,Grants & Donations,"7,251.57"
Jun-2021,17613,Cumbria County Council,Other Collaboration Payments,"10,000.00"
Jun-2021,18772,Police and Crime Commissioner for Hampshire Constabulary,Other Third Party Payments,"1,817.97"
Jun-2021,12058,REDACTED COMMERCIAL CONFIDENTIALITY,REDACTED COMMERCIAL CONFIDENTIALITY,"14,137.78"
Jun-2021,10907,Access Intelligence Media and Communications Limited,Non-Staff Advertising,"3,375.00"
Jun-2021,11176,Harlow Printing Limited,External Printing,"1,189.50"
Jun-2021,11321,NLA Media Access Limited,Subscriptions,"5,642.00"
Jun-2021,11322,NLA Media Access Limited,Subscriptions,564.20
Jun-2021,11411,Harlow Printing Limited,External Printing,"1,100.00"
Jun-2021,11735,REDACTED COMMERCIAL CONFIDENTIALITY,REDACTED COMMERCIAL CONFIDENTIALITY,"2,999.70"
Jun-2021,12187,H and H Reed's Printers Ltd,External Printing,"1,643.00"
Jun-2021,12745,M Training & Consultancy Ltd,Other Support Function Training,510.00
Jun-2021,10180,College of Policing (NPIA),CID Training,919.00
Jun-2021,10274,J P French Associates Limited,Expert Witness Testimony / Reports,"1,400.00"
Jun-2021,10460,Child Action Northwest,Detained Persons - Appropriate Adult Services,"6,349.70"
Jun-2021,10461,Child Action Northwest,Detained Persons - Appropriate Adult Services,"7,138.87"
Jun-2021,10973,REDACTED COMMERCIAL CONFIDENTIALITY,REDACTED COMMERCIAL CONFIDENTIALITY,816.87
Jun-2021,10983,REDACTED COMMERCIAL CONFIDENTIALITY,REDACTED COMMERCIAL CONFIDENTIALITY,665.76
Jun-2021,10991,REDACTED COMMERCIAL CONFIDENTIALITY,REDACTED COMMERCIAL CONFIDENTIALITY,517.56
Jun-2021,10992,REDACTED COMMERCIAL CONFIDENTIALITY,REDACTED COMMERCIAL CONFIDENTIALITY,517.56
Jun-2021,10993,REDACTED COMMERCIAL CONFIDENTIALITY,REDACTED COMMERCIAL CONFIDENTIALITY,635.00
Jun-2021,11203,REDACTED COMMERCIAL CONFIDENTIALITY,REDACTED COMMERCIAL CONFIDENTIALITY,"2,057.27"
Jun-2021,12627,REDACTED COMMERCIAL CONFIDENTIALITY,REDACTED COMMERCIAL CONFIDENTIALITY,"2,826.73"
Jun-2021,12630,Comensura Ltd,Agency Staff,955.34
Jun-2021,12766,REDACTED COMMERCIAL CONFIDENTIALITY,REDACTED COMMERCIAL CONFIDENTIALITY,680.00
Jun-2021,12768,REDACTED COMMERCIAL CONFIDENTIALITY,REDACTED COMMERCIAL CONFIDENTIALITY,680.00
Jun-2021,18694,Comensura Ltd,Agency Staff,955.34
Jun-2021,18704,Comensura Ltd,Agency Staff,955.34
Jun-2021,18710,Comensura Ltd,Agency Staff,955.34
Jun-2021,18717,Comensura Ltd,Agency Staff,968.25
Jun-2021,12626,Police and Crime Commissioner for Hampshire Constabulary,Subscriptions,"3,786.58"
Jun-2021,10449,Remedi Restorative Services,Other Third Party Payments,"7,500.00"
Jun-2021,11057,Spanset Ltd,Operational Equipment - Other,"1,836.48"
Jun-2021,11546,City Electrical Factors Ltd,Crime Prevention - Labour Costs / Fitting,"1,683.00"
Jun-2021,12287,Edmundson Electrical Limited,Crime Prevention - Labour Costs / Fitting,964.03
Jun-2021,12565,Edmundson Electrical Limited,Crime Prevention - Labour Costs / Fitting,"1,928.01"
Jun-2021,12566,REDACTED COMMERCIAL CONFIDENTIALITY,REDACTED COMMERCIAL CONFIDENTIALITY,570.00
Jun-2021,10578,Peter Fulton Training Associates,Other Operational Training,"2,870.00"
Jun-2021,11728,Enterprise Rent-a-car UK Limited,Vehicle Hire - Long Term,633.84
Jun-2021,12600,Axon Public Safety UK Limited,Operational Equipment - Audio / Video Equipment,"8,020.00"
Jun-2021,12149,Centric Office Solutions Limited,Furniture - General,712.00
Jun-2021,12272,Arrow County Supplies,Cleaning Materials,643.60
Jun-2021,12623,Arrow County Supplies,Cleaning Materials,965.40
Jun-2021,12753,Bidfood,Detained Persons - Meals / Refreshments,544.11
Jun-2021,16095,Exgratia Payments,Ex-Gratia Payments,785.00
Jun-2021,18246,Long Lane Garage,Accident Damage (Below Insurance Threshold),731.13
Jun-2021,18347,Guy Perry Ltd,Vehicle Maintenance - Parts Purchase,745.75
Jun-2021,18349,Guy Perry Ltd,Vehicle Maintenance - Parts Purchase,523.96
Jun-2021,10237,XPS Administration Limited T/A XPS Administration,Pension Services,"8,911.17"
Jun-2021,10283,XPS Administration Limited T/A XPS Administration,Consultants Fees - Finance,"1,500.00"
Jun-2021,10293,XPS Administration Limited T/A XPS Administration,Consultants Fees - Finance,"1,000.00"
Jun-2021,11006,Cumbria County Council,Consultants Fees - Finance,500.00
Jun-2021,11007,Cumbria County Council,Consultants Fees - Finance,500.00
Jun-2021,12338,Gallagher Bassett,Settlement of 3rd Party Claims for damage to property / vehicles,"5,688.84"
Jun-2021,12339,Gallagher Bassett,Settlement of 3rd Party Claims for damage to property / vehicles,"5,728.30"
Jun-2021,12749,The Copyright Licensing Agency Ltd,Subscriptions,"1,918.84"
Jun-2021,10025,SMSR Ltd,Consultants Fees - Other,840.00
Jun-2021,10899,Treble 5 Treble 1 Ltd,Crimestoppers,"3,485.00"
Jun-2021,12228,Harlow Printing Limited,Office Stationery,"1,193.00"
Jun-2021,18780,Home Office,Subscriptions,"32,209.35"
Jun-2021,18781,Home Office,Communication Auto Services - OS,"20,269.50"
Jun-2021,12711,Comensura Ltd,Agency Staff,716.68
Jun-2021,18697,Comensura Ltd,Agency Staff,678.96
Jun-2021,18707,Comensura Ltd,Agency Staff,641.24
Jun-2021,18719,Comensura Ltd,Agency Staff,565.80
Jun-2021,10190,Pioneer Foodservice,Canteen - Purchase of Food / Ingredients,877.17
Jun-2021,10192,Pioneer Foodservice,Canteen - Purchase of Food / Ingredients,"1,136.82"
Jun-2021,10273,Ian Robinson Electrical Contractors,Unplanned Building Maintenance Electrics,"1,285.00"
Jun-2021,10333,Graeme Howe Fencing Ltd,Planned Survey External Maintenance,"2,530.00"
Jun-2021,10400,BID Group Ltd,Unplanned Building Maintenance Non Structural Maintenance,970.84
Jun-2021,10401,BID Group Ltd,Unplanned Building Maintenance Non Structural Maintenance,-970.84
Jun-2021,10476,Lantei Ltd,Planned Servicing Electrical Equipment Testing (PAT),"2,263.20"
Jun-2021,10574,Power Tecnique Limited,Planned Survey Electrics,"12,815.00"
Jun-2021,10575,Power Tecnique Limited,Planned Survey Electrics,"42,025.00"
Jun-2021,10721,Volkswagen Group UK Ltd,Vehicle Purchases - Capital,"27,534.31"
Jun-2021,10726,Chubb Fire and Security Limited,Unplanned Building Maintenance Electrics,"1,210.00"
Jun-2021,10727,Chubb Fire and Security Limited,Planned Survey Electrics,595.15
Jun-2021,10918,Nisbets,Canteen - Equipment and Utensils,524.99
Jun-2021,10926,Ductbusters Limited,Planned Servicing HVAC System,"2,705.00"
Jun-2021,10969,Gresham Office Furniture,Furniture - General,"1,717.50"
Jun-2021,11014,Frederick Potts and Sons Ltd,Unplanned Building Maintenance External Maintenance,"2,495.00"
Jun-2021,11035,Power Tecnique Limited,Unplanned Building Maintenance Electrics,545.00
Jun-2021,11036,Power Tecnique Limited,Unplanned Building Maintenance Electrics,"1,633.00"
Jun-2021,11062,Frederick Potts and Sons Ltd,Planned Survey Safety Works,535.00
Jun-2021,11262,Ulverston Properties Limited,Estates Leases,820.83
Jun-2021,11350,S Nicholson Grounds Maintenance,Grounds Maintenance - Contract,700.00
Jun-2021,11463,Pointer Ltd,Planned Servicing Security & Security Equipment Maintenance,"4,840.00"
Jun-2021,11510,Cumbria Mechanical and Plumbing Ltd,Unplanned Building Maintenance Environmental Services/Plumbing,"2,344.80"
Jun-2021,11532,Chubb Fire and Security Limited,Purchase of Security and Alarms (inc locks),700.00
Jun-2021,11561,Eden District Council,Business Rates,"6,861.25"
Jun-2021,11573,Rijo 42 Ingredients Ltd,Canteen - Hot Drink Machines,618.42
Jun-2021,11574,Rijo 42 Ingredients Ltd,Canteen - Hot Drink Machines,936.36
Jun-2021,11591,Bulloughs Cleaning Services Ltd,Window Cleaning,524.91
Jun-2021,11647,Pioneer Foodservice,Canteen - Purchase of Food / Ingredients,504.80
Jun-2021,11653,Pioneer Foodservice,Canteen - Purchase of Food / Ingredients,"1,130.87"
Jun-2021,11664,Pioneer Foodservice,Canteen - Purchase of Food / Ingredients,594.07
Jun-2021,11665,Pioneer Foodservice,Canteen - Purchase of Food / Ingredients,766.76
Jun-2021,11666,Pioneer Foodservice,Canteen - Purchase of Food / Ingredients,691.52
Jun-2021,11667,Pioneer Foodservice,Canteen - Purchase of Food / Ingredients,532.81
Jun-2021,11668,Pioneer Foodservice,Canteen - Purchase of Food / Ingredients,650.75
Jun-2021,11737,Goodyear Dunlop Tyres UK Limited,Vehicle Maintenance - Tyres & Tubes,"11,022.49"
Jun-2021,11750,West Cumbria Estates Management Limited,PFI Occupancy Charges,"106,200.00"
Jun-2021,11761,Walton Goodland Limited,Estates Leases,"1,750.00"
Jun-2021,11766,Allstar Business Solutions Ltd,Vehicle Fuel,"1,611.88"
Jun-2021,11790,Allstar Business Solutions Ltd,Vehicle Fuel,"1,398.66"
Jun-2021,11791,Allstar Business Solutions Ltd,Vehicle Fuel,"2,888.14"
Jun-2021,11792,Allstar Business Solutions Ltd,Vehicle Fuel,759.34
Jun-2021,11793,Allstar Business Solutions Ltd,Vehicle Fuel,"1,682.74"
Jun-2021,11794,Allstar Business Solutions Ltd,Vehicle Fuel,"1,484.85"
Jun-2021,11886,Burtonwood Generator & Switchgear Services Limited,Unplanned Building Maintenance Electrics,"1,606.36"
Jun-2021,11887,FTS Fire and  Security Ltd,Purchase of Fire Extinguishers,550.80
Jun-2021,11951,Biffa Waste Services Limited,Refuse,642.00
Jun-2021,11953,Biffa Waste Services Limited,Refuse,728.16
Jun-2021,11999,Carlisle Refrigeration Limited,Unplanned Building Maintenance Internal Maintenance,726.44
Jun-2021,12020,Cumbria Mechanical and Plumbing Ltd,Unplanned Building Maintenance Environmental Services/Plumbing,"2,933.56"
Jun-2021,12039,C A E S,Vehicle Adaptations - Capital,900.53
Jun-2021,12054,Power Tecnique Limited,Planned Servicing Generators/UPS,"1,780.00"
Jun-2021,12055,Power Tecnique Limited,Planned Servicing Generators/UPS,"2,225.00"
Jun-2021,12077,Chubb Fire and Security Limited,Purchase of Security and Alarms (inc locks),"4,599.08"
Jun-2021,12082,Chubb Fire and Security Limited,Purchase of Security and Alarms (inc locks),710.57
Jun-2021,12083,Chubb Fire and Security Limited,Purchase of Security and Alarms (inc locks),731.02
Jun-2021,12102,JJ Group (Contracting) Ltd,Planned Survey Electrics,"6,420.00"
Jun-2021,12104,Bulloughs Cleaning Services Ltd,Cleaning Contract,742.50
Jun-2021,12107,FMG Support (RRRM) Ltd,Police Vehicle Recovery & Transport,"1,308.00"
Jun-2021,12108,FMG Support (RRRM) Ltd,Police Vehicle Recovery & Transport,"2,731.00"
Jun-2021,12126,Bell Park Kerridge Solicitors (BPK),Legal Fees (Property Sale),"1,879.50"
Jun-2021,12156,Allstar Business Solutions Ltd,Vehicle Fuel,755.77
Jun-2021,12157,Allstar Business Solutions Ltd,Vehicle Fuel,"62,879.39"
Jun-2021,12210,Chubb Fire and Security Limited,Purchase of Security and Alarms (inc locks),891.92
Jun-2021,12227,Carlisle Refrigeration Limited,Canteen - Equipment and Utensils,847.00
Jun-2021,12239,Spencer Ivison Decorators Ltd,Unplanned Building Services Internal Other,"1,170.00"
Jun-2021,12267,Frederick Potts and Sons Ltd,Unplanned Building Services Internal Other,580.26
Jun-2021,12274,Castle Water Limited,Metered Water,"5,436.09"
Jun-2021,12275,Castle Water Limited,Sewerage & Environmental Services,"5,713.82"
Jun-2021,12281,Certas Energy Limited,Oil,"1,174.41"
Jun-2021,12288,BID Group Ltd,North West Ambulance Service - Estates Management Collaboration,800.00
Jun-2021,12289,A W Blake Ltd,Planned Survey External Maintenance,"3,400.00"
Jun-2021,12290,BID Group Ltd,North West Ambulance Service - Estates Management Collaboration,994.00
Jun-2021,12291,BID Group Ltd,North West Ambulance Service - Estates Management Collaboration,"5,240.00"
Jun-2021,12309,Pod Point Limited,Planned Survey Electrics,"2,500.00"
Jun-2021,12310,Thomas Graham and Sons Limited,Vehicle Adaptations - Capital,"6,133.50"
Jun-2021,12319,Certas Energy Limited,Oil,"8,788.38"
Jun-2021,12322,CSS Engineering Solutions Limited,Vehicle Maintenance - Parts Purchase,"1,882.50"
Jun-2021,12330,BID Group Ltd,North West Ambulance Service - Estates Management Collaboration,"1,740.00"
Jun-2021,12583,National Crime Agency,Estates Leases,"20,000.00"
Jun-2021,12584,EDF Energy,Electricity,"15,197.35"
Jun-2021,12585,EDF Energy,Climate Change Levy,913.82
Jun-2021,12589,Cumbria Mechanical and Plumbing Ltd,Unplanned Building Services Boiler & Heating Plant,524.65
Jun-2021,12593,EDF Energy,Electricity,"5,291.97"
Jun-2021,12595,EDF Energy,Electricity,"2,290.60"
Jun-2021,12597,EDF Energy,Electricity,"3,143.37"
Jun-2021,12604,Corona Energy,Gas,"1,202.20"
Jun-2021,12607,REDACTED COMMERCIAL CONFIDENTIALITY,REDACTED COMMERCIAL CONFIDENTIALITY,711.00
Jun-2021,12617,EDF Energy,Electricity,"10,820.44"
Jun-2021,12618,EDF Energy,Climate Change Levy,648.68
Jun-2021,12619,EDF Energy,Electricity,"14,686.18"
Jun-2021,12620,EDF Energy,Climate Change Levy,890.86
Jun-2021,12621,British Gas Trading,Electricity,940.05
Jun-2021,12667,EDF Energy,Electricity,531.39
Jun-2021,12742,FTS Fire and  Security Ltd,North West Ambulance Service - Estates Management Collaboration,"2,676.00"
Jun-2021,12743,FTS Fire and  Security Ltd,North West Ambulance Service - Estates Management Collaboration,"1,420.00"
Jun-2021,12785,BID Group Ltd,Unplanned Building Maintenance Non Structural Maintenance,970.84
Jun-2021,12867,Flogas Britain Ltd,Gas,792.94
Jun-2021,12882,BID Group Ltd,North West Ambulance Service - Estates Management Collaboration,735.00
Jun-2021,12894,Andidrain Ltd,North West Ambulance Service - Estates Management Collaboration,"1,050.00"
Jun-2021,12895,BID Group Ltd,North West Ambulance Service - Estates Management Collaboration,553.50
Jun-2021,15791,Nisbets,Canteen - Equipment and Utensils,-524.99
Jun-2021,15954,Thompson Accident Repair Centre Ltd,Accident Damage (Below Insurance Threshold),"2,749.67"
Jun-2021,11132,Agiito Limited,Hotel Accommodation - Training,"1,004.77"
Jun-2021,11134,Agiito Limited,Hotel Accommodation - Training,602.86
Jun-2021,12234,PSS Home Entertainment Limited,Operational Equipment - Audio / Video Equipment,899.00
Jun-2021,12266,Arrow County Supplies,Cleaning Materials,805.60
Jun-2021,12349,Charles Fellows Supplies Limited,Detained Persons - Clothing,544.16
Jun-2021,12568,Charles Fellows Supplies Limited,Detained Persons - Clothing,"1,050.00"
Jun-2021,12784,Shortridge Ltd,Detained Persons - Laundry,831.06
Jun-2021,15936,Thompson Accident Repair Centre Ltd,Accident Damage (Below Insurance Threshold),"1,000.00"
Jun-2021,15960,Thompson Accident Repair Centre Ltd,Accident Damage (Below Insurance Threshold),"1,000.00"
Jun-2021,16093,Exgratia Payments,Ex-Gratia Payments,790.00
Jun-2021,16288,Arnold Clark Automobiles Ltd,Vehicle Maintenance - Parts Purchase,"1,311.56"
Jun-2021,17801,Arnold Clark Automobiles Ltd,Vehicle Maintenance - Parts Purchase,699.16
Jun-2021,10582,REDACTED COMMERCIAL CONFIDENTIALITY,REDACTED COMMERCIAL CONFIDENTIALITY,"3,167.28"
Jun-2021,10600,Orchid Cellmark Ltd,Forensic Analysis - Over Prescribed Limit,652.50
Jun-2021,10601,Orchid Cellmark Ltd,Forensic Analysis - Over Prescribed Limit,870.00
Jun-2021,10602,Orchid Cellmark Ltd,Forensic Analysis - Serious Crime,877.25
Jun-2021,10603,Orchid Cellmark Ltd,Forensic Analysis - Over Prescribed Limit,"1,087.50"
Jun-2021,10604,Orchid Cellmark Ltd,Forensic Analysis - Volume Crime,"1,160.00"
Jun-2021,10616,Orchid Cellmark Ltd,Forensic Analysis - Serious Crime,877.25
Jun-2021,10672,Eurofins Forensic Services Ltd,Forensic Analysis - Over Prescribed Limit,824.37
Jun-2021,10677,Eurofins Forensic Services Ltd,Forensic Analysis - Over Prescribed Limit,"1,288.37"
Jun-2021,10679,Eurofins Forensic Services Ltd,Forensic Analysis - Over Prescribed Limit,549.58
Jun-2021,10729,Key Forensic Services Ltd (Orange UK Holdings Ltd),Forensic Analysis - Serious Crime,"3,019.75"
Jun-2021,10730,Key Forensic Services Ltd (Orange UK Holdings Ltd),Forensic Analysis - Serious Crime,"5,189.80"
Jun-2021,10732,Key Forensic Services Ltd (Orange UK Holdings Ltd),Forensic Analysis - Serious Crime,"2,928.55"
Jun-2021,10739,Key Forensic Services Ltd (Orange UK Holdings Ltd),Forensic Analysis - Volume Crime,613.00
Jun-2021,10748,Key Forensic Services Ltd (Orange UK Holdings Ltd),Forensic Analysis - Serious Crime,"1,938.45"
Jun-2021,10749,Key Forensic Services Ltd (Orange UK Holdings Ltd),Forensic Analysis - Serious Crime,"1,973.65"
Jun-2021,10752,Key Forensic Services Ltd (Orange UK Holdings Ltd),Forensic Analysis - Volume Crime,"2,296.09"
Jun-2021,10753,Key Forensic Services Ltd (Orange UK Holdings Ltd),Forensic Analysis - Volume Crime,"1,057.90"
Jun-2021,10755,Key Forensic Services Ltd (Orange UK Holdings Ltd),Forensic Analysis - Over Prescribed Limit,870.00
Jun-2021,10756,Key Forensic Services Ltd (Orange UK Holdings Ltd),Forensic Analysis - Over Prescribed Limit,"1,283.25"
Jun-2021,10757,Key Forensic Services Ltd (Orange UK Holdings Ltd),Forensic Analysis - Over Prescribed Limit,"1,087.50"
Jun-2021,10759,Key Forensic Services Ltd (Orange UK Holdings Ltd),Forensic Analysis - Volume Crime,603.20
Jun-2021,10761,Key Forensic Services Ltd (Orange UK Holdings Ltd),Forensic Analysis - Serious Crime,"2,864.50"
Jun-2021,10762,Key Forensic Services Ltd (Orange UK Holdings Ltd),Forensic Analysis - Volume Crime,"1,623.36"
Jun-2021,10764,Key Forensic Services Ltd (Orange UK Holdings Ltd),Forensic Analysis - Over Prescribed Limit,"1,587.75"
Jun-2021,10765,Key Forensic Services Ltd (Orange UK Holdings Ltd),Forensic Analysis - Serious Crime,556.80
Jun-2021,10767,Key Forensic Services Ltd (Orange UK Holdings Ltd),Forensic Analysis - Volume Crime,638.00
Jun-2021,10769,Key Forensic Services Ltd (Orange UK Holdings Ltd),Forensic Analysis - Volume Crime,515.54
Jun-2021,10770,Key Forensic Services Ltd (Orange UK Holdings Ltd),Forensic Analysis - Serious Crime,"2,946.40"
Jun-2021,10771,Key Forensic Services Ltd (Orange UK Holdings Ltd),Forensic Analysis - Volume Crime,588.65
Jun-2021,10772,Key Forensic Services Ltd (Orange UK Holdings Ltd),Forensic Analysis - Over Prescribed Limit,"1,158.56"
Jun-2021,10773,Key Forensic Services Ltd (Orange UK Holdings Ltd),Forensic Analysis - Over Prescribed Limit,"1,761.75"
Jun-2021,10774,Key Forensic Services Ltd (Orange UK Holdings Ltd),Forensic Analysis - Over Prescribed Limit,"1,935.75"
Jun-2021,12134,West Technology Systems Ltd,Operational Equipment - Maintenance,"1,105.00"
Jun-2021,17228,Key Forensic Services Ltd (Orange UK Holdings Ltd),Forensic Analysis - Serious Crime,514.05
Jun-2021,18785,Home Office,Fingerprint Analysis (Livescan),"104,805.38"
Jun-2021,12669,Comensura Ltd,Agency Staff,643.50
Jun-2021,12848,College of Policing (NPIA),Other Operational Training,950.00
Jun-2021,18693,Comensura Ltd,Agency Staff,624.00
Jun-2021,18709,Comensura Ltd,Agency Staff,"1,160.25"
Jun-2021,18716,Comensura Ltd,Agency Staff,"1,179.74"
Jun-2021,10006,EE Limited,Telephone Charges - Mobile Phones,948.58
Jun-2021,10037,Vodafone Limited,Networks Private Circuits,"5,987.22"
Jun-2021,10053,Xerox UK Ltd,Computer & Printer Consumables,622.62
Jun-2021,10059,EE Limited,Telephone Charges - Mobile Phones,"7,212.00"
Jun-2021,10105,Nevis Systems Ltd,Computer Software - Maintenance,728.04
Jun-2021,10107,MHR International UK LTD,Computer Software - Maintenance,"1,698.22"
Jun-2021,10217,Softcat PLC,Computer Software - Maintenance,"10,948.00"
Jun-2021,10228,Insight Direct (UK) Ltd,Networks Private Circuits,"3,745.45"
Jun-2021,10229,Insight Direct (UK) Ltd,Networks Private Circuits,"3,846.72"
Jun-2021,10231,Insight Direct (UK) Ltd,Networks Private Circuits,"3,865.82"
Jun-2021,10255,Vodafone Limited,Networks Private Circuits,"12,770.59"
Jun-2021,10256,Vodafone Limited,Networks Private Circuits,"12,323.40"
Jun-2021,10258,Vodafone Limited,Networks Private Circuits,"12,323.40"
Jun-2021,10259,Vodafone Limited,Networks Private Circuits,"12,846.76"
Jun-2021,10397,Vodafone Limited,Networks Private Circuits,"3,958.16"
Jun-2021,10485,Force Information Systems Limited,Computer Software - Maintenance,"17,586.45"
Jun-2021,10496,MHR International UK LTD,Consultants Fees - Other,898.98
Jun-2021,10553,Airwave Solutions Limited (Subsidiary:- Kelvin Connect),Radio / Airwave Equipment - Maintenance,"33,306.27"
Jun-2021,10930,NDI Technologies Limited,Computer Software - Maintenance,"3,000.00"
Jun-2021,11024,Griffeye Technologies AB,Computer Software - Maintenance,"7,304.00"
Jun-2021,11028,Police Digital Service,Computer Software - Maintenance,"3,500.73"
Jun-2021,11094,Computacenter UK Ltd,Networks Hardware Purchase,"4,713.52"
Jun-2021,11168,Volvo Car UK Ltd,Computer Software - Maintenance,595.00
Jun-2021,11181,EE Limited,Telephone Charges - Mobile Phones,750.00
Jun-2021,11523,Specialised Equipment Cleaning,Computer Hardware - Maintenance,760.00
Jun-2021,11726,Sepura PLC,Radio / Airwave Equipment - Purchases,"13,700.00"
Jun-2021,12098,Mayors Office for Policing and Crime,Other Collaboration Payments,"1,481.00"
Jun-2021,12366,Computacenter UK Ltd,Networks Hardware Maintenance,"47,102.00"
Jun-2021,12368,Vodafone Limited,Networks Private Circuits,"3,958.16"
Jun-2021,12369,Vodafone Limited,Networks Private Circuits,"3,958.16"
Jun-2021,12558,TalkTalk,Telephone Charges - Landlines,"2,562.86"
Jun-2021,12559,TalkTalk,Telephone Charges - Landlines,"2,560.05"
Jun-2021,12561,TalkTalk,Telephone Charges - Landlines,"2,509.37"
Jun-2021,12586,Corporate Project Solutions,Computer Software - Maintenance,"3,303.00"
Jun-2021,12601,British Telecom,Networks Private Circuits,834.48
Jun-2021,12602,British Telecom,Telephone Charges - Landlines,"9,630.63"
Jun-2021,12625,Police and Crime Commissioner for Hampshire Constabulary,National Police ICT Service Charges,"25,912.92"
Jun-2021,12733,Police and Crime Commissioner for Merseyside,Radio / Airwave Equipment - Maintenance,"4,000.00"
Jun-2021,12803,Vodafone Limited,Networks Private Circuits,"1,776.00"
Jun-2021,12806,Vodafone Limited,Networks Private Circuits,"1,776.00"
Jun-2021,12807,Vodafone Limited,Networks Private Circuits,"1,776.00"
Jun-2021,12933,EE Limited,Telephone Charges - Landlines,522.38
Jun-2021,12934,EE Limited,Telephone Charges - Landlines,573.00
Jun-2021,18786,Home Office,PNC Costs,"163,015.92"
Jun-2021,1,Home Office,PND Costs,"117,228.48"
Jun-2021,2,Home Office,National Police ICT Service Charges,"297,217.89"
Jun-2021,10534,Amplivox Ltd,Other Support Function Training,"2,650.00"
Jun-2021,11013,Centric Office Solutions Limited,Office Equipment - DSE Specialist Equipment Purchase,664.00
Jun-2021,11105,Agiito Limited,Hotel Accommodation - Training,"3,420.00"
Jun-2021,11117,Agiito Limited,Hotel Accommodation - Training,"1,600.00"
Jun-2021,11118,Agiito Limited,Hotel Accommodation - Training,"2,600.00"
Jun-2021,11119,Agiito Limited,Hotel Accommodation - Training,550.00
Jun-2021,11120,Agiito Limited,Hotel Accommodation - Training,"1,100.00"
Jun-2021,11185,Agiito Limited,Hotel Accommodation - Training,"1,815.00"
Jun-2021,11299,Agiito Limited,Hotel Accommodation - Training,500.00
Jun-2021,11435,University of Central Lancashire,DHEP Training,"48,000.00"
Jun-2021,11520,Agiito Limited,Hotel Accommodation - Training,"1,350.00"
Jun-2021,11847,Sancus Solutions Ltd,CID Training,655.00
Jun-2021,11864,Spanset Ltd,Training Equipment & Materials,773.43
Jun-2021,12101,Kays Medical Limited,Immunisations & Vaccinations,"3,052.99"
Jun-2021,12142,Tranam Limited,Protective Clothing,677.08
Jun-2021,12296,Amplivox Ltd,Medical Equipment,"2,392.00"
Jun-2021,12571,REDACTED PERSONAL CONFIDENTIALITY,REDACTED PERSONAL CONFIDENTIALITY,765.00
Jun-2021,12603,Mayors Office for Policing and Crime,Other Collaboration Payments,"10,510.00"
Jun-2021,12622,Nationwide Pathology,Blood Screening,"1,309.50"
Jun-2021,12702,Comensura Ltd,Agency Staff,"1,071.60"
Jun-2021,12773,College of Policing (NPIA),External Assessment Centres,"2,034.15"
Jun-2021,12775,REDACTED PERSONAL CONFIDENTIALITY,REDACTED PERSONAL CONFIDENTIALITY,"2,050.00"
Jun-2021,12777,Kays Medical Limited,Medical Consumables,"3,040.70"
Jun-2021,18695,Comensura Ltd,Agency Staff,"1,071.60"
Jun-2021,18705,Comensura Ltd,Agency Staff,535.80
Jun-2021,18711,Comensura Ltd,Agency Staff,535.80
Jun-2021,10924,Bulloughs Cleaning Services Ltd,Cleaning Contract,"6,137.36"
Jun-2021,11106,Bulloughs Cleaning Services Ltd,Cleaning Contract,"6,809.86"
Jun-2021,12328,Bulloughs Cleaning Services Ltd,Cleaning Contract,900.00
Jun-2021,12332,Tech 4 office equipment LTD,Office Sundries,960.00
Jun-2021,12336,West Cumbria Estates Management Limited,Cleaning Contract,"1,194.78"
Jun-2021,12534,Bulloughs Cleaning Services Ltd,Cleaning Contract,"6,314.08"
Jun-2021,10014,Victim Support,Contributions - PCC Commissioning Services,"14,394.92"
Jun-2021,10015,Victim Support,Contributions - PCC Commissioning Services,"74,509.25"
Jun-2021,10034,Around The Combe,Contributions - PCC Commissioning Services,"1,497.00"
Jun-2021,10051,Crimestoppers Trust,Contributions - PCC Commissioning Services,"2,062.50"
Jun-2021,10313,Victim Support,Contributions - PCC Commissioning Services,"6,666.66"
Jun-2021,10314,Victim Support,Contributions - PCC Commissioning Services,"6,666.66"
Jun-2021,10356,Lake District Calvert Trust,Contributions - PCC Commissioning Services,"1,500.00"
Jun-2021,10506,Police and Crime Commissioner for Avon and Somerset,Contributions - PCC Commissioning Services,"16,229.09"
Jun-2021,10507,Police and Crime Commissioner for Lincolnshire,Contributions - PCC Commissioning Services,"1,467.50"
Jun-2021,10508,Police and Crime Commissioner for Bedfordshire,Contributions - PCC Commissioning Services,"30,604.40"
Jun-2021,10509,Police and Crime Commissioner for Bedfordshire,Contributions - PCC Commissioning Services,"-30,604.40"
Jun-2021,10510,Police and Crime Commissioner for Bedfordshire,Contributions - PCC Commissioning Services,"30,604.40"
Jun-2021,10511,Police and Crime Commissioner for Bedfordshire,Contributions - PCC Commissioning Services,"6,968.60"
Jun-2021,10512,Police and Crime Commissioner for Bedfordshire,Contributions - PCC Commissioning Services,"37,573.00"
Jun-2021,10513,Police and Crime Commissioner for Bedfordshire,Contributions - PCC Commissioning Services,"-37,573.00"
Jun-2021,10514,Police and Crime Commissioner for Bedfordshire,Contributions - PCC Commissioning Services,"-30,604.40"
Jun-2021,10515,Police and Crime Commissioner for Bedfordshire,Contributions - PCC Commissioning Services,"-6,968.60"
Jun-2021,10516,Police and Crime Commissioner for Bedfordshire,Contributions - PCC Commissioning Services,"34,246.42"
Jun-2021,10517,Police and Crime Commissioner for Bedfordshire,Contributions - PCC Commissioning Services,"2,619.00"
Jun-2021,10520,Police and Crime Commissioner for Derbyshire,Contributions - PCC Commissioning Services,"28,922.38"
Jun-2021,10521,Police and Crime Commissioner for Devon and Cornwall,Contributions - PCC Commissioning Services,"8,415.00"
Jun-2021,10523,Police and Crime Commissioner for Hampshire Constabulary,Contributions - PCC Commissioning Services,"31,820.00"
Jun-2021,10526,Police and Crime Commissioner for Lancashire,Contributions - PCC Commissioning Services,"133,832.90"
Jun-2021,10527,Police and Crime Commissioner for Lancashire,Contributions - PCC Commissioning Services,"133,862.90"
Jun-2021,10528,Police and Crime Commissioner for Lancashire,Contributions - PCC Commissioning Services,"-133,832.90"
Jun-2021,10538,Police and Crime Commissioner for Norfolk,Contributions - PCC Commissioning Services,"115,761.00"
Jun-2021,10539,Police and Crime Commissioner for Norfolk,Contributions - PCC Commissioning Services,"102,546.26"
Jun-2021,10540,Police and Crime Commissioner for Norfolk,Contributions - PCC Commissioning Services,"-115,761.00"
Jun-2021,10542,Police and Crime Commissioner for North Wales,Contributions - PCC Commissioning Services,"1,933.33"
Jun-2021,10543,Police and Crime Commissioner for North Wales,Contributions - PCC Commissioning Services,"1,666.67"
Jun-2021,10545,Cambridgeshire Police and Crime Commissioner,Contributions - PCC Commissioning Services,"124,724.90"
Jun-2021,10546,Dyfed-Powys Police,Contributions - PCC Commissioning Services,"88,217.00"
Jun-2021,10547,Police and Crime Commissioner for South Yorkshire,Contributions - PCC Commissioning Services,"16,300.77"
Jun-2021,10548,Nottinghamshire Office of the Police and Crime Commissioner,Contributions - PCC Commissioning Services,"83,274.41"
Jun-2021,10549,Police and Crime Commissioner for Suffolk,Contributions - PCC Commissioning Services,"50,504.78"
Jun-2021,10550,Police and Crime Commissioner for West Mercia,Contributions - PCC Commissioning Services,"44,425.03"
Jun-2021,10565,Police and Crime Commissioner for Surrey,Contributions - PCC Commissioning Services,"38,598.00"
Jun-2021,10935,Office of Police and Crime Commissioner for Wiltshire and Swindon,Contributions - PCC Commissioning Services,"18,326.39"
Jun-2021,10943,Police and Crime Commissioner for West Yorkshire,Contributions - PCC Commissioning Services,"24,505.00"
Jun-2021,10997,Staffordshire Police,Contributions - PCC Commissioning Services,"42,560.00"
Jun-2021,11194,"Police, Fire and Crime Commissioner for Essex",Contributions - PCC Commissioning Services,"161,369.62"
Jun-2021,11569,JJ Group (Contracting) Ltd,Planned Servicing Electrics,590.00
Jun-2021,12243,Restorative Solutions CIC,Contributions - PCC Commissioning Services,"2,777.78"
Jun-2021,12256,Remedi Restorative Services,Contributions - PCC Commissioning Services,"23,283.34"
Jun-2021,12257,Remedi Restorative Services,Contributions - PCC Commissioning Services,"11,641.66"
Jun-2021,12888,North Cumbria Integrated care NHS Foundation Trust (NCIC NHS FT),SARC Forensic Cleaning,743.47
Jun-2021,12896,St Michael's Nursery and Infant School,Contributions - PCC Commissioning Services,"5,048.00"
Jun-2021,15307,The Well Communities C.I.C,Contributions - PCC Commissioning Services,"4,956.00"
Jun-2021,15308,The Well Communities C.I.C,Contributions - PCC Commissioning Services,"4,956.00"
Jun-2021,12798,Govnet Communications,Other Support Function Training,"1,950.00"
Jun-2021,12799,Sancus Solutions Ltd,Other Third Party Payments,525.00
Jun-2021,11996,South Lakeland District Council,Other Miscellaneous Expenditure,910.96
Jun-2021,11997,South Lakeland District Council,Other Miscellaneous Expenditure,969.05
Jul-2021,10956,Car-Port UK Ltd,Vehicle Hire - Long Term,"1,980.00"
Jul-2021,13017,REDACTED COMMERCIAL CONFIDENTIALITY,REDACTED COMMERCIAL CONFIDENTIALITY,"2,981.23"
Jul-2021,11863,Enterprise Rent-a-car UK Limited,Vehicle Hire - Long Term,581.28
Jul-2021,11985,Acume Forensics,Operational Equipment - Other,"1,600.00"
Jul-2021,12211,Agiito Limited,Hotel Accommodation,"1,280.00"
Jul-2021,12212,Agiito Limited,Hotel Accommodation,524.00
Jul-2021,12089,Her Majesty's Courts & Tribunal Service (HMCTS),Court Fees,"1,385.00"
Jul-2021,13036,Thomson Reuters,Books & Publications,"11,543.64"
Jul-2021,15403,Atlantic Chambers,Counsel Fees,"3,180.00"
Jul-2021,17356,Trinity Chambers (Newcastle-upon-Tyne),Counsel Fees,705.60
Jul-2021,10082,Nationwide Franking Sense Ltd,Office Equipment - Maintenance & Service Costs,642.00
Jul-2021,10420,XPS Administration Limited T/A XPS Administration,Pension Services,"8,911.16"
Jul-2021,12353,Enterprise Car Club,Vehicle Hire - Car Share Scheme,"3,720.00"
Jul-2021,11009,Police and Crime Commissioner for Cheshire,Subscriptions,"2,000.00"
Jul-2021,12248,Gresham Office Furniture,Furniture - General,557.00
Jul-2021,13034,Shortridge Ltd,Detained Persons - Laundry,682.51
Jul-2021,15965,Thompson Accident Repair Centre Ltd,Accident Damage (Below Insurance Threshold),"1,000.00"
Jul-2021,15967,Thompson Accident Repair Centre Ltd,Accident Damage (Below Insurance Threshold),649.26
Jul-2021,15969,Thompson Accident Repair Centre Ltd,Accident Damage (Below Insurance Threshold),754.88
Jul-2021,15971,Thompson Accident Repair Centre Ltd,Accident Damage (Below Insurance Threshold),502.85
Jul-2021,17061,P & HM Ferguson,Vehicle Maintenance - Work Done Externally,"1,347.30"
Jul-2021,17823,Arnold Clark Automobiles Ltd,Vehicle Maintenance - Parts Purchase,700.19
Jul-2021,17831,Arnold Clark Automobiles Ltd,Vehicle Maintenance - Parts Purchase,829.80
Jul-2021,17835,Arnold Clark Automobiles Ltd,Vehicle Maintenance - Parts Purchase,510.31
Jul-2021,12124,Avoira Limited,Operational Equipment - Audio / Video Equipment,"1,500.00"
Jul-2021,12843,L & K Group PLC,Leadership Training,849.50
Jul-2021,10011,REDACTED COMMERCIAL CONFIDENTIALITY,REDACTED COMMERCIAL CONFIDENTIALITY,"1,767.80"
Jul-2021,10405,Frame Swift and Partners LLP,Police Dogs - Vets Fees,"1,493.96"
Jul-2021,10406,Frame Swift and Partners LLP,Police Dogs - Vets Fees,929.06
Jul-2021,10409,Frame Swift and Partners LLP,Police Dogs - Vets Fees,866.68
Jul-2021,10490,FMG Support (RRRM) Ltd,Vehicle Recovery Costs,"1,524.60"
Jul-2021,11110,Earle International,Staff Clothing & Police Uniform,795.70
Jul-2021,11536,Agiito Limited,Hotel Accommodation - Training,"1,242.86"
Jul-2021,11538,Agiito Limited,Hotel Accommodation - Training,828.57
Jul-2021,11542,Agiito Limited,Hotel Accommodation - Training,"1,242.86"
Jul-2021,11849,Agiito Limited,Hotel Accommodation - Training,560.31
Jul-2021,11860,Internet Investigation Solutions,ICT Training,"1,000.00"
Jul-2021,11994,Police and Crime Commissioner for Cheshire,Other Collaboration Payments,"9,957.70"
Jul-2021,12048,Police and Crime Commissioner for West Yorkshire,Contribution to NPAS,"11,962.75"
Jul-2021,12049,Police and Crime Commissioner for West Yorkshire,Contribution to NPAS,"11,962.75"
Jul-2021,12132,GMK Limited,Firearms Equipment,"7,915.00"
Jul-2021,12146,Primetake Ltd,Firearms Equipment,740.00
Jul-2021,12223,REDACTED COMMERCIAL CONFIDENTIALITY,REDACTED COMMERCIAL CONFIDENTIALITY,"62,350.00"
Jul-2021,12231,Brysdales Ltd,CSI Consumables,"1,160.00"
Jul-2021,12313,Tranam Limited,Protective Clothing,"1,264.77"
Jul-2021,12556,THE ATACC GROUP,Other Operational Training,"3,960.00"
Jul-2021,12557,THE ATACC GROUP,Other Operational Training,"-1,980.00"
Jul-2021,12569,Police and Crime Commissioner for Merseyside,CID Training,"2,813.58"
Jul-2021,12574,Police and Crime Commissioner for Lancashire,Other Collaboration Payments,"7,525.00"
Jul-2021,12969,Berla Corporation,Operational Equipment - Other,"2,069.30"
Jul-2021,12972,Point South Limited,Firearms Equipment,"1,323.00"
Jul-2021,12973,Point South Limited,Firearms Equipment,514.00
Jul-2021,13184,Police and Crime Commissioner for Merseyside,TITAN - North West Collaboration,"11,112.00"
Jul-2021,13424,REDACTED COMMERCIAL CONFIDENTIALITY,REDACTED COMMERCIAL CONFIDENTIALITY,"1,250.00"
Jul-2021,13937,REDACTED COMMERCIAL CONFIDENTIALITY,REDACTED COMMERCIAL CONFIDENTIALITY,"2,000.00"
Jul-2021,16677,Lloyd Motorrad,Vehicle Maintenance - Parts Purchase,925.43
Jul-2021,16679,Lloyd Motorrad,Vehicle Maintenance - Work Done Externally,712.76
Jul-2021,16863,Neil Rudd Autocare,Vehicle Maintenance - Work Done Externally,705.09
Jul-2021,18432,REDACTED COMMERCIAL CONFIDENTIALITY,REDACTED COMMERCIAL CONFIDENTIALITY,523.53
Jul-2021,18434,REDACTED COMMERCIAL CONFIDENTIALITY,REDACTED COMMERCIAL CONFIDENTIALITY,"1,879.32"
Jul-2021,18436,REDACTED COMMERCIAL CONFIDENTIALITY,REDACTED COMMERCIAL CONFIDENTIALITY,"1,408.00"
Jul-2021,18438,REDACTED COMMERCIAL CONFIDENTIALITY,REDACTED COMMERCIAL CONFIDENTIALITY,"2,386.95"
Jul-2021,18461,REDACTED COMMERCIAL CONFIDENTIALITY,REDACTED COMMERCIAL CONFIDENTIALITY,853.50
Jul-2021,11602,Reed Rains,Rent,800.00
Jul-2021,16100,Police and Crime Commissioner for Cheshire,Other Collaboration Payments,"5,146.61"
Jul-2021,17338,Police and Crime Commissioner for Merseyside,Other Collaboration Payments,"7,243.42"
Jul-2021,12978,REDACTED COMMERCIAL CONFIDENTIALITY,REDACTED COMMERCIAL CONFIDENTIALITY,"26,000.00"
Jul-2021,10268,College of Policing (NPIA),CID Training,813.50
Jul-2021,10342,Capita Translation and Interpreting (Applied Language Solutions Ltd),Interpreters Fees - Face to Face,"1,104.09"
Jul-2021,10343,Capita Translation and Interpreting (Applied Language Solutions Ltd),Interpreters Fees - Telephone,802.06
Jul-2021,10451,REDACTED COMMERCIAL CONFIDENTIALITY,REDACTED COMMERCIAL CONFIDENTIALITY,"4,250.00"
Jul-2021,10462,Child Action Northwest,Detained Persons - Appropriate Adult Services,"8,038.57"
Jul-2021,10535,REDACTED COMMERCIAL CONFIDENTIALITY,REDACTED COMMERCIAL CONFIDENTIALITY,"4,250.00"
Jul-2021,10916,REDACTED COMMERCIAL CONFIDENTIALITY,REDACTED COMMERCIAL CONFIDENTIALITY,"1,200.00"
Jul-2021,10977,REDACTED COMMERCIAL CONFIDENTIALITY,REDACTED COMMERCIAL CONFIDENTIALITY,795.16
Jul-2021,10978,REDACTED COMMERCIAL CONFIDENTIALITY,REDACTED COMMERCIAL CONFIDENTIALITY,710.56
Jul-2021,11678,Centric Office Solutions Limited,Furniture - DSE Specialist Furniture,560.00
Jul-2021,12631,Comensura Ltd,Agency Staff,955.34
Jul-2021,13026,REDACTED COMMERCIAL CONFIDENTIALITY,REDACTED COMMERCIAL CONFIDENTIALITY,699.18
Jul-2021,13027,REDACTED COMMERCIAL CONFIDENTIALITY,REDACTED COMMERCIAL CONFIDENTIALITY,762.77
Jul-2021,13275,REDACTED COMMERCIAL CONFIDENTIALITY,REDACTED COMMERCIAL CONFIDENTIALITY,"2,826.73"
Jul-2021,11039,Precor,Gym Equipment - Purchase,"1,408.38"
Jul-2021,11040,Precor,Gym Equipment - Purchase,"5,550.62"
Jul-2021,11041,Precor,Gym Equipment - Purchase,"2,268.75"
Jul-2021,15309,Emma Blaylock,Gym Equipment - Purchase,"1,200.00"
Jul-2021,12042,Agiito Limited,Hotel Accommodation - Training,717.20
Jul-2021,11729,Enterprise Rent-a-car UK Limited,Vehicle Hire - Long Term,630.84
Jul-2021,11150,Greater Manchester Combined Authority,CID Training,570.00
Jul-2021,12151,Centric Office Solutions Limited,Furniture - General,"1,170.00"
Jul-2021,12152,Centric Office Solutions Limited,Furniture - General,"2,124.00"
Jul-2021,12250,Scenesafe,Operational Equipment - Other,532.75
Jul-2021,12787,Shortridge Ltd,Detained Persons - Laundry,601.72
Jul-2021,13129,Arrow County Supplies,Cleaning Materials,"1,630.76"
Jul-2021,15510,Ciceley Commercials,Vehicle Maintenance - Parts Purchase,714.40
Jul-2021,15512,Ciceley Commercials,Vehicle Maintenance - Parts Purchase,965.91
Jul-2021,18248,Long Lane Garage,Accident Damage (Below Insurance Threshold),941.95
Jul-2021,18351,Guy Perry Ltd,Vehicle Maintenance - Parts Purchase,610.90
Jul-2021,10284,XPS Administration Limited T/A XPS Administration,Consultants Fees - Finance,750.00
Jul-2021,10026,SMSR Ltd,Consultants Fees - Other,920.00
Jul-2021,12712,Comensura Ltd,Agency Staff,546.94
Jul-2021,10171,FTS Fire and  Security Ltd,Planned Servicing Fire Systems,706.50
Jul-2021,10196,Thomas Armstrong Construction Ltd,Planned Survey External Maintenance,"6,217.00"
Jul-2021,10252,Thomas Armstrong Construction Ltd,Planned Survey Environmental Services/Plumbing,"5,754.10"
Jul-2021,10291,Volvo Car UK Ltd,Vehicle Purchases - Capital,"8,723.28"
Jul-2021,10454,Thomas Armstrong Construction Ltd,Planned Survey Environmental Services/Plumbing,"1,350.00"
Jul-2021,10482,Sonic Communications Int Ltd,Vehicle Adaptations - Capital,"2,500.00"
Jul-2021,11138,Shortridge Ltd,Hostels Laundry Contracts,506.78
Jul-2021,11263,Ulverston Properties Limited,Estates Leases,820.83
Jul-2021,11278,Frederick Potts and Sons Ltd,Estates Leases,787.50
Jul-2021,11283,Cumbria County Council,Estates Leases,"1,706.25"
Jul-2021,11361,S Nicholson Grounds Maintenance,Grounds Maintenance - Contract,700.00
Jul-2021,11406,Carlisle City Council,Estates Leases,"7,750.00"
Jul-2021,11436,JJ Group (Contracting) Ltd,Planned Servicing Electrics,"5,459.00"
Jul-2021,11443,Zip Heaters UK Ltd t a Zip Water,Planned Servicing General Maintenance,"1,887.00"
Jul-2021,11444,Zip Heaters UK Ltd t a Zip Water,Planned Servicing General Maintenance,"1,132.20"
Jul-2021,11447,Zip Heaters UK Ltd t a Zip Water,Planned Servicing General Maintenance,"1,887.00"
Jul-2021,11449,Intruder Detection & Surveillance Ltd T/A IDS Fire & Security,Purchase of Security and Alarms (inc locks),"1,720.00"
Jul-2021,11452,Intruder Detection & Surveillance Ltd T/A IDS Fire & Security,Purchase of Security and Alarms (inc locks),550.00
Jul-2021,11455,Carlisle Refrigeration Limited,Planned Servicing HVAC System,630.00
Jul-2021,11456,Carlisle Refrigeration Limited,Planned Servicing HVAC System,952.00
Jul-2021,11465,FTS Fire and  Security Ltd,Planned Servicing Fire Systems,706.50
Jul-2021,11470,Water and Air Management Limited,Planned Servicing Water Chlorination,989.40
Jul-2021,11481,JJ Group (Contracting) Ltd,Unplanned Building Maintenance Electrics,"2,952.00"
Jul-2021,11499,BID Group Ltd,Planned Servicing General Maintenance,"1,020.00"
Jul-2021,11501,BID Group Ltd,Planned Servicing General Maintenance,510.00
Jul-2021,11643,Pioneer Foodservice,Canteen - Purchase of Food / Ingredients,505.21
Jul-2021,11648,Pioneer Foodservice,Canteen - Purchase of Food / Ingredients,"1,542.37"
Jul-2021,11654,Pioneer Foodservice,Canteen - Purchase of Food / Ingredients,549.37
Jul-2021,11669,Pioneer Foodservice,Canteen - Purchase of Food / Ingredients,640.00
Jul-2021,11679,Bulloughs Cleaning Services Ltd,Cleaning Contract,"41,635.29"
Jul-2021,11680,Bulloughs Cleaning Services Ltd,Cleaning Contract,"14,175.30"
Jul-2021,11681,Bulloughs Cleaning Services Ltd,Cleaning Contract,"4,842.90"
Jul-2021,11682,Bulloughs Cleaning Services Ltd,Cleaning Contract,648.11
Jul-2021,11684,Bulloughs Cleaning Services Ltd,Cleaning Contract,"5,756.68"
Jul-2021,11688,Bulloughs Cleaning Services Ltd,Cleaning Contract,"2,840.22"
Jul-2021,11689,Bulloughs Cleaning Services Ltd,Cleaning Contract,"4,342.29"
Jul-2021,11690,Bulloughs Cleaning Services Ltd,Cleaning Contract,"1,101.77"
Jul-2021,11691,Bulloughs Cleaning Services Ltd,Cleaning Contract,518.48
Jul-2021,11692,Bulloughs Cleaning Services Ltd,Cleaning Contract,648.10
Jul-2021,11695,Bulloughs Cleaning Services Ltd,Cleaning Contract,"2,962.27"
Jul-2021,11697,Bulloughs Cleaning Services Ltd,Cleaning Contract,"1,620.25"
Jul-2021,11738,Goodyear Dunlop Tyres UK Limited,Vehicle Maintenance - Tyres & Tubes,"-1,177.32"
Jul-2021,11739,Goodyear Dunlop Tyres UK Limited,Vehicle Maintenance - Tyres & Tubes,"13,507.35"
Jul-2021,11752,West Cumbria Estates Management Limited,PFI Occupancy Charges,"106,200.00"
Jul-2021,11767,Allstar Business Solutions Ltd,Vehicle Fuel,"2,101.84"
Jul-2021,11795,Allstar Business Solutions Ltd,Vehicle Fuel,"1,430.41"
Jul-2021,11796,Allstar Business Solutions Ltd,Vehicle Fuel,"1,774.29"
Jul-2021,11797,Allstar Business Solutions Ltd,Vehicle Fuel,"2,129.11"
Jul-2021,11798,Allstar Business Solutions Ltd,Vehicle Fuel,673.78
Jul-2021,11799,Allstar Business Solutions Ltd,Vehicle Fuel,717.82
Jul-2021,11901,Certas Energy Limited,Unplanned Building Maintenance Internal Maintenance,"3,711.40"
Jul-2021,11952,Biffa Waste Services Limited,Refuse,943.50
Jul-2021,11954,Biffa Waste Services Limited,Refuse,513.60
Jul-2021,11955,Biffa Waste Services Limited,Refuse,834.80
Jul-2021,11956,Biffa Waste Services Limited,Refuse,631.04
Jul-2021,12010,Chubb Fire and Security Limited,Purchase of Security and Alarms (inc locks),671.52
Jul-2021,12045,Chubb Fire and Security Limited,Purchase of Security and Alarms (inc locks),635.47
Jul-2021,12109,FMG Support (RRRM) Ltd,Police Vehicle Recovery & Transport,"3,827.00"
Jul-2021,12158,Allstar Business Solutions Ltd,Vehicle Fuel,528.42
Jul-2021,12159,Allstar Business Solutions Ltd,Vehicle Fuel,752.63
Jul-2021,12160,Allstar Business Solutions Ltd,Vehicle Fuel,"64,833.91"
Jul-2021,12325,Primetake Ltd,Operational Equipment - Other,652.00
Jul-2021,12331,HSB Haughton Engineering Limited,Planned Servicing HVAC System,560.00
Jul-2021,12588,Cell Security Limited,Unplanned Building Maintenance Internal Maintenance,"1,025.00"
Jul-2021,12599,Carlisle Refrigeration Limited,Canteen - Equipment and Utensils,"3,953.80"
Jul-2021,12609,REDACTED COMMERCIAL CONFIDENTIALITY,REDACTED COMMERCIAL CONFIDENTIALITY,639.00
Jul-2021,12744,FTS Fire and  Security Ltd,Unplanned Building Maintenance Safety Works,648.00
Jul-2021,12756,Baker Mallett LLP,Professional Fees,560.00
Jul-2021,12849,PSTAX,Professional Fees,"2,500.00"
Jul-2021,12893,BID Group Ltd,North West Ambulance Service - Estates Management Collaboration,"1,685.00"
Jul-2021,12898,Frederick Potts and Sons Ltd,Unplanned Building Services Environmental Services/Plumbing,680.12
Jul-2021,12899,Cumbria Mechanical and Plumbing Ltd,North West Ambulance Service - Estates Management Collaboration,"1,900.00"
Jul-2021,12945,Castle Water Limited,Metered Water,"2,111.71"
Jul-2021,12946,Castle Water Limited,Sewerage & Environmental Services,"46,661.58"
Jul-2021,12962,EDF Energy,Electricity,"14,854.41"
Jul-2021,12963,EDF Energy,Climate Change Levy,890.86
Jul-2021,12965,Burtonwood Generator & Switchgear Services Limited,Unplanned Building Services Electrics,820.30
Jul-2021,12968,Michael Thompson Limited,Office Equipment - Purchase,900.00
Jul-2021,12980,BID Group Ltd,Unplanned Building Maintenance External Maintenance,540.00
Jul-2021,12986,Bell Park Kerridge Solicitors (BPK),Legal Fees (Property Sale),"1,000.00"
Jul-2021,13016,CSS Engineering Solutions Limited,Vehicle Maintenance - Parts Purchase,"1,965.00"
Jul-2021,13018,Dawson Electrical Services Ltd,North West Ambulance Service - Estates Management Collaboration,"2,870.00"
Jul-2021,13056,Michael Thompson Limited,North West Ambulance Service - Estates Management Collaboration,"3,689.00"
Jul-2021,13080,Frederick Potts and Sons Ltd,Unplanned Building Services Internal Other,525.40
Jul-2021,13081,Frederick Potts and Sons Ltd,Unplanned Building Services Internal Other,695.96
Jul-2021,13084,FTS Fire and  Security Ltd,Unplanned Building Services Fire Systems,570.60
Jul-2021,13085,Frederick Potts and Sons Ltd,North West Ambulance Service - Estates Management Collaboration,"1,204.84"
Jul-2021,13086,Frederick Potts and Sons Ltd,North West Ambulance Service - Estates Management Collaboration,757.04
Jul-2021,13123,Michael Thompson Limited,North West Ambulance Service - Estates Management Collaboration,621.00
Jul-2021,13130,JJ Group (Contracting) Ltd,North West Ambulance Service - Estates Management Collaboration,695.00
Jul-2021,13134,Tremorfa Ltd,Planned Servicing Security & Security Equipment Maintenance,"2,308.00"
Jul-2021,13162,Water Plus Ltd,Sewerage & Environmental Services,"8,318.61"
Jul-2021,13284,Ford Motor Company Limited,Vehicle Purchases - Capital,"26,469.53"
Jul-2021,13289,Ford Motor Company Limited,Vehicle Purchases - Capital,"28,904.72"
Jul-2021,13290,Ford Motor Company Limited,Vehicle Purchases - Capital,"28,904.72"
Jul-2021,13291,Ford Motor Company Limited,Vehicle Purchases - Capital,"28,904.72"
Jul-2021,17700,Post Office Counters Ltd,Vehicle Road Fund Licenses,775.00
Jul-2021,13022,Shortridge Ltd,Detained Persons - Laundry,855.08
Jul-2021,17803,Arnold Clark Automobiles Ltd,Vehicle Maintenance - Parts Purchase,717.24
Jul-2021,17821,Arnold Clark Automobiles Ltd,Vehicle Maintenance - Parts Purchase,984.07
Jul-2021,10583,REDACTED COMMERCIAL CONFIDENTIALITY,REDACTED COMMERCIAL CONFIDENTIALITY,"2,281.65"
Jul-2021,10584,REDACTED COMMERCIAL CONFIDENTIALITY,REDACTED COMMERCIAL CONFIDENTIALITY,"1,303.38"
Jul-2021,10605,Orchid Cellmark Ltd,Forensic Analysis - Over Prescribed Limit,"1,087.50"
Jul-2021,10606,Orchid Cellmark Ltd,Forensic Analysis - Over Prescribed Limit,652.50
Jul-2021,10618,Orchid Cellmark Ltd,Forensic Analysis - Volume Crime,860.00
Jul-2021,10619,Orchid Cellmark Ltd,Forensic Analysis - Serious Crime,522.00
Jul-2021,10620,Orchid Cellmark Ltd,Forensic Analysis - Serious Crime,"1,948.80"
Jul-2021,10621,Orchid Cellmark Ltd,Forensic Analysis - Over Prescribed Limit,652.50
Jul-2021,10622,Orchid Cellmark Ltd,Forensic Analysis - Over Prescribed Limit,"1,787.85"
Jul-2021,10681,Eurofins Forensic Services Ltd,Forensic Analysis - Over Prescribed Limit,966.31
Jul-2021,10683,Eurofins Forensic Services Ltd,Forensic Analysis - Over Prescribed Limit,909.02
Jul-2021,10685,Eurofins Forensic Services Ltd,Forensic Analysis - Over Prescribed Limit,"1,373.95"
Jul-2021,10686,Eurofins Forensic Services Ltd,Forensic Analysis - Volume Crime,"4,464.77"
Jul-2021,10776,Key Forensic Services Ltd (Orange UK Holdings Ltd),Forensic Analysis - Volume Crime,610.90
Jul-2021,10779,Key Forensic Services Ltd (Orange UK Holdings Ltd),Forensic Analysis - Serious Crime,790.60
Jul-2021,10780,Key Forensic Services Ltd (Orange UK Holdings Ltd),Forensic Analysis - Over Prescribed Limit,"1,305.00"
Jul-2021,10781,Key Forensic Services Ltd (Orange UK Holdings Ltd),Forensic Analysis - Over Prescribed Limit,"1,354.31"
Jul-2021,10782,Key Forensic Services Ltd (Orange UK Holdings Ltd),Forensic Analysis - Over Prescribed Limit,"1,593.56"
Jul-2021,10785,Key Forensic Services Ltd (Orange UK Holdings Ltd),Forensic Analysis - Serious Crime,"1,572.10"
Jul-2021,10786,Key Forensic Services Ltd (Orange UK Holdings Ltd),Forensic Analysis - Serious Crime,"1,859.05"
Jul-2021,10787,Key Forensic Services Ltd (Orange UK Holdings Ltd),Forensic Analysis - Volume Crime,"1,150.28"
Jul-2021,10791,Key Forensic Services Ltd (Orange UK Holdings Ltd),Forensic Analysis - Serious Crime,"1,520.05"
Jul-2021,10792,Key Forensic Services Ltd (Orange UK Holdings Ltd),Forensic Analysis - Serious Crime,920.50
Jul-2021,11422,JJ Group (Contracting) Ltd,Unplanned Building Maintenance Electrics,"1,984.76"
Jul-2021,12976,Point Safety Ltd T/A Thermometer Point,CSI Consumables,600.00
Jul-2021,12327,Centric Office Solutions Limited,Furniture - General,796.00
Jul-2021,12670,Comensura Ltd,Agency Staff,624.00
Jul-2021,10007,EE Limited,Telephone Charges - Mobile Phones,"1,066.84"
Jul-2021,10009,EE Limited,Telephone Charges - Mobile Phones,"1,085.62"
Jul-2021,10042,MHR International UK LTD,Computer Software - Maintenance,701.72
Jul-2021,10060,EE Limited,Telephone Charges - Mobile Phones,"7,272.00"
Jul-2021,10061,EE Limited,Telephone Charges - Mobile Phones,"7,298.64"
Jul-2021,10062,EE Limited,Telephone Charges - Mobile Phones,"7,272.00"
Jul-2021,10094,Softcat PLC,Computer Software - Maintenance,"7,819.14"
Jul-2021,10096,Softcat PLC,Computer Software - Maintenance,"26,010.00"
Jul-2021,10098,Vodafone Limited,Networks Private Circuits,"3,490.97"
Jul-2021,10100,JML Software Solutions Ltd,Computer Software - Purchase,"36,500.00"
Jul-2021,10218,Softcat PLC,Computer Software - Maintenance,"10,948.00"
Jul-2021,10248,Phoenix Software Ltd,Computer Software - Maintenance,"2,579.04"
Jul-2021,10249,Phoenix Software Ltd,Computer Software - Maintenance,"2,579.04"
Jul-2021,10257,Vodafone Limited,Networks Private Circuits,"23,400.00"
Jul-2021,10554,Airwave Solutions Limited (Subsidiary:- Kelvin Connect),Radio / Airwave Equipment - Maintenance,"33,233.36"
Jul-2021,10998,Capita Secure Solutions & Services,Consultants Fees - ICT,"3,281.00"
Jul-2021,11183,EE Limited,Telephone Charges - Mobile Phones,"1,050.00"
Jul-2021,11234,Computacenter UK Ltd,Computer Software - Maintenance,"332,562.37"
Jul-2021,11310,GPD Installation Services Ltd,Radio / Airwave Equipment - Purchases,"5,445.00"
Jul-2021,11524,Specialised Equipment Cleaning,Computer Hardware - Maintenance,560.00
Jul-2021,12560,TalkTalk,Telephone Charges - Landlines,"2,509.37"
Jul-2021,12790,Insight Direct (UK) Ltd,Computer Software - Maintenance,"1,220.19"
Jul-2021,12797,Insight Direct (UK) Ltd,Computer Software - Maintenance,828.88
Jul-2021,12836,Insight Direct (UK) Ltd,Computer Software - Maintenance,828.88
Jul-2021,12900,IMSupporting LTD,Computer Software - Purchase,"5,999.88"
Jul-2021,12918,Sepura PLC,Radio / Airwave Equipment - Purchases,"1,460.00"
Jul-2021,13098,Police Digital Service,Other Collaboration Payments,"86,134.00"
Jul-2021,13228,Nominet Uk,Networks Private Circuits,"1,738.58"
Jul-2021,13249,Nevis Systems Ltd,Computer Software - Maintenance,"1,962.70"
Jul-2021,10303,University of Cumbria,Other Support Function Training,560.00
Jul-2021,10304,University of Cumbria,Other Support Function Training,560.00
Jul-2021,10305,University of Cumbria,Other Support Function Training,560.00
Jul-2021,10306,University of Cumbria,Other Support Function Training,560.00
Jul-2021,10307,University of Cumbria,Other Support Function Training,560.00
Jul-2021,10564,SMARTDRIVING,Other Operational Training,"4,330.00"
Jul-2021,10567,Cumbria County Council,Added Years Qtrly - LGPS,"13,415.01"
Jul-2021,11121,Agiito Limited,Hotel Accommodation - Training,"2,933.59"
Jul-2021,11122,Agiito Limited,Hotel Accommodation - Training,700.00
Jul-2021,11123,Agiito Limited,Hotel Accommodation - Training,"1,180.00"
Jul-2021,11124,Agiito Limited,Hotel Accommodation - Training,875.00
Jul-2021,11125,Agiito Limited,Hotel Accommodation - Training,"1,875.00"
Jul-2021,11294,Wurth UK Ltd,Vehicle Sundries / Consumables,767.16
Jul-2021,11300,Agiito Limited,Hotel Accommodation - Training,500.00
Jul-2021,11521,Agiito Limited,Hotel Accommodation - Training,"1,530.00"
Jul-2021,12219,Agiito Limited,Hotel Accommodation - Training,626.66
Jul-2021,12270,Chartered Management Institute,Other Support Function Training,840.00
Jul-2021,12294,Agiito Limited,Hotel Accommodation - Training,550.00
Jul-2021,12298,Agiito Limited,Hotel Accommodation - Training,"2,151.34"
Jul-2021,13023,REDACTED PERSONAL CONFIDENTIALITY,REDACTED PERSONAL CONFIDENTIALITY,"1,538.84"
Jul-2021,13028,Mancunian Health Limited,Force Doctor Fees,"2,700.00"
Jul-2021,13029,Mancunian Health Limited,Force Doctor Fees,"2,700.00"
Jul-2021,13031,REDACTED PERSONAL CONFIDENTIALITY,REDACTED PERSONAL CONFIDENTIALITY,"2,520.00"
Jul-2021,13032,REDACTED PERSONAL CONFIDENTIALITY,REDACTED PERSONAL CONFIDENTIALITY,540.00
Jul-2021,13033,REDACTED PERSONAL CONFIDENTIALITY,REDACTED PERSONAL CONFIDENTIALITY,"1,200.00"
Jul-2021,10266,Tech 4 office equipment LTD,Office Sundries,960.00
Jul-2021,12333,Tech 4 office equipment LTD,Office Sundries,960.00
Jul-2021,12337,West Cumbria Estates Management Limited,Cleaning Contract,660.92
Jul-2021,12987,Bulloughs Cleaning Services Ltd,Cleaning Contract,776.04
Jul-2021,10018,Victim Support,Contributions - PCC Commissioning Services,"14,394.92"
Jul-2021,10019,Victim Support,Contributions - PCC Commissioning Services,"74,509.25"
Jul-2021,10135,Whitehaven Harbour Youth Project,Contributions - PCC Commissioning Services,"1,200.00"
Jul-2021,10169,SAFA Cumbria,Contributions - PCC Commissioning Services,"1,500.00"
Jul-2021,10315,Victim Support,Contributions - PCC Commissioning Services,"6,666.66"
Jul-2021,10537,Police and Crime Commissioner for Merseyside,Contributions - PCC Commissioning Services,"17,864.50"
Jul-2021,10544,Police and Crime Commissioner for Northumbria,Contributions - PCC Commissioning Services,"40,905.00"
Jul-2021,10572,Police and Crime Commissioner for South Wales,Contributions - PCC Commissioning Services,"162,871.81"
Jul-2021,10934,Police and Crime Commissioner for West Midlands,Contributions - PCC Commissioning Services,"269,280.00"
Jul-2021,11045,Mayors Office for Policing and Crime,Contributions - PCC Commissioning Services,"234,815.67"
Jul-2021,11056,Police and Crime Commissioner for Dorset,Contributions - PCC Commissioning Services,"12,905.36"
Jul-2021,12778,Safety Net UK,SARC Counselling Services,"33,967.50"
Jul-2021,12947,North Cumbria Integrated care NHS Foundation Trust (NCIC NHS FT),SARC Forensic Cleaning,743.47
Jul-2021,13288,Cumbria County Council,Police Staff Employers LGPS Past Service Costs,"22,800.00"
Aug-2021,10957,Car-Port UK Ltd,Vehicle Hire - Long Term,"1,782.00"
Aug-2021,13163,REDACTED COMMERCIAL CONFIDENTIALITY,REDACTED COMMERCIAL CONFIDENTIALITY,"2,240.00"
Aug-2021,13176,Thomas Graham and Sons Limited,Protective Clothing,750.00
Aug-2021,12090,Her Majesty's Courts & Tribunal Service (HMCTS),Court Fees,"1,356.00"
Aug-2021,10363,REDACTED COMMERCIAL CONFIDENTIALITY,REDACTED COMMERCIAL CONFIDENTIALITY,831.00
Aug-2021,10387,REDACTED COMMERCIAL CONFIDENTIALITY,REDACTED COMMERCIAL CONFIDENTIALITY,535.08
Aug-2021,10421,XPS Administration Limited T/A XPS Administration,Pension Services,"8,911.16"
Aug-2021,10436,REDACTED COMMERCIAL CONFIDENTIALITY,REDACTED COMMERCIAL CONFIDENTIALITY,596.73
Aug-2021,11072,Pitney Bowes Ltd,Postage Costs,"2,741.98"
Aug-2021,12025,Cumbria County Council,Courier Services - Internal Deliveries,"3,148.71"
Aug-2021,12354,Enterprise Car Club,Vehicle Hire - Car Share Scheme,"3,720.00"
Aug-2021,12844,Centric Office Solutions Limited,Furniture - General,"1,950.00"
Aug-2021,12874,Oracle Corporation UK Limited,Consultants Fees - Other,"12,000.00"
Aug-2021,13122,Thomas Graham and Sons Limited,Cleaning Materials,683.64
Aug-2021,12249,Gresham Office Furniture,Furniture - General,"7,215.00"
Aug-2021,12835,Insight Direct (UK) Ltd,Other Support Function Training,612.24
Aug-2021,12847,Carlisle City Council,Stray Animals Costs,780.00
Aug-2021,12990,Shortridge Ltd,Detained Persons - Laundry,664.02
Aug-2021,16819,Arnold Clark Automobiles Ltd,Vehicle Maintenance - Parts Purchase,555.52
Aug-2021,17829,Arnold Clark Automobiles Ltd,Vehicle Maintenance - Parts Purchase,669.57
Aug-2021,17837,Arnold Clark Automobiles Ltd,Vehicle Maintenance - Parts Purchase,676.80
Aug-2021,17849,Arnold Clark Automobiles Ltd,Vehicle Maintenance - Parts Purchase,574.55
Aug-2021,17853,Arnold Clark Automobiles Ltd,Vehicle Maintenance - Parts Purchase,508.63
Aug-2021,11113,Bedroq TM Ltd,Other Third Party Payments,"29,889.66"
Aug-2021,10410,Frame Swift and Partners LLP,Police Dogs - Vets Fees,"2,521.71"
Aug-2021,10491,FMG Support (RRRM) Ltd,Vehicle Recovery Costs,"2,211.00"
Aug-2021,11012,College of Policing (NPIA),CID Training,"1,183.00"
Aug-2021,12238,PSS Home Entertainment Limited,Operational Equipment - Audio / Video Equipment,899.00
Aug-2021,12748,JJ Group (Contracting) Ltd,Unplanned Building Maintenance Electrics,745.00
Aug-2021,12839,REDACTED COMMERCIAL CONFIDENTIALITY,REDACTED COMMERCIAL CONFIDENTIALITY,"1,628.00"
Aug-2021,13132,Royal Canin,Police Dogs - Feed,"1,786.65"
Aug-2021,13161,REDACTED COMMERCIAL CONFIDENTIALITY,REDACTED COMMERCIAL CONFIDENTIALITY,"3,260.00"
Aug-2021,13389,Shield International Ltd,Firearms Equipment,"1,967.00"
Aug-2021,13390,REDACTED COMMERCIAL CONFIDENTIALITY,REDACTED COMMERCIAL CONFIDENTIALITY,672.00
Aug-2021,13392,Police and Crime Commissioner for Cheshire,Other Collaboration Payments,"8,365.11"
Aug-2021,13395,H Wicks (Lindal) Ltd,Refuse,735.00
Aug-2021,13435,Faraday Forensics Ltd,Electronic Forensics,675.00
Aug-2021,13444,Advanced K9 Solutions Ltd,Other Operational Training,"3,000.00"
Aug-2021,13480,REDACTED COMMERCIAL CONFIDENTIALITY,REDACTED COMMERCIAL CONFIDENTIALITY,"2,826.73"
Aug-2021,14239,North Lakes (Daniel Thwaites PLC),Room Hire,891.25
Aug-2021,15462,National Windscreens,Vehicle Adaptations - Capital,785.00
Aug-2021,16865,Neil Rudd Autocare,Vehicle Maintenance - Work Done Externally,639.03
Aug-2021,18412,Kentdale Veterinary Orthopaedics,Police Dogs - Vets Fees,"2,696.94"
Aug-2021,18440,P V Dobson and  Sons Motors Limited,Vehicle Maintenance - Parts Purchase,520.54
Aug-2021,18615,Volkswagen Group UK Ltd,Vehicle Maintenance - Parts Purchase,867.60
Aug-2021,11603,Reed Rains,Rent,800.00
Aug-2021,11156,Exgratia Payments,Ex-Gratia Payments,600.00
Aug-2021,12576,Exgratia Payments,Ex-Gratia Payments,"1,134.00"
Aug-2021,13225,CPOSA,Subscriptions,"2,208.33"
Aug-2021,11992,Harlow Printing Limited,External Printing,"1,200.00"
Aug-2021,12891,Brilliant Trees Media,Non-Staff Advertising,"3,000.00"
Aug-2021,13376,Xerox UK Ltd,Print Unit - Digital Copier Click Charges,"1,886.74"
Aug-2021,10340,Capita Translation and Interpreting (Applied Language Solutions Ltd),Interpreters Fees - Face to Face,"4,467.76"
Aug-2021,10341,Capita Translation and Interpreting (Applied Language Solutions Ltd),Interpreters Fees - Telephone,747.95
Aug-2021,10344,Capita Translation and Interpreting (Applied Language Solutions Ltd),Interpreters Fees - Face to Face,"2,677.51"
Aug-2021,10346,Capita Translation and Interpreting (Applied Language Solutions Ltd),Interpreters Fees - Translation (Written),"1,390.64"
Aug-2021,10463,Child Action Northwest,Detained Persons - Appropriate Adult Services,"6,889.26"
Aug-2021,10979,REDACTED COMMERCIAL CONFIDENTIALITY,REDACTED COMMERCIAL CONFIDENTIALITY,656.50
Aug-2021,12632,Comensura Ltd,Agency Staff,955.34
Aug-2021,12633,Comensura Ltd,Agency Staff,"1,015.19"
Aug-2021,12634,Comensura Ltd,Agency Staff,"1,184.99"
Aug-2021,12635,Comensura Ltd,Agency Staff,580.95
Aug-2021,12636,Comensura Ltd,Agency Staff,"2,095.34"
Aug-2021,12637,Comensura Ltd,Agency Staff,"1,006.98"
Aug-2021,12795,Agiito Limited,Hotel Accommodation - Training,600.00
Aug-2021,13012,Police and Crime Commissioner for Durham Constabulary,CID Training,"2,040.00"
Aug-2021,13064,G4S Health Services (UK) Ltd,Custody Medical Contract,"112,084.57"
Aug-2021,13065,G4S Health Services (UK) Ltd,Custody Medical Contract,"112,084.57"
Aug-2021,13066,G4S Health Services (UK) Ltd,Custody Medical Contract,"112,084.57"
Aug-2021,13067,G4S Health Services (UK) Ltd,Custody Medical Contract,"112,084.57"
Aug-2021,13450,REDACTED COMMERCIAL CONFIDENTIALITY,REDACTED COMMERCIAL CONFIDENTIALITY,"2,826.73"
Aug-2021,13451,REDACTED COMMERCIAL CONFIDENTIALITY,REDACTED COMMERCIAL CONFIDENTIALITY,"1,958.40"
Aug-2021,12796,Insight Direct (UK) Ltd,Other Support Function Training,"2,142.84"
Aug-2021,13105,Comensura Ltd,Agency Staff,732.40
Aug-2021,13106,Comensura Ltd,Agency Staff,732.40
Aug-2021,13107,Comensura Ltd,Agency Staff,732.40
Aug-2021,13108,Comensura Ltd,Agency Staff,732.40
Aug-2021,13109,Comensura Ltd,Agency Staff,732.40
Aug-2021,13111,Comensura Ltd,Agency Staff,732.40
Aug-2021,13112,Comensura Ltd,Agency Staff,732.40
Aug-2021,11037,Precor,Gym Equipment - Purchase,"1,057.38"
Aug-2021,11042,Precor,Gym Equipment - Purchase,"3,132.25"
Aug-2021,12977,Mark Tubman (Locksmith & Joinery),Crime Prevention - Labour Costs / Fitting,565.00
Aug-2021,11730,Enterprise Rent-a-car UK Limited,Vehicle Hire - Long Term,630.84
Aug-2021,12789,Insight Direct (UK) Ltd,Other Support Function Training,"1,224.48"
Aug-2021,12841,Insight Direct (UK) Ltd,Other Support Function Training,"1,836.72"
Aug-2021,12865,Centric Office Solutions Limited,Furniture - General,"1,780.00"
Aug-2021,18251,Long Lane Garage,Accident Damage (Below Insurance Threshold),"1,000.00"
Aug-2021,18254,Long Lane Garage,Accident Damage (Below Insurance Threshold),"1,000.00"
Aug-2021,10041,MHR International UK LTD,Payroll Services,"15,856.50"
Aug-2021,10176,Grant Thornton UK LLP,External Audit Fee,"2,887.50"
Aug-2021,10285,XPS Administration Limited T/A XPS Administration,Consultants Fees - Finance,750.00
Aug-2021,12321,UK Oracle User Group,Subscriptions,500.00
Aug-2021,12340,Gallagher Bassett,Settlement of 3rd Party Claims for damage to property / vehicles,"7,773.00"
Aug-2021,12341,Gallagher Bassett,Settlement of 3rd Party Claims for damage to property / vehicles,"1,815.18"
Aug-2021,13475,PPL PRS Ltd,Subscriptions,"8,684.67"
Aug-2021,10027,SMSR Ltd,Consultants Fees - Other,950.00
Aug-2021,10900,Treble 5 Treble 1 Ltd,Crimestoppers,"3,485.00"
Aug-2021,13253,Research & Intelligence Support Centre Ltd (RISC),Other Support Function Training,"3,875.00"
Aug-2021,18782,Home Office,Communication Auto Services - OS,"20,269.52"
Aug-2021,12713,Comensura Ltd,Agency Staff,716.68
Aug-2021,12714,Comensura Ltd,Agency Staff,697.82
Aug-2021,12717,Comensura Ltd,Agency Staff,631.81
Aug-2021,10125,Cell Security Limited,Unplanned Building Maintenance Environmental Services/Plumbing,"1,422.44"
Aug-2021,10166,Peugeot Motor Company Plc,Vehicle Purchases - Capital,"21,994.88"
Aug-2021,10471,Water and Air Management Limited,Planned Servicing Water Chlorination,835.00
Aug-2021,10573,Carigiet Cowen,Legal Fees (Property Sale),"2,000.00"
Aug-2021,11060,JJ Group (Contracting) Ltd,Unplanned Building Services Security & Security Equipment Maintenance,"4,364.58"
Aug-2021,11251,Lambert-gill Ltd,North West Ambulance Service - Estates Management Collaboration,"9,648.00"
Aug-2021,11279,Frederick Potts and Sons Ltd,Estates Leases,787.50
Aug-2021,11314,BMW  Group GB Ltd,Other Support Function Training,"1,750.00"
Aug-2021,11372,S Nicholson Grounds Maintenance,Grounds Maintenance - Contract,700.00
Aug-2021,11644,Pioneer Foodservice,Canteen - Purchase of Food / Ingredients,508.48
Aug-2021,11649,Pioneer Foodservice,Canteen - Purchase of Food / Ingredients,"1,220.05"
Aug-2021,11670,Pioneer Foodservice,Canteen - Purchase of Food / Ingredients,568.06
Aug-2021,11671,Pioneer Foodservice,Canteen - Purchase of Food / Ingredients,688.34
Aug-2021,11672,Pioneer Foodservice,Canteen - Purchase of Food / Ingredients,778.23
Aug-2021,11677,Caterite Food and Wine Services,Canteen - Purchase of Food / Ingredients,514.74
Aug-2021,11700,Bulloughs Cleaning Services Ltd,Cleaning Contract,"14,175.30"
Aug-2021,11701,Bulloughs Cleaning Services Ltd,Cleaning Contract,"4,842.90"
Aug-2021,11702,Bulloughs Cleaning Services Ltd,Cleaning Contract,648.11
Aug-2021,11704,Bulloughs Cleaning Services Ltd,Cleaning Contract,"5,756.68"
Aug-2021,11708,Bulloughs Cleaning Services Ltd,Cleaning Contract,"2,840.22"
Aug-2021,11709,Bulloughs Cleaning Services Ltd,Cleaning Contract,"4,342.29"
Aug-2021,11710,Bulloughs Cleaning Services Ltd,Cleaning Contract,"1,101.77"
Aug-2021,11711,Bulloughs Cleaning Services Ltd,Cleaning Contract,518.48
Aug-2021,11712,Bulloughs Cleaning Services Ltd,Cleaning Contract,648.10
Aug-2021,11715,Bulloughs Cleaning Services Ltd,Cleaning Contract,"2,962.27"
Aug-2021,11717,Bulloughs Cleaning Services Ltd,Cleaning Contract,"1,620.25"
Aug-2021,11740,Goodyear Dunlop Tyres UK Limited,Vehicle Maintenance - Tyres & Tubes,"8,101.28"
Aug-2021,11751,West Cumbria Estates Management Limited,PFI Occupancy Charges,"106,200.00"
Aug-2021,11768,Allstar Business Solutions Ltd,Vehicle Fuel,"2,251.96"
Aug-2021,11778,Portable Multimedia Ltd,Vehicle Adaptations - Capital,"3,021.00"
Aug-2021,11801,Allstar Business Solutions Ltd,Vehicle Fuel,767.90
Aug-2021,11802,Allstar Business Solutions Ltd,Vehicle Fuel,"3,200.79"
Aug-2021,11803,Allstar Business Solutions Ltd,Vehicle Fuel,"1,423.21"
Aug-2021,11804,Allstar Business Solutions Ltd,Vehicle Fuel,"1,348.00"
Aug-2021,11805,Allstar Business Solutions Ltd,Vehicle Fuel,"1,636.98"
Aug-2021,11806,Allstar Business Solutions Ltd,Vehicle Fuel,872.05
Aug-2021,12021,Pointer Ltd,Unplanned Building Maintenance Safety Works,667.82
Aug-2021,12110,FMG Support (RRRM) Ltd,Police Vehicle Recovery & Transport,"2,864.00"
Aug-2021,12133,Contract Flooring Cumbria Ltd,Unplanned Building Maintenance Internal Maintenance,"1,188.00"
Aug-2021,12161,Allstar Business Solutions Ltd,Vehicle Fuel,540.64
Aug-2021,12162,Allstar Business Solutions Ltd,Vehicle Fuel,948.56
Aug-2021,12163,Allstar Business Solutions Ltd,Vehicle Fuel,"63,589.58"
Aug-2021,12252,Pod Point Limited,Planned Survey Electrics,"2,305.00"
Aug-2021,12374,Bulloughs Cleaning Services Ltd,Cleaning Contract,"4,842.90"
Aug-2021,12375,Bulloughs Cleaning Services Ltd,Cleaning Contract,"14,175.30"
Aug-2021,12376,Bulloughs Cleaning Services Ltd,Cleaning Contract,648.11
Aug-2021,12378,Bulloughs Cleaning Services Ltd,Cleaning Contract,"5,756.68"
Aug-2021,12382,Bulloughs Cleaning Services Ltd,Cleaning Contract,"2,840.22"
Aug-2021,12383,Bulloughs Cleaning Services Ltd,Cleaning Contract,"4,342.29"
Aug-2021,12384,Bulloughs Cleaning Services Ltd,Cleaning Contract,"1,101.77"
Aug-2021,12385,Bulloughs Cleaning Services Ltd,Cleaning Contract,518.48
Aug-2021,12386,Bulloughs Cleaning Services Ltd,Cleaning Contract,648.10
Aug-2021,12389,Bulloughs Cleaning Services Ltd,Cleaning Contract,"2,962.27"
Aug-2021,12391,Bulloughs Cleaning Services Ltd,Cleaning Contract,"1,620.25"
Aug-2021,12611,REDACTED COMMERCIAL CONFIDENTIALITY,REDACTED COMMERCIAL CONFIDENTIALITY,705.00
Aug-2021,12760,Autoparts Garage Services,Workshop Equipment & Tools - Servicing / Repairs,723.14
Aug-2021,12792,Autoparts Garage Services,Workshop Equipment & Tools - Servicing / Repairs,"1,040.00"
Aug-2021,12793,Autoparts Garage Services,Workshop Equipment & Tools - Servicing / Repairs,756.48
Aug-2021,12863,Autoparts Garage Services,Workshop Equipment & Tools - Servicing / Repairs,690.47
Aug-2021,12864,Zip Heaters UK Ltd t a Zip Water,Planned Survey Environmental Services/Plumbing,"3,402.85"
Aug-2021,12879,Carlisle Refrigeration Limited,Unplanned Building Maintenance Environmental Services/Plumbing,871.85
Aug-2021,12897,BID Group Ltd,North West Ambulance Service - Estates Management Collaboration,"1,619.00"
Aug-2021,12908,Pointer Ltd,Unplanned Building Maintenance Safety Works,857.72
Aug-2021,12909,Airborne Environmental Consultants Ltd,Other Support Function Training,680.00
Aug-2021,13058,EDF Energy,Electricity,"1,765.94"
Aug-2021,13062,Baker Mallett LLP,Professional Fees,"1,120.00"
Aug-2021,13078,City Electrical Factors Ltd,Refuse,"1,820.74"
Aug-2021,13166,PHS Group Plc,Clinical & Hazardous Waste,819.32
Aug-2021,13254,BID Group Ltd,North West Ambulance Service - Estates Management Collaboration,551.25
Aug-2021,13255,EDF Energy,Electricity,"50,240.31"
Aug-2021,13256,EDF Energy,Climate Change Levy,"2,811.65"
Aug-2021,13257,Total Gas & Power Limited,Gas,"2,303.06"
Aug-2021,13259,Total Gas & Power Limited,Gas,979.22
Aug-2021,13261,Total Gas & Power Limited,Gas,576.96
Aug-2021,13263,Total Gas & Power Limited,Gas,762.60
Aug-2021,13265,Total Gas & Power Limited,Gas,"2,406.27"
Aug-2021,13269,Total Gas & Power Limited,Gas,"3,814.04"
Aug-2021,13270,Total Gas & Power Limited,Climate Change Levy,680.98
Aug-2021,13271,Total Gas & Power Limited,Gas,802.87
Aug-2021,13278,Aberswift De-Leading Specialists Limited,Planned Servicing Firearms - Bullet Trap etc,"3,420.00"
Aug-2021,13292,Ford Motor Company Limited,Vehicle Purchases - Capital,"28,904.72"
Aug-2021,13293,Ford Motor Company Limited,Vehicle Purchases - Capital,"28,904.72"
Aug-2021,13294,Ford Motor Company Limited,Vehicle Purchases - Capital,"28,904.72"
Aug-2021,13295,Ford Motor Company Limited,Vehicle Purchases - Capital,"28,904.72"
Aug-2021,13296,Ford Motor Company Limited,Vehicle Purchases - Capital,"28,904.72"
Aug-2021,13297,Ford Motor Company Limited,Vehicle Purchases - Capital,"28,904.72"
Aug-2021,13298,Ford Motor Company Limited,Vehicle Purchases - Capital,"28,904.72"
Aug-2021,13299,Ford Motor Company Limited,Vehicle Purchases - Capital,"28,904.72"
Aug-2021,13300,Ford Motor Company Limited,Vehicle Purchases - Capital,"28,904.72"
Aug-2021,13301,Ford Motor Company Limited,Vehicle Purchases - Capital,"28,904.72"
Aug-2021,13302,Ford Motor Company Limited,Vehicle Purchases - Capital,"28,904.72"
Aug-2021,13303,Ford Motor Company Limited,Vehicle Purchases - Capital,"28,904.72"
Aug-2021,13335,Michael Thompson Limited,North West Ambulance Service - Estates Management Collaboration,"1,632.00"
Aug-2021,13336,Michael Thompson Limited,North West Ambulance Service - Estates Management Collaboration,"1,802.00"
Aug-2021,13337,Michael Thompson Limited,North West Ambulance Service - Estates Management Collaboration,"3,050.00"
Aug-2021,13338,Dawson Electrical Services Ltd,North West Ambulance Service - Estates Management Collaboration,920.00
Aug-2021,13339,Total Gas & Power Limited,Gas,"5,415.96"
Aug-2021,13340,Total Gas & Power Limited,Climate Change Levy,931.93
Aug-2021,13341,Castle Water Limited,Metered Water,"7,125.58"
Aug-2021,13342,Castle Water Limited,Sewerage & Environmental Services,"8,421.42"
Aug-2021,13355,PHS Group Plc,Clinical & Hazardous Waste,"1,103.93"
Aug-2021,13356,Bulloughs Cleaning Services Ltd,Cleaning Contract,"1,115.00"
Aug-2021,13394,Northern Steeplejacks Ltd,North West Ambulance Service - Estates Management Collaboration,"4,280.00"
Aug-2021,13409,Frederick Potts and Sons Ltd,Unplanned Building Services Internal Other,508.17
Aug-2021,13410,Frederick Potts and Sons Ltd,North West Ambulance Service - Estates Management Collaboration,862.49
Aug-2021,13414,CSS Engineering Solutions Limited,Vehicle Maintenance - Parts Purchase,"1,072.50"
Aug-2021,13416,Frederick Potts and Sons Ltd,Unplanned Building Maintenance External Maintenance,"1,051.93"
Aug-2021,13430,BID Group Ltd,North West Ambulance Service - Estates Management Collaboration,653.75
Aug-2021,13431,BID Group Ltd,North West Ambulance Service - Estates Management Collaboration,"1,250.00"
Aug-2021,13472,Aberswift De-Leading Specialists Limited,Unplanned Building Maintenance Internal Maintenance,"1,176.00"
Aug-2021,13485,Chubb Locks Custodial Services Ltd,Unplanned Building Services Security & Security Equipment Maintenance,917.89
Aug-2021,15702,BID Group Ltd,North West Ambulance Service - Estates Management Collaboration,"1,619.00"
Aug-2021,15710,BID Group Ltd,North West Ambulance Service - Estates Management Collaboration,"-1,619.00"
Aug-2021,16448,Frederick Potts and Sons Ltd,North West Ambulance Service - Estates Management Collaboration,831.00
Aug-2021,12991,Shortridge Ltd,Detained Persons - Laundry,"1,211.96"
Aug-2021,13440,Arrow County Supplies,Cleaning Materials,681.60
Aug-2021,15974,Thompson Accident Repair Centre Ltd,Accident Damage (Below Insurance Threshold),"1,000.00"
Aug-2021,15982,Thompson Accident Repair Centre Ltd,Accident Damage (Below Insurance Threshold),835.80
Aug-2021,16290,Arnold Clark Automobiles Ltd,Vehicle Maintenance - Parts Purchase,"1,339.30"
Aug-2021,16292,Arnold Clark Automobiles Ltd,Vehicle Maintenance - Parts Purchase,"1,131.89"
Aug-2021,16350,Whinmill Farm Canine Centre,Stray Animals Costs,"1,310.00"
Aug-2021,16352,Whinmill Farm Canine Centre,Stray Animals Costs,"1,059.88"
Aug-2021,17847,Arnold Clark Automobiles Ltd,Vehicle Maintenance - Parts Purchase,806.12
Aug-2021,10585,REDACTED COMMERCIAL CONFIDENTIALITY,REDACTED COMMERCIAL CONFIDENTIALITY,"1,737.84"
Aug-2021,10586,REDACTED COMMERCIAL CONFIDENTIALITY,REDACTED COMMERCIAL CONFIDENTIALITY,"1,838.10"
Aug-2021,10611,Orchid Cellmark Ltd,Forensic Analysis - Serious Crime,794.60
Aug-2021,10612,Orchid Cellmark Ltd,Forensic Analysis - Serious Crime,649.60
Aug-2021,10613,Orchid Cellmark Ltd,Forensic Analysis - Serious Crime,649.60
Aug-2021,10625,Orchid Cellmark Ltd,Forensic Analysis - Over Prescribed Limit,917.85
Aug-2021,10626,Orchid Cellmark Ltd,Forensic Analysis - Serious Crime,867.10
Aug-2021,10627,Orchid Cellmark Ltd,Forensic Analysis - Serious Crime,746.75
Aug-2021,10629,Orchid Cellmark Ltd,Forensic Analysis - Volume Crime,"1,299.20"
Aug-2021,10795,Key Forensic Services Ltd (Orange UK Holdings Ltd),Forensic Analysis - Serious Crime,"2,924.35"
Aug-2021,10797,Key Forensic Services Ltd (Orange UK Holdings Ltd),Forensic Analysis - Volume Crime,"2,056.20"
Aug-2021,10799,Key Forensic Services Ltd (Orange UK Holdings Ltd),Forensic Analysis - Over Prescribed Limit,652.50
Aug-2021,10800,Key Forensic Services Ltd (Orange UK Holdings Ltd),Forensic Analysis - Over Prescribed Limit,"1,152.75"
Aug-2021,10802,Key Forensic Services Ltd (Orange UK Holdings Ltd),Forensic Analysis - Serious Crime,765.60
Aug-2021,10803,Key Forensic Services Ltd (Orange UK Holdings Ltd),Forensic Analysis - Volume Crime,"2,552.00"
Aug-2021,10804,Key Forensic Services Ltd (Orange UK Holdings Ltd),Forensic Analysis - Serious Crime,"1,508.00"
Aug-2021,11155,Wex Photo Video,Photographic & Imaging,627.08
Aug-2021,11415,University of Central Lancashire,CID Training,"4,000.00"
Aug-2021,11416,University of Central Lancashire,Hotel Accommodation - Training,"1,081.50"
Aug-2021,12786,Wex Photo Video,CSI Consumables,"1,165.00"
Aug-2021,13321,MilCase Ltd,CSI Consumables,"1,015.17"
Aug-2021,13331,Scenesafe,Operational Equipment - Other,"1,840.00"
Aug-2021,13437,Analytical Services International Ltd,Forensic Analysis - Over Prescribed Limit,"11,025.00"
Aug-2021,13438,Analytical Services International Ltd,Forensic Analysis - Over Prescribed Limit,"5,925.00"
Aug-2021,13439,Analytical Services International Ltd,Forensic Analysis - Over Prescribed Limit,"4,725.00"
Aug-2021,12362,North Lakes (Daniel Thwaites PLC),Catering - Meetings,541.67
Aug-2021,12671,Comensura Ltd,Agency Staff,663.01
Aug-2021,12673,Comensura Ltd,Agency Staff,741.01
Aug-2021,12674,Comensura Ltd,Agency Staff,624.00
Aug-2021,12675,Comensura Ltd,Agency Staff,624.00
Aug-2021,12676,Comensura Ltd,Agency Staff,624.00
Aug-2021,10038,Vodafone Limited,Networks Private Circuits,"5,987.22"
Aug-2021,10108,MHR International UK LTD,Computer Software - Purchase,"1,500.00"
Aug-2021,10187,Xerox UK Ltd,Computer & Printer Consumables,"3,184.09"
Aug-2021,10215,Softcat PLC,Computer Software - Maintenance,"60,939.00"
Aug-2021,10219,Softcat PLC,Computer Software - Maintenance,"10,948.00"
Aug-2021,10250,Phoenix Software Ltd,Computer Software - Maintenance,"3,051.53"
Aug-2021,10254,Vodafone Limited,Networks Private Circuits,"11,876.21"
Aug-2021,10260,Vodafone Limited,Networks Private Circuits,"12,585.08"
Aug-2021,10261,Vodafone Limited,Networks Private Circuits,"12,585.08"
Aug-2021,11311,GPD Installation Services Ltd,Radio / Airwave Equipment - Purchases,"5,940.00"
Aug-2021,11727,Sepura PLC,Radio / Airwave Equipment - Purchases,"12,160.00"
Aug-2021,12562,TalkTalk,Telephone Charges - Landlines,"2,562.70"
Aug-2021,12737,MHR International UK LTD,Consultants Fees - ICT,"1,348.47"
Aug-2021,12809,Vodafone Limited,Networks Private Circuits,"1,776.00"
Aug-2021,13019,SCC (Specialist Computer Centre),Computer Hardware - Purchase,"6,057.20"
Aug-2021,13038,Xerox UK Ltd,Computer & Printer Consumables,637.02
Aug-2021,13088,EE Limited,Telephone Charges - Mobile Phones,"8,635.51"
Aug-2021,13229,Nominet Uk,Networks Private Circuits,"1,738.58"
Aug-2021,13282,Stone Computers Ltd,Computer Hardware - Purchase,"60,070.00"
Aug-2021,13332,Civica UK Ltd,Computer Software - Maintenance,"14,149.72"
Aug-2021,13362,Vodafone Limited,Networks Private Circuits,"3,958.16"
Aug-2021,13363,Vodafone Limited,Networks Private Circuits,"3,958.16"
Aug-2021,13364,Vodafone Limited,Networks Private Circuits,"3,958.16"
Aug-2021,13373,Tisski Limited,Consultants Fees - ICT,"52,025.00"
Aug-2021,13378,asDarts Inh Andreas Huber,Computer Software - Maintenance,781.13
Aug-2021,13417,Mayors Office for Policing and Crime,National Police ICT Service Charges,"8,993.55"
Aug-2021,13418,British Telecom,Networks Private Circuits,758.70
Aug-2021,13419,British Telecom,Telephone Charges - Landlines,"9,349.57"
Aug-2021,13501,Vodafone Limited,Networks Private Circuits,"12,585.08"
Aug-2021,10298,University of Cumbria,Other Support Function Training,560.00
Aug-2021,10299,University of Cumbria,Other Support Function Training,560.00
Aug-2021,10300,University of Cumbria,Other Support Function Training,560.00
Aug-2021,10301,University of Cumbria,Other Support Function Training,560.00
Aug-2021,10302,University of Cumbria,Other Support Function Training,560.00
Aug-2021,11126,Agiito Limited,Hotel Accommodation - Training,"1,540.00"
Aug-2021,11866,Agiito Limited,Hotel Accommodation - Training,500.00
Aug-2021,12220,Agiito Limited,Hotel Accommodation - Training,633.44
Aug-2021,12283,Agiito Limited,Hotel Accommodation - Training,850.32
Aug-2021,12299,Agiito Limited,Hotel Accommodation - Training,"1,112.84"
Aug-2021,12300,Agiito Limited,Hotel Accommodation - Training,"2,044.24"
Aug-2021,12703,Comensura Ltd,Agency Staff,535.80
Aug-2021,12704,Comensura Ltd,Agency Staff,"1,071.60"
Aug-2021,12705,Comensura Ltd,Agency Staff,535.80
Aug-2021,12706,Comensura Ltd,Agency Staff,"1,071.60"
Aug-2021,12707,Comensura Ltd,Agency Staff,"1,071.60"
Aug-2021,12708,Comensura Ltd,Agency Staff,669.75
Aug-2021,13024,REDACTED COMMERCIAL CONFIDENTIALITY,REDACTED COMMERCIAL CONFIDENTIALITY,"2,520.00"
Aug-2021,13025,REDACTED COMMERCIAL CONFIDENTIALITY,REDACTED COMMERCIAL CONFIDENTIALITY,"2,520.00"
Aug-2021,13030,REDACTED COMMERCIAL CONFIDENTIALITY,REDACTED COMMERCIAL CONFIDENTIALITY,"2,520.00"
Aug-2021,13247,REDACTED COMMERCIAL CONFIDENTIALITY,REDACTED COMMERCIAL CONFIDENTIALITY,595.00
Aug-2021,13248,REDACTED COMMERCIAL CONFIDENTIALITY,REDACTED COMMERCIAL CONFIDENTIALITY,"1,190.00"
Aug-2021,13330,Mancunian Health Limited,Force Doctor Fees,"2,700.00"
Aug-2021,13350,Mancunian Health Limited,Force Doctor Fees,"2,700.00"
Aug-2021,13369,REDACTED COMMERCIAL CONFIDENTIALITY,REDACTED COMMERCIAL CONFIDENTIALITY,720.00
Aug-2021,13412,Nationwide Pathology,Blood Screening,520.00
Aug-2021,13447,REDACTED COMMERCIAL CONFIDENTIALITY,REDACTED COMMERCIAL CONFIDENTIALITY,"1,500.00"
Aug-2021,18442,P V Dobson and  Sons Motors Limited,Vehicle Maintenance - Parts Purchase,"2,563.67"
Aug-2021,12535,Bulloughs Cleaning Services Ltd,Cleaning Contract,"11,598.63"
Aug-2021,13349,Bulloughs Cleaning Services Ltd,Cleaning Contract,869.44
Aug-2021,10016,Victim Support,Contributions - PCC Commissioning Services,"14,394.92"
Aug-2021,10017,Victim Support,Contributions - PCC Commissioning Services,"74,509.25"
Aug-2021,10316,Victim Support,Contributions - PCC Commissioning Services,"6,666.66"
Aug-2021,10518,Police and Crime Commissioner for Derbyshire,Contributions - PCC Commissioning Services,"-14,635.00"
Aug-2021,10519,Police and Crime Commissioner for Derbyshire,Contributions - PCC Commissioning Services,"14,635.00"
Aug-2021,10525,Police and Crime Commissioner for Kent,Contributions - PCC Commissioning Services,"187,984.45"
Aug-2021,10687,Eurofins Forensic Services Ltd,Forensic Analysis - Serious Crime,"1,353.51"
Aug-2021,11064,Treble 5 Treble 1 Ltd,Contributions - PCC Commissioning Services,"2,103.75"
Aug-2021,12037,Brathay Trust,Contributions - PCC Commissioning Services,"6,728.50"
Aug-2021,12254,North Cumbria Integrated care NHS Foundation Trust (NCIC NHS FT),Rent,"1,400.00"
Aug-2021,12258,Remedi Restorative Services,Contributions - PCC Commissioning Services,"11,641.66"
Aug-2021,12920,G4S Health Services (UK) Ltd,SARC Doctors,"20,021.71"
Aug-2021,12921,G4S Health Services (UK) Ltd,SARC Doctors,"20,021.71"
Aug-2021,12922,G4S Health Services (UK) Ltd,SARC Doctors,"20,021.71"
Aug-2021,12923,G4S Health Services (UK) Ltd,SARC Doctors,"20,021.71"
Aug-2021,12948,North Cumbria Integrated care NHS Foundation Trust (NCIC NHS FT),Cleaning Contract,743.47
Aug-2021,12949,North Cumbria Integrated care NHS Foundation Trust (NCIC NHS FT),Cleaning Contract,"-1,486.94"
Aug-2021,12950,North Cumbria Integrated care NHS Foundation Trust (NCIC NHS FT),SARC Forensic Cleaning,-743.47
Aug-2021,12951,North Cumbria Integrated care NHS Foundation Trust (NCIC NHS FT),Cleaning Contract,"1,486.94"
Aug-2021,12952,North Cumbria Integrated care NHS Foundation Trust (NCIC NHS FT),SARC Forensic Cleaning,743.47
Aug-2021,12953,North Cumbria Integrated care NHS Foundation Trust (NCIC NHS FT),Cleaning Contract,743.47
Aug-2021,13367,The Well Communities C.I.C,Contributions - PCC Commissioning Services,"15,369.52"
Aug-2021,10110,Grant Thornton UK LLP,External Audit Fee,"5,840.00"
Aug-2021,11217,42 Creative Thinking Ltd,External Printing,700.00
Aug-2021,12832,Newsquest Media Group,Non-Staff Advertising,500.00
Aug-2021,12833,Newsquest Media Group,Non-Staff Advertising,"1,020.00"
Sep-2021,10958,Car-Port UK Ltd,Vehicle Hire - Long Term,"1,980.00"
Sep-2021,12185,Enterprise Rent-a-car UK Limited,Vehicle Hire - Short term,561.40
Sep-2021,12186,Enterprise Rent-a-car UK Limited,Vehicle Hire - Short term,561.40
Sep-2021,12232,Dawson Electrical Services Ltd,Unplanned Building Services Electrics,640.00
Sep-2021,13164,REDACTED COMMERCIAL CONFIDENTIALITY,REDACTED COMMERCIAL CONFIDENTIALITY,"13,866.67"
Sep-2021,13165,REDACTED COMMERCIAL CONFIDENTIALITY,REDACTED COMMERCIAL CONFIDENTIALITY,"3,047.60"
Sep-2021,13285,A W Blake Ltd,Temporary Toilet Units / Washing Facilities,"1,140.00"
Sep-2021,13328,DTL Marquee hire,Room Hire,950.00
Sep-2021,13426,REDACTED COMMERCIAL CONFIDENTIALITY,REDACTED COMMERCIAL CONFIDENTIALITY,704.00
Sep-2021,10362,REDACTED COMMERCIAL CONFIDENTIALITY,REDACTED COMMERCIAL CONFIDENTIALITY,869.90
Sep-2021,10364,REDACTED COMMERCIAL CONFIDENTIALITY,REDACTED COMMERCIAL CONFIDENTIALITY,904.71
Sep-2021,10374,REDACTED COMMERCIAL CONFIDENTIALITY,REDACTED COMMERCIAL CONFIDENTIALITY,500.82
Sep-2021,10386,REDACTED COMMERCIAL CONFIDENTIALITY,REDACTED COMMERCIAL CONFIDENTIALITY,564.84
Sep-2021,10388,REDACTED COMMERCIAL CONFIDENTIALITY,REDACTED COMMERCIAL CONFIDENTIALITY,526.68
Sep-2021,10422,XPS Administration Limited T/A XPS Administration,Pension Services,"8,911.16"
Sep-2021,10435,REDACTED COMMERCIAL CONFIDENTIALITY,REDACTED COMMERCIAL CONFIDENTIALITY,600.93
Sep-2021,10437,REDACTED COMMERCIAL CONFIDENTIALITY,REDACTED COMMERCIAL CONFIDENTIALITY,584.13
Sep-2021,11073,Pitney Bowes Ltd,Postage Costs,"5,249.36"
Sep-2021,11074,Pitney Bowes Ltd,Postage Costs,"5,172.49"
Sep-2021,12026,Cumbria County Council,Courier Services - Internal Deliveries,"3,000.54"
Sep-2021,12355,Enterprise Car Club,Vehicle Hire - Car Share Scheme,"3,720.00"
Sep-2021,13015,Scenesafe,Staff Clothing & Police Uniform,"2,015.05"
Sep-2021,13454,REDACTED COMMERCIAL CONFIDENTIALITY,REDACTED COMMERCIAL CONFIDENTIALITY,"58,742.35"
Sep-2021,13599,Thomas Graham and Sons Limited,Other Cleaning & Domestic Equipment,630.00
Sep-2021,13735,Thomas Graham and Sons Limited,Cleaning Materials,603.08
Sep-2021,13760,SBI TacPro,Protective Clothing,"1,756.20"
Sep-2021,13826,Thomas Graham and Sons Limited,Cleaning Materials,569.70
Sep-2021,13829,Controlaccount plc,Courier Services - External,741.17
Sep-2021,14501,REDACTED COMMERCIAL CONFIDENTIALITY,REDACTED COMMERCIAL CONFIDENTIALITY,"1,434.50"
Sep-2021,12993,Shortridge Ltd,Detained Persons - Laundry,"1,088.88"
Sep-2021,13076,Arrow County Supplies,Cleaning Materials,"1,287.20"
Sep-2021,13221,Sonic Communications Int Ltd,Protective Clothing,654.50
Sep-2021,13366,Kirkbride Eyecare,Protective Clothing,551.20
Sep-2021,13455,Bidfood,Detained Persons - Meals / Refreshments,530.24
Sep-2021,13456,Charles Fellows Supplies Limited,Detained Persons - Clothing,580.40
Sep-2021,13507,Antalis UK,Print Unit - Paper,506.00
Sep-2021,13508,Arrow County Supplies,Cleaning Materials,"1,363.20"
Sep-2021,13629,Charles Fellows Supplies Limited,Detained Persons - Clothing,"2,730.00"
Sep-2021,13857,Rapid Secure Ltd,Ex-Gratia Payments,"1,245.00"
Sep-2021,16821,Arnold Clark Automobiles Ltd,Vehicle Maintenance - Parts Purchase,593.39
Sep-2021,17063,P & HM Ferguson,Vehicle Maintenance - Parts Purchase,964.99
Sep-2021,17841,Arnold Clark Automobiles Ltd,Vehicle Maintenance - Parts Purchase,569.44
Sep-2021,17851,Arnold Clark Automobiles Ltd,Vehicle Maintenance - Parts Purchase,"1,032.22"
Sep-2021,12208,Police and Crime Commissioner for Cheshire,Other Operational Training,"1,175.44"
Sep-2021,12209,Police and Crime Commissioner for Cheshire,Other Operational Training,"1,000.00"
Sep-2021,12846,REDACTED COMMERCIAL CONFIDENTIALITY,REDACTED COMMERCIAL CONFIDENTIALITY,"1,920.00"
Sep-2021,13413,Kirkbride Eyecare,Protective Clothing,551.20
Sep-2021,13452,Centric Office Solutions Limited,Furniture - DSE Specialist Furniture,560.00
Sep-2021,10411,Frame Swift and Partners LLP,Police Dogs - Vets Fees,"2,466.72"
Sep-2021,10492,FMG Support (RRRM) Ltd,Vehicle Recovery Costs,"1,145.00"
Sep-2021,12207,Police and Crime Commissioner for Cheshire,Other Operational Training,"1,175.43"
Sep-2021,12314,Tranam Limited,Protective Clothing,"1,148.32"
Sep-2021,12334,Police and Crime Commissioner for Cheshire,Other Operational Training,962.78
Sep-2021,12372,Agiito Limited,Hotel Accommodation - Training,586.18
Sep-2021,12880,Eden Valley Railway Company,Rent,"1,000.00"
Sep-2021,12983,College of Policing (NPIA),CID Training,"1,283.00"
Sep-2021,13055,United Shield International Ltd,Firearms Equipment,"5,280.00"
Sep-2021,13137,Agiito Limited,Hotel Accommodation - Training,660.54
Sep-2021,13232,Agiito Limited,Hotel Accommodation - Training,"1,203.03"
Sep-2021,13233,Agiito Limited,Hotel Accommodation - Training,"2,080.00"
Sep-2021,13352,College of Policing (NPIA),Hotel Accommodation - Training,610.00
Sep-2021,13354,College of Policing (NPIA),Hotel Accommodation - Training,538.00
Sep-2021,13406,Tranam Limited,Protective Clothing,677.08
Sep-2021,13457,REDACTED COMMERCIAL CONFIDENTIALITY,REDACTED COMMERCIAL CONFIDENTIALITY,"1,620.00"
Sep-2021,13477,Ai Training Services Ltd,Other Operational Training,"6,930.00"
Sep-2021,13580,REDACTED COMMERCIAL CONFIDENTIALITY,REDACTED COMMERCIAL CONFIDENTIALITY,572.00
Sep-2021,15464,National Windscreens,Accident Damage (Below Insurance Threshold),617.24
Sep-2021,15756,Lloyd Motors Ltd,Accident Damage (Below Insurance Threshold),"1,000.00"
Sep-2021,15977,Thompson Accident Repair Centre Ltd,Accident Damage (Below Insurance Threshold),"1,000.00"
Sep-2021,16354,REDACTED COMMERCIAL CONFIDENTIALITY,REDACTED COMMERCIAL CONFIDENTIALITY,878.00
Sep-2021,16685,Lloyd Motorrad,Vehicle Maintenance - Work Done Externally,784.38
Sep-2021,16691,Lloyd Motorrad,Vehicle Maintenance - Work Done Externally,903.20
Sep-2021,18444,REDACTED COMMERCIAL CONFIDENTIALITY,REDACTED COMMERCIAL CONFIDENTIALITY,783.54
Sep-2021,18448,REDACTED COMMERCIAL CONFIDENTIALITY,REDACTED COMMERCIAL CONFIDENTIALITY,"1,461.96"
Sep-2021,18613,Volkswagen Group UK Ltd,Vehicle Maintenance - Parts Purchase,549.53
Sep-2021,18617,Volkswagen Group UK Ltd,Accident Damage (Below Insurance Threshold),744.77
Sep-2021,11604,Reed Rains,Rent,800.00
Sep-2021,10214,Agiito Limited,Hotel Accommodation - Training,570.80
Sep-2021,11257,British Association for Women in Policing,Presentations & Awards Ceremonies,740.00
Sep-2021,12914,REDACTED COMMERCIAL CONFIDENTIALITY,REDACTED COMMERCIAL CONFIDENTIALITY,"2,896.00"
Sep-2021,12767,Granicus LLC (formerly GovDelivery LLC),Subscriptions,"6,740.70"
Sep-2021,13223,H and H Reed's Printers Ltd,External Printing,"1,591.00"
Sep-2021,13637,Newsquest Media Group,Non-Staff Advertising,"9,000.00"
Sep-2021,10464,Child Action Northwest,Detained Persons - Appropriate Adult Services,"7,770.98"
Sep-2021,10980,REDACTED COMMERCIAL CONFIDENTIALITY,REDACTED COMMERCIAL CONFIDENTIALITY,668.11
Sep-2021,10984,REDACTED COMMERCIAL CONFIDENTIALITY,REDACTED COMMERCIAL CONFIDENTIALITY,938.00
Sep-2021,10985,REDACTED COMMERCIAL CONFIDENTIALITY,REDACTED COMMERCIAL CONFIDENTIALITY,623.35
Sep-2021,11001,REDACTED COMMERCIAL CONFIDENTIALITY,REDACTED COMMERCIAL CONFIDENTIALITY,531.58
Sep-2021,11869,College of Policing (NPIA),CID Training,"1,550.00"
Sep-2021,12639,Comensura Ltd,Agency Staff,955.34
Sep-2021,12640,Comensura Ltd,Agency Staff,955.34
Sep-2021,12641,Comensura Ltd,Agency Staff,955.34
Sep-2021,12642,Comensura Ltd,Agency Staff,955.34
Sep-2021,13068,G4S Health Services (UK) Ltd,Custody Medical Contract,"112,084.57"
Sep-2021,13069,G4S Health Services (UK) Ltd,Custody Medical Contract,"112,084.57"
Sep-2021,13479,University of Cumbria,Further Education,865.00
Sep-2021,13590,REDACTED COMMERCIAL CONFIDENTIALITY,REDACTED COMMERCIAL CONFIDENTIALITY,"1,580.00"
Sep-2021,13591,REDACTED COMMERCIAL CONFIDENTIALITY,REDACTED COMMERCIAL CONFIDENTIALITY,790.00
Sep-2021,13593,REDACTED COMMERCIAL CONFIDENTIALITY,REDACTED COMMERCIAL CONFIDENTIALITY,684.70
Sep-2021,13594,REDACTED COMMERCIAL CONFIDENTIALITY,REDACTED COMMERCIAL CONFIDENTIALITY,684.70
Sep-2021,13595,REDACTED COMMERCIAL CONFIDENTIALITY,REDACTED COMMERCIAL CONFIDENTIALITY,779.28
Sep-2021,13738,Agiito Limited,Travel - Public Transport,759.50
Sep-2021,13765,REDACTED COMMERCIAL CONFIDENTIALITY,REDACTED COMMERCIAL CONFIDENTIALITY,"3,600.00"
Sep-2021,13766,REDACTED COMMERCIAL CONFIDENTIALITY,REDACTED COMMERCIAL CONFIDENTIALITY,595.90
Sep-2021,15987,Thompson Accident Repair Centre Ltd,Accident Damage (Below Insurance Threshold),"1,000.00"
Sep-2021,13114,Comensura Ltd,Agency Staff,732.40
Sep-2021,13115,Comensura Ltd,Agency Staff,585.92
Sep-2021,13116,Comensura Ltd,Agency Staff,732.40
Sep-2021,13117,Comensura Ltd,Agency Staff,739.90
Sep-2021,11038,Precor,Gym Equipment - Purchase,"1,250.00"
Sep-2021,11043,Precor,Gym Equipment - Purchase,"2,449.00"
Sep-2021,11240,Supra UK LTD T/A The Key Safe Company,Crime Prevention - Labour Costs / Fitting,"1,079.04"
Sep-2021,11731,Enterprise Rent-a-car UK Limited,Vehicle Hire - Long Term,630.84
Sep-2021,12886,Anti-Racist Cumbria,Consultants Fees - Other,"5,000.00"
Sep-2021,12755,Agiito Limited,Hotel Accommodation - Training,728.95
Sep-2021,12828,Agiito Limited,Hotel Accommodation - Training,997.20
Sep-2021,12829,Agiito Limited,Hotel Accommodation - Training,554.26
Sep-2021,12831,Agiito Limited,Hotel Accommodation - Training,568.44
Sep-2021,12992,Shortridge Ltd,Detained Persons - Laundry,643.62
Sep-2021,13099,Arrow County Supplies,Cleaning Materials,563.70
Sep-2021,13101,RH Environmental Ltd,Other Operational Training,570.00
Sep-2021,13377,Scenesafe,Operational Equipment - Other,570.12
Sep-2021,13540,Arrow County Supplies,Cleaning Materials,702.70
Sep-2021,13604,Arrow County Supplies,Cleaning Materials,"1,706.40"
Sep-2021,13627,Charles Fellows Supplies Limited,Detained Persons - Clothing,512.65
Sep-2021,13743,Maiden Marine Ltd,Marine Unit - Maintenance Costs,"1,808.56"
Sep-2021,15985,Thompson Accident Repair Centre Ltd,Accident Damage (Below Insurance Threshold),"1,000.00"
Sep-2021,10238,XPS Administration Limited T/A XPS Administration,Pension Services,"2,629.00"
Sep-2021,11005,Government Actuary's Department,Consultants Fees - Finance,"5,200.00"
Sep-2021,11108,Cumbria County Council,Internal Audit Fee,"13,181.29"
Sep-2021,12770,Cumbria County Council,Internal Audit Fee,"15,714.91"
Sep-2021,18256,Long Lane Garage,Accident Damage (Below Insurance Excess)),911.00
Sep-2021,12721,Comensura Ltd,Agency Staff,"1,027.87"
Sep-2021,10148,Peugeot Motor Company Plc,Vehicle Purchases - Capital,"21,994.88"
Sep-2021,10159,Peugeot Motor Company Plc,Vehicle Purchases - Capital,"21,994.88"
Sep-2021,10160,Peugeot Motor Company Plc,Vehicle Purchases - Capital,"21,994.88"
Sep-2021,10161,Peugeot Motor Company Plc,Vehicle Purchases - Capital,"21,994.88"
Sep-2021,10294,Volkswagen Group UK Ltd,Vehicle Purchases - Capital,"39,409.74"
Sep-2021,10295,Volkswagen Group UK Ltd,Vehicle Purchases - Capital,"39,409.74"
Sep-2021,10296,Volkswagen Group UK Ltd,Vehicle Purchases - Capital,"39,409.74"
Sep-2021,10297,Volkswagen Group UK Ltd,Vehicle Purchases - Capital,"39,409.74"
Sep-2021,10541,Snap On Tools,Workshop Equipment & Tools - Purchases,553.60
Sep-2021,11140,Shortridge Ltd,Hostels Laundry Contracts,622.13
Sep-2021,11289,Solway Plain Futures Ltd,Estates Leases,"1,898.00"
Sep-2021,11383,S Nicholson Grounds Maintenance,Grounds Maintenance - Contract,700.00
Sep-2021,11457,Carlisle Refrigeration Limited,Planned Servicing HVAC System,580.00
Sep-2021,11489,Cumbria Mechanical and Plumbing Ltd,Planned Servicing Boiler & Heating Plant,560.00
Sep-2021,11491,Cumbria Mechanical and Plumbing Ltd,Planned Servicing Boiler & Heating Plant,680.00
Sep-2021,11575,Rijo 42 Ingredients Ltd,Canteen - Hot Drink Machines,706.94
Sep-2021,11576,Rijo 42 Ingredients Ltd,Canteen - Hot Drink Machines,941.36
Sep-2021,11612,Bulloughs Cleaning Services Ltd,Window Cleaning,595.19
Sep-2021,11645,Pioneer Foodservice,Canteen - Purchase of Food / Ingredients,561.19
Sep-2021,11650,Pioneer Foodservice,Canteen - Purchase of Food / Ingredients,"1,196.42"
Sep-2021,11656,Pioneer Foodservice,Canteen - Purchase of Food / Ingredients,540.60
Sep-2021,11673,Pioneer Foodservice,Canteen - Purchase of Food / Ingredients,718.53
Sep-2021,11674,Pioneer Foodservice,Canteen - Purchase of Food / Ingredients,"3,293.48"
Sep-2021,11675,Pioneer Foodservice,Canteen - Purchase of Food / Ingredients,548.30
Sep-2021,11676,Pioneer Foodservice,Canteen - Purchase of Food / Ingredients,727.00
Sep-2021,11741,Goodyear Dunlop Tyres UK Limited,Vehicle Maintenance - Tyres & Tubes,"8,754.71"
Sep-2021,11762,Walton Goodland Limited,Estates Leases,"1,750.00"
Sep-2021,11769,Allstar Business Solutions Ltd,Vehicle Fuel,"1,673.37"
Sep-2021,11807,Allstar Business Solutions Ltd,Vehicle Fuel,"1,014.87"
Sep-2021,11808,Allstar Business Solutions Ltd,Vehicle Fuel,"2,474.81"
Sep-2021,11809,Allstar Business Solutions Ltd,Vehicle Fuel,"2,724.39"
Sep-2021,11810,Allstar Business Solutions Ltd,Vehicle Fuel,879.83
Sep-2021,11811,Allstar Business Solutions Ltd,Vehicle Fuel,674.92
Sep-2021,11812,Allstar Business Solutions Ltd,Vehicle Fuel,972.24
Sep-2021,11957,Biffa Waste Services Limited,Refuse,590.40
Sep-2021,11958,Biffa Waste Services Limited,Refuse,513.60
Sep-2021,11959,Biffa Waste Services Limited,Refuse,754.80
Sep-2021,12111,FMG Support (RRRM) Ltd,Police Vehicle Recovery & Transport,"3,095.30"
Sep-2021,12164,Allstar Business Solutions Ltd,Vehicle Fuel,780.56
Sep-2021,12165,Allstar Business Solutions Ltd,Vehicle Fuel,"66,886.59"
Sep-2021,12251,Margrange Limited � In Administration,Unplanned Building Maintenance Electrics,"4,921.40"
Sep-2021,12394,Bulloughs Cleaning Services Ltd,Cleaning Contract,"4,842.90"
Sep-2021,12395,Bulloughs Cleaning Services Ltd,Cleaning Contract,"14,175.30"
Sep-2021,12396,Bulloughs Cleaning Services Ltd,Cleaning Contract,648.11
Sep-2021,12398,Bulloughs Cleaning Services Ltd,Cleaning Contract,"5,756.68"
Sep-2021,12402,Bulloughs Cleaning Services Ltd,Cleaning Contract,"2,840.22"
Sep-2021,12403,Bulloughs Cleaning Services Ltd,Cleaning Contract,"4,342.29"
Sep-2021,12404,Bulloughs Cleaning Services Ltd,Cleaning Contract,"1,101.77"
Sep-2021,12405,Bulloughs Cleaning Services Ltd,Cleaning Contract,518.48
Sep-2021,12406,Bulloughs Cleaning Services Ltd,Cleaning Contract,648.10
Sep-2021,12409,Bulloughs Cleaning Services Ltd,Cleaning Contract,"2,962.27"
Sep-2021,12411,Bulloughs Cleaning Services Ltd,Cleaning Contract,"1,620.25"
Sep-2021,12750,Carlisle Refrigeration Limited,Planned Servicing HVAC System,723.00
Sep-2021,12788,Carlisle Refrigeration Limited,Unplanned Building Maintenance Environmental Services/Plumbing,"1,326.00"
Sep-2021,12794,Autoparts Garage Services,Workshop Equipment & Tools - Servicing / Repairs,"1,630.00"
Sep-2021,12800,BID Group Ltd,Planned Survey External Maintenance,"4,412.00"
Sep-2021,12845,Arnold Clark Automobiles Ltd,Workshop Equipment & Tools - Purchases,718.89
Sep-2021,13057,Cumbria Mechanical and Plumbing Ltd,Unplanned Building Maintenance Environmental Services/Plumbing,"3,225.00"
Sep-2021,13104,Autoparts Garage Services,Workshop Equipment & Tools - Servicing / Repairs,530.00
Sep-2021,13183,Wurth UK Ltd,Vehicle Adaptations - Capital,523.93
Sep-2021,13244,Bulloughs Cleaning Services Ltd,Cleaning Contract,931.56
Sep-2021,13286,Kays Medical Limited,First Aid Equipment / Consumables,"2,084.00"
Sep-2021,13304,Ford Motor Company Limited,Vehicle Purchases - Capital,"29,015.06"
Sep-2021,13305,Ford Motor Company Limited,Vehicle Purchases - Capital,"29,015.06"
Sep-2021,13306,Ford Motor Company Limited,Vehicle Purchases - Capital,"29,015.06"
Sep-2021,13307,Ford Motor Company Limited,Vehicle Purchases - Capital,"-29,015.06"
Sep-2021,13308,Ford Motor Company Limited,Vehicle Purchases - Capital,"-29,015.06"
Sep-2021,13309,Ford Motor Company Limited,Vehicle Purchases - Capital,"-29,015.06"
Sep-2021,13310,Ford Motor Company Limited,Vehicle Purchases - Capital,"28,904.72"
Sep-2021,13311,Ford Motor Company Limited,Vehicle Purchases - Capital,"28,904.72"
Sep-2021,13312,Ford Motor Company Limited,Vehicle Purchases - Capital,"28,904.72"
Sep-2021,13358,Cumbria Mechanical and Plumbing Ltd,Unplanned Building Maintenance Environmental Services/Plumbing,574.65
Sep-2021,13427,JJ Group (Contracting) Ltd,Office Equipment - Purchase,"1,125.00"
Sep-2021,13428,B K Screenprint,Unplanned Building Maintenance Safety Works,"1,650.00"
Sep-2021,13443,Thomas Graham and Sons Limited,Workshop Equipment & Tools - Purchases,"1,502.07"
Sep-2021,13445,Carlisle City Council,Estates Leases,"16,081.85"
Sep-2021,13483,Total Gas & Power Limited,Gas,"4,813.61"
Sep-2021,13486,South Lakeland District Council,Business Rates,"1,990.00"
Sep-2021,13495,Ram Mount UK Ltd,Vehicle Adaptations - Capital,"1,146.40"
Sep-2021,13499,Castle Water Limited,Metered Water,"2,542.40"
Sep-2021,13500,Castle Water Limited,Sewerage & Environmental Services,"15,002.39"
Sep-2021,13510,Cumbria Mechanical and Plumbing Ltd,North West Ambulance Service - Estates Management Collaboration,837.44
Sep-2021,13513,R B Loveridge & Son Ltd,North West Ambulance Service - Estates Management Collaboration,"1,042.88"
Sep-2021,13519,R B Loveridge & Son Ltd,North West Ambulance Service - Estates Management Collaboration,519.57
Sep-2021,13524,BID Group Ltd,Unplanned Building Services External Other,933.00
Sep-2021,13531,Cumbria Mechanical and Plumbing Ltd,North West Ambulance Service - Estates Management Collaboration,527.64
Sep-2021,13532,BID Group Ltd,North West Ambulance Service - Estates Management Collaboration,582.50
Sep-2021,13552,R B Loveridge & Son Ltd,Unplanned Building Services Environmental Services/Plumbing,617.55
Sep-2021,13555,EDF Energy,Electricity,"39,940.45"
Sep-2021,13556,EDF Energy,Climate Change Levy,"2,282.47"
Sep-2021,13558,John Sandelands Limited,North West Ambulance Service - Estates Management Collaboration,940.00
Sep-2021,13561,Lambert-gill Ltd,North West Ambulance Service - Estates Management Collaboration,"4,790.00"
Sep-2021,13562,Cumbria Mechanical and Plumbing Ltd,North West Ambulance Service - Estates Management Collaboration,"3,285.00"
Sep-2021,13563,Keswick Superglaze Ltd,North West Ambulance Service - Estates Management Collaboration,"3,250.00"
Sep-2021,13564,West Cumbria Estates Management Limited,Unplanned Building Services Internal Other,"1,213.30"
Sep-2021,13566,BID Group Ltd,Unplanned Building Services Security & Security Equipment Maintenance,564.25
Sep-2021,13573,Cumbria Mechanical and Plumbing Ltd,North West Ambulance Service - Estates Management Collaboration,"1,176.80"
Sep-2021,13587,R B Loveridge & Son Ltd,Unplanned Building Services Environmental Services/Plumbing,546.67
Sep-2021,13612,Bulloughs Cleaning Services Ltd,Cleaning Contract,"1,798.00"
Sep-2021,13619,FTS Fire and  Security Ltd,North West Ambulance Service - Estates Management Collaboration,"2,076.00"
Sep-2021,13622,Unwin Jones Partnership,Professional Fees,800.00
Sep-2021,13626,Bell Park Kerridge Solicitors (BPK),Legal Fees (Property Sale),"1,826.95"
Sep-2021,13636,CSS Engineering Solutions Limited,Vehicle Maintenance - Parts Purchase,"1,530.00"
Sep-2021,13792,EDF Energy,Electricity,"39,106.59"
Sep-2021,13793,EDF Energy,Climate Change Levy,"2,206.59"
Sep-2021,13794,Total Gas & Power Limited,Gas,"5,193.12"
Sep-2021,13795,Total Gas & Power Limited,Climate Change Levy,540.86
Sep-2021,13798,Ian Robinson Electrical Contractors,North West Ambulance Service - Estates Management Collaboration,875.93
Sep-2021,13799,FTS Fire and  Security Ltd,North West Ambulance Service - Estates Management Collaboration,632.00
Sep-2021,14289,Spencer Ivison Decorators Ltd,North West Ambulance Service - Estates Management Collaboration,"4,190.00"
Sep-2021,15976,Thompson Accident Repair Centre Ltd,Accident Damage (Below Insurance Threshold),"10,391.91"
Sep-2021,15979,Thompson Accident Repair Centre Ltd,Accident Damage (Below Insurance Threshold),671.92
Sep-2021,15984,Thompson Accident Repair Centre Ltd,Accident Damage (Below Insurance Threshold),"3,954.09"
Sep-2021,15988,Thompson Accident Repair Centre Ltd,Accident Damage (Below Insurance Threshold),879.42
Sep-2021,16830,Cubbys Signs Ltd,Vehicle Maintenance - Parts Purchase,"3,286.30"
Sep-2021,12994,Shortridge Ltd,Detained Persons - Laundry,993.86
Sep-2021,13596,Charles Fellows Supplies Limited,Detained Persons - Clothing,677.50
Sep-2021,13770,Charles Fellows Supplies Limited,Detained Persons - Clothing,741.25
Sep-2021,15980,Thompson Accident Repair Centre Ltd,Accident Damage (Below Insurance Threshold),"1,000.00"
Sep-2021,16294,Arnold Clark Automobiles Ltd,Vehicle Maintenance - Work Done Externally,575.10
Sep-2021,16298,Arnold Clark Automobiles Ltd,Vehicle Maintenance - Work Done Externally,"1,656.88"
Sep-2021,10587,REDACTED COMMERCIAL CONFIDENTIALITY,REDACTED COMMERCIAL CONFIDENTIALITY,"2,656.89"
Sep-2021,10588,REDACTED COMMERCIAL CONFIDENTIALITY,REDACTED COMMERCIAL CONFIDENTIALITY,"1,570.74"
Sep-2021,10608,Orchid Cellmark Ltd,Forensic Analysis - Over Prescribed Limit,920.75
Sep-2021,10609,Orchid Cellmark Ltd,Forensic Analysis - Over Prescribed Limit,652.50
Sep-2021,10610,Orchid Cellmark Ltd,Forensic Analysis - Over Prescribed Limit,"1,087.50"
Sep-2021,10628,Orchid Cellmark Ltd,Forensic Analysis - Serious Crime,507.00
Sep-2021,10630,Orchid Cellmark Ltd,Forensic Analysis - Over Prescribed Limit,"1,087.50"
Sep-2021,10631,Orchid Cellmark Ltd,Forensic Analysis - Over Prescribed Limit,746.75
Sep-2021,10633,Orchid Cellmark Ltd,Forensic Analysis - Serious Crime,758.35
Sep-2021,10635,Orchid Cellmark Ltd,Forensic Analysis - Serious Crime,"1,299.20"
Sep-2021,10636,Orchid Cellmark Ltd,Forensic Analysis - Serious Crime,649.60
Sep-2021,10637,Orchid Cellmark Ltd,Forensic Analysis - Serious Crime,939.60
Sep-2021,10639,Orchid Cellmark Ltd,Forensic Analysis - Over Prescribed Limit,620.60
Sep-2021,10805,Key Forensic Services Ltd (Orange UK Holdings Ltd),Forensic Analysis - Volume Crime,695.83
Sep-2021,10806,Key Forensic Services Ltd (Orange UK Holdings Ltd),Forensic Analysis - Volume Crime,780.76
Sep-2021,10808,Key Forensic Services Ltd (Orange UK Holdings Ltd),Forensic Analysis - Serious Crime,"1,663.15"
Sep-2021,10809,Key Forensic Services Ltd (Orange UK Holdings Ltd),Forensic Analysis - Serious Crime,553.20
Sep-2021,10810,Key Forensic Services Ltd (Orange UK Holdings Ltd),Forensic Analysis - Serious Crime,978.40
Sep-2021,10811,Key Forensic Services Ltd (Orange UK Holdings Ltd),Forensic Analysis - Over Prescribed Limit,"1,261.50"
Sep-2021,10812,Key Forensic Services Ltd (Orange UK Holdings Ltd),Forensic Analysis - Over Prescribed Limit,"1,229.62"
Sep-2021,10814,Key Forensic Services Ltd (Orange UK Holdings Ltd),Forensic Analysis - Serious Crime,"2,128.65"
Sep-2021,10816,Key Forensic Services Ltd (Orange UK Holdings Ltd),Forensic Analysis - Serious Crime,760.70
Sep-2021,10819,Key Forensic Services Ltd (Orange UK Holdings Ltd),Forensic Analysis - Volume Crime,730.10
Sep-2021,10822,Key Forensic Services Ltd (Orange UK Holdings Ltd),Forensic Analysis - Serious Crime,896.70
Sep-2021,10823,Key Forensic Services Ltd (Orange UK Holdings Ltd),Forensic Analysis - Volume Crime,634.74
Sep-2021,10826,Key Forensic Services Ltd (Orange UK Holdings Ltd),Forensic Analysis - Over Prescribed Limit,970.78
Sep-2021,12884,Foster and  Freeman Ltd,CSI Consumables,"3,059.23"
Sep-2021,13252,Scenesafe,CSI Consumables,"1,024.25"
Sep-2021,13528,Police and Crime Commissioner for Lancashire,Other Collaboration Payments,"9,930.00"
Sep-2021,12679,Comensura Ltd,Agency Staff,"1,189.50"
Sep-2021,12680,Comensura Ltd,Agency Staff,643.50
Sep-2021,12681,Comensura Ltd,Agency Staff,624.00
Sep-2021,10089,Saab AB,Computer Software - Maintenance,"388,914.44"
Sep-2021,10179,Bottomline Technologies Europe Ltd,Computer Software - Maintenance,"5,162.81"
Sep-2021,10220,Softcat PLC,Computer Software - Maintenance,"10,948.00"
Sep-2021,10221,Softcat PLC,Computer Software - Maintenance,"7,863.16"
Sep-2021,10222,Softcat PLC,Computer Software - Maintenance,"7,863.16"
Sep-2021,10223,Softcat PLC,Computer Software - Maintenance,"7,863.16"
Sep-2021,10224,Softcat PLC,Computer Software - Maintenance,"7,863.16"
Sep-2021,10225,Softcat PLC,Computer Software - Maintenance,"7,863.16"
Sep-2021,10226,Softcat PLC,Computer Software - Maintenance,"32,844.00"
Sep-2021,10403,Digital Image Booth Limited,Computer Software - Maintenance,"3,600.00"
Sep-2021,10555,Airwave Solutions Limited (Subsidiary:- Kelvin Connect),Radio / Airwave Equipment - Maintenance,"33,169.60"
Sep-2021,10556,Airwave Solutions Limited (Subsidiary:- Kelvin Connect),Radio / Airwave Equipment - Maintenance,"33,672.75"
Sep-2021,11312,GPD Installation Services Ltd,Radio / Airwave Equipment - Purchases,"5,445.00"
Sep-2021,11526,Specialised Equipment Cleaning,Computer Hardware - Maintenance,590.00
Sep-2021,12563,TalkTalk,Telephone Charges - Landlines,"2,547.43"
Sep-2021,12736,MHR International UK LTD,Consultants Fees - ICT,"2,247.45"
Sep-2021,12739,MHR International UK LTD,Consultants Fees - ICT,898.98
Sep-2021,12740,MHR International UK LTD,Consultants Fees - ICT,"2,696.94"
Sep-2021,12811,Vodafone Limited,Networks Private Circuits,"1,776.00"
Sep-2021,12813,Vodafone Limited,Networks Private Circuits,"1,776.00"
Sep-2021,12842,Corporate Project Solutions,Consultants Fees - ICT,"17,800.00"
Sep-2021,12919,Sepura PLC,Radio / Airwave Equipment - Purchases,"1,860.00"
Sep-2021,12935,EE Limited,Telephone Charges - Landlines,"8,648.11"
Sep-2021,13087,NEC Software Solutions UK Ltd,Computer Software - Maintenance,"19,257.00"
Sep-2021,13089,EE Limited,Telephone Charges - Mobile Phones,"8,648.11"
Sep-2021,13283,Stone Computers Ltd,Computer Hardware - Purchase,"13,974.00"
Sep-2021,13287,Cleverbridge,Computer Software - Maintenance,598.00
Sep-2021,13333,Police and Crime Commissioner for West Yorkshire,Computer Software - Maintenance,"12,961.28"
Sep-2021,13365,Vodafone Limited,Networks Private Circuits,"3,958.16"
Sep-2021,13420,RSG Engineering Ltd,Computer Software - Maintenance,728.00
Sep-2021,13468,Cleverbridge,Computer Software - Maintenance,"2,099.00"
Sep-2021,13474,MHR International UK LTD,Consultants Fees - Other,500.00
Sep-2021,13503,Vodafone Limited,Networks Private Circuits,"12,585.08"
Sep-2021,13567,Amazon Services UK Limited,Networks Hardware Purchase,664.50
Sep-2021,13758,Chorus Intelligence Limited Previously known as (Create Intelligence Ltd),Computer Software - Maintenance,"8,000.00"
Sep-2021,13775,CPC Plc,Computer Hardware - Purchase,"2,759.00"
Sep-2021,13861,Stone Computers Ltd,Computer Hardware - Purchase,"4,580.00"
Sep-2021,13871,Insight Direct (UK) Ltd,Computer Hardware - Purchase,"1,522.00"
Sep-2021,13873,WPC Software Limited,Computer Software - Maintenance,"3,439.07"
Sep-2021,3,Home Office,National Police ICT Service Charges,"6,503.52"
Sep-2021,11127,Agiito Limited,Hotel Accommodation - Training,"1,300.00"
Sep-2021,11128,Agiito Limited,Hotel Accommodation - Training,600.00
Sep-2021,12295,Abbott Toxicology Ltd,Conference & Seminar Fees,500.00
Sep-2021,12301,Agiito Limited,Hotel Accommodation - Training,837.78
Sep-2021,12302,Agiito Limited,Hotel Accommodation - Training,"2,184.68"
Sep-2021,12303,Agiito Limited,Hotel Accommodation - Training,"2,207.18"
Sep-2021,12304,Agiito Limited,Hotel Accommodation - Training,694.97
Sep-2021,12305,Agiito Limited,Hotel Accommodation - Training,812.46
Sep-2021,12710,Comensura Ltd,Agency Staff,535.80
Sep-2021,13329,Police Superintendents Association Ltd,Employee Insurance - Supt. Association,"9,646.00"
Sep-2021,13370,Agiito Limited,Hotel Accommodation,551.51
Sep-2021,13379,Agiito Limited,Hotel Accommodation,"1,403.29"
Sep-2021,13381,Agiito Limited,Hotel Accommodation,"1,175.29"
Sep-2021,13441,Agiito Limited,Vehicle Hire - Training,550.00
Sep-2021,13442,Agiito Limited,Hotel Accommodation - Training,825.00
Sep-2021,13466,Blue Light Publishing T/A Police Pass,Leadership Training,900.00
Sep-2021,13488,REDACTED PERSONAL CONFIDENTIALITY,REDACTED PERSONAL CONFIDENTIALITY,"1,450.00"
Sep-2021,13489,REDACTED PERSONAL CONFIDENTIALITY,REDACTED PERSONAL CONFIDENTIALITY,675.00
Sep-2021,13506,Information Commissioner,Subscriptions,"2,895.00"
Sep-2021,13526,Agiito Limited,Office Equipment - Purchase,-579.22
Sep-2021,13549,College of Policing (NPIA),External Assessment Centres,"6,916.11"
Sep-2021,13550,P and A Medical Ltd,Medical Equipment,633.50
Sep-2021,13559,Agiito Limited,Travel - Training - Public Transport,551.22
Sep-2021,13560,Agiito Limited,Travel - Training - Public Transport,-551.22
Sep-2021,13565,Kenneth Gyles MHFA Instructor,Other Support Function Training,750.00
Sep-2021,13600,REDACTED COMMERCIAL CONFIDENTIALITY,REDACTED COMMERCIAL CONFIDENTIALITY,"5,245.15"
Sep-2021,13746,Shared Services Connected Limited on behalf of Cabinet Office,Vetting Checks,"13,048.86"
Sep-2021,13755,REDACTED PERSONAL CONFIDENTIALITY,REDACTED PERSONAL CONFIDENTIALITY,"1,970.00"
Sep-2021,13761,REDACTED COMMERCIAL CONFIDENTIALITY,REDACTED COMMERCIAL CONFIDENTIALITY,"2,530.00"
Sep-2021,13843,REDACTED PERSONAL CONFIDENTIALITY,REDACTED PERSONAL CONFIDENTIALITY,"1,540.00"
Sep-2021,13844,REDACTED PERSONAL CONFIDENTIALITY,REDACTED PERSONAL CONFIDENTIALITY,"2,520.00"
Sep-2021,13845,REDACTED PERSONAL CONFIDENTIALITY,REDACTED PERSONAL CONFIDENTIALITY,"2,520.00"
Sep-2021,13846,REDACTED PERSONAL CONFIDENTIALITY,REDACTED PERSONAL CONFIDENTIALITY,"1,200.00"
Sep-2021,13849,REDACTED PERSONAL CONFIDENTIALITY,REDACTED PERSONAL CONFIDENTIALITY,770.00
Sep-2021,13245,Bulloughs Cleaning Services Ltd,Cleaning Contract,"3,726.24"
Sep-2021,13527,Bulloughs Cleaning Services Ltd,Cleaning Contract,558.68
Sep-2021,10020,Victim Support,Contributions - PCC Commissioning Services,"14,394.92"
Sep-2021,10021,Victim Support,Contributions - PCC Commissioning Services,"74,509.25"
Sep-2021,10022,Victim Support,Contributions - PCC Commissioning Services,"74,509.25"
Sep-2021,10036,Resource Creatives Enterprises Ltd,Contributions - PCC Commissioning Services,"1,500.00"
Sep-2021,10044,Remedi Restorative Services,Contributions - PCC Commissioning Services,"11,641.67"
Sep-2021,10317,Victim Support,Contributions - PCC Commissioning Services,"6,666.66"
Sep-2021,10945,Police and Crime Commissioner for Gloucestershire,Contributions - PCC Commissioning Services,"14,530.00"
Sep-2021,11020,Remedi Restorative Services,Contributions - PCC Commissioning Services,"49,150.00"
Sep-2021,11021,Remedi Restorative Services,Contributions - PCC Commissioning Services,"49,150.00"
Sep-2021,12244,Restorative Solutions CIC,Contributions - PCC Commissioning Services,"2,777.78"
Sep-2021,12245,Restorative Solutions CIC,Contributions - PCC Commissioning Services,"2,777.78"
Sep-2021,12255,North Cumbria Integrated care NHS Foundation Trust (NCIC NHS FT),Rent,"1,400.00"
Sep-2021,12259,Remedi Restorative Services,Contributions - PCC Commissioning Services,"11,641.66"
Sep-2021,12260,Remedi Restorative Services,Contributions - PCC Commissioning Services,"11,641.66"
Sep-2021,12911,Cumbria Gateway,Contributions - PCC Commissioning Services,"16,451.50"
Sep-2021,12924,G4S Health Services (UK) Ltd,SARC Doctors,"20,021.71"
Sep-2021,12925,G4S Health Services (UK) Ltd,SARC Doctors,"20,021.71"
Sep-2021,12954,North Cumbria Integrated care NHS Foundation Trust (NCIC NHS FT),Cleaning Contract,743.47
Sep-2021,13534,Victim Support,Contributions - PCC Commissioning Services,"14,394.92"
Sep-2021,13606,CM Brand,Contributions - PCC Commissioning Services,"1,834.00"
Sep-2021,13707,Selectamark Security Systems Plc,Contributions - PCC Commissioning Services,"13,789.75"
Sep-2021,13708,Solon Security Limited,Contributions - PCC Commissioning Services,"5,887.00"
Sep-2021,13767,Womens Community Matters,Contributions - PCC Commissioning Services,"17,341.50"
Sep-2021,13855,Signal Film and Media,Contributions - PCC Commissioning Services,"2,970.00"
Sep-2021,11107,Cumbria County Council,Internal Audit Fee,"1,121.79"
Sep-2021,12769,Cumbria County Council,Internal Audit Fee,"2,950.56"
Sep-2021,13446,Scenesafe,Operational Equipment - Other,621.00
Sep-2021,13453,Sancus Solutions Ltd,Other Third Party Payments,700.00
Sep-2021,13814,Formation Media Ltd,Web Design & Running Costs,"1,080.00"
Sep-2021,13823,Professional Development Group T/A Government Events,Other Support Function Training,712.00
Sep-2021,13825,Sancus Solutions Ltd,Other Third Party Payments,875.00
Sep-2021,13854,Association of Police and Crime Commissioners,Subscriptions,"1,109.22"
Oct-2021,10959,Car-Port UK Ltd,Vehicle Hire - Long Term,"1,980.00"
Oct-2021,13035,Mellors Catering Services ltd,Canteen - Equipment and Utensils,"5,859.53"
Oct-2021,13061,Frederick Potts and Sons Ltd,Operational Equipment - Other,597.50
Oct-2021,13425,Frederick Potts and Sons Ltd,Operational Equipment - Other,896.25
Oct-2021,14103,REDACTED COMMERCIAL CONFIDENTIALITY,REDACTED COMMERCIAL CONFIDENTIALITY,600.00
Oct-2021,13749,Police and Crime Commissioner for Merseyside,TITAN - North West Collaboration,"43,832.02"
Oct-2021,13867,Agiito Limited,Hotel Accommodation,860.40
Oct-2021,13919,Agiito Limited,Other Travel,520.74
Oct-2021,13920,Agiito Limited,Other Travel,546.74
Oct-2021,12091,Her Majesty's Courts & Tribunal Service (HMCTS),Court Fees,933.00
Oct-2021,13948,Sefton Council,Subscriptions,500.00
Oct-2021,14083,PSTAX,Solicitor Fees,"1,620.00"
Oct-2021,18760,Atlantic Chambers,Counsel Fees,"2,400.00"
Oct-2021,10365,REDACTED COMMERCIAL CONFIDENTIALITY,REDACTED COMMERCIAL CONFIDENTIALITY,887.37
Oct-2021,10389,REDACTED COMMERCIAL CONFIDENTIALITY,REDACTED COMMERCIAL CONFIDENTIALITY,526.68
Oct-2021,10438,REDACTED COMMERCIAL CONFIDENTIALITY,REDACTED COMMERCIAL CONFIDENTIALITY,613.89
Oct-2021,12027,Cumbria County Council,Courier Services - Internal Deliveries,"3,183.90"
Oct-2021,12356,Enterprise Car Club,Vehicle Hire - Car Share Scheme,"3,720.00"
Oct-2021,13588,Digital ID,Office Sundries,870.00
Oct-2021,13918,Kardex Systems UK Limited,Office Equipment - Maintenance & Service Costs,"2,735.46"
Oct-2021,12279,Kirkbride Eyecare,Protective Clothing,577.20
Oct-2021,13617,Ioma Clothing Co Ltd,Staff Clothing & Police Uniform,502.00
Oct-2021,13742,Point South Limited,Firearms Equipment,"1,269.20"
Oct-2021,13992,Thomas Graham and Sons Limited,Cleaning Materials,745.23
Oct-2021,13771,Charles Fellows Supplies Limited,Detained Persons - Clothing,840.15
Oct-2021,13903,Earle International,Operational Equipment - Other,735.00
Oct-2021,13912,Arrow County Supplies,Cleaning Materials,"1,534.80"
Oct-2021,13925,Recoop,Books & Publications,"1,000.00"
Oct-2021,14118,Peter Roberts OBE,Subscriptions,500.00
Oct-2021,17065,P & HM Ferguson,Vehicle Maintenance - Parts Purchase,711.32
Oct-2021,11114,Bedroq TM Ltd,Other Third Party Payments,"29,889.66"
Oct-2021,13423,Cumbria County Council,Other Operational Training,"5,640.60"
Oct-2021,10412,Frame Swift and Partners LLP,Police Dogs - Vets Fees,"1,838.86"
Oct-2021,10493,FMG Support (RRRM) Ltd,Vehicle Recovery Costs,845.00
Oct-2021,12121,Tranam Limited,Protective Clothing,677.08
Oct-2021,12122,Tranam Limited,Protective Clothing,677.08
Oct-2021,12123,Tranam Limited,Protective Clothing,-677.08
Oct-2021,12975,Viking Arms Ltd,Firearms Equipment,"1,435.68"
Oct-2021,12984,College of Policing (NPIA),CID Training,"1,283.00"
Oct-2021,13125,Agiito Limited,Hotel Accommodation - Training,"1,600.00"
Oct-2021,13139,Agiito Limited,Hotel Accommodation - Training,542.86
Oct-2021,13234,Agiito Limited,Hotel Accommodation - Training,"2,080.00"
Oct-2021,13235,Agiito Limited,Hotel Accommodation - Training,650.00
Oct-2021,13236,Agiito Limited,Hotel Accommodation - Training,"2,080.00"
Oct-2021,13237,Agiito Limited,Hotel Accommodation - Training,"2,080.00"
Oct-2021,13322,J & L Motorcycles,Protective Clothing,539.23
Oct-2021,13397,College of Policing (NPIA),Hotel Accommodation - Training,610.00
Oct-2021,13399,College of Policing (NPIA),Hotel Accommodation - Training,610.00
Oct-2021,13402,Tranam Limited,Protective Clothing,677.08
Oct-2021,13436,The Investigator,CID Training,"1,875.00"
Oct-2021,13459,REDACTED COMMERCIAL CONFIDENTIALITY,REDACTED COMMERCIAL CONFIDENTIALITY,864.00
Oct-2021,13460,REDACTED COMMERCIAL CONFIDENTIALITY,REDACTED COMMERCIAL CONFIDENTIALITY,864.00
Oct-2021,13568,Ai Training Services Ltd,Hotel Accommodation - Training,547.62
Oct-2021,13569,Ai Training Services Ltd,Hotel Accommodation - Training,575.00
Oct-2021,13601,Kirkbride Eyecare,Protective Clothing,580.88
Oct-2021,13737,Kirkbride Eyecare,Protective Clothing,785.00
Oct-2021,13747,Royal Canin,Police Dogs - Feed,810.54
Oct-2021,13751,Police and Crime Commissioner for Merseyside,TITAN - North West Collaboration,"5,175.71"
Oct-2021,13752,Police and Crime Commissioner for Merseyside,TITAN - North West Collaboration,"45,454.95"
Oct-2021,13753,Police and Crime Commissioner for Merseyside,TITAN - North West Collaboration,"39,464.56"
Oct-2021,13754,Civil Defence Supply Limited,Firearms Equipment,"2,549.96"
Oct-2021,13924,Sellox Limited,Firearms Equipment,"1,240.00"
Oct-2021,13981,University of Edinburgh,Police Dogs - Vets Fees,"1,147.60"
Oct-2021,13996,REDACTED COMMERCIAL CONFIDENTIALITY,REDACTED COMMERCIAL CONFIDENTIALITY,"1,623.00"
Oct-2021,14004,Mere Commercial Ltd,Other Operational Expenses,750.00
Oct-2021,14014,Police and Crime Commissioner for North Wales,Other Third Party Payments,"29,196.00"
Oct-2021,14017,Police and Crime Commissioner for Cheshire,Other Collaboration Payments,"8,748.93"
Oct-2021,14033,ADE Systems Ltd,Operational Equipment - Other,"1,265.00"
Oct-2021,14034,ADE Systems Ltd,Operational Equipment - Other,"1,190.00"
Oct-2021,14035,ADE Systems Ltd,Operational Equipment - Other,"-1,265.00"
Oct-2021,14090,Greater Manchester Combined Authority,Other Operational Support from Other Forces,"12,303.75"
Oct-2021,14098,Tranam Limited,Protective Clothing,530.82
Oct-2021,15991,Thompson Accident Repair Centre Ltd,Accident Damage (Below Insurance Threshold),"1,000.00"
Oct-2021,15993,Thompson Accident Repair Centre Ltd,Accident Damage (Below Insurance Threshold),"1,000.00"
Oct-2021,15997,Thompson Accident Repair Centre Ltd,Accident Damage (Below Insurance Threshold),"1,000.00"
Oct-2021,16356,REDACTED COMMERCIAL CONFIDENTIALITY,REDACTED COMMERCIAL CONFIDENTIALITY,694.00
Oct-2021,16693,Lloyd Motorrad,Vehicle Maintenance - Work Done Externally,659.50
Oct-2021,11605,Reed Rains,Rent,800.00
Oct-2021,12575,Police and Crime Commissioner for Norfolk,Other Third Party Payments,876.02
Oct-2021,16912,Police and Crime Commissioner for North Yorkshire,Other Third Party Payments,"5,786.81"
Oct-2021,17318,Police and Crime Commissioner for Merseyside,Other Collaboration Payments,"7,243.24"
Oct-2021,13060,Zengenti Ltd,Web Design & Running Costs,"1,200.00"
Oct-2021,13778,Harlow Printing Limited,External Printing,"1,124.50"
Oct-2021,14091,REDACTED COMMERCIAL CONFIDENTIALITY,REDACTED COMMERCIAL CONFIDENTIALITY,"1,800.00"
Oct-2021,10347,Capita Translation and Interpreting (Applied Language Solutions Ltd),Interpreters Fees - Face to Face,"1,780.96"
Oct-2021,10348,Capita Translation and Interpreting (Applied Language Solutions Ltd),Interpreters Fees - Telephone,837.89
Oct-2021,10350,Capita Translation and Interpreting (Applied Language Solutions Ltd),Interpreters Fees - Face to Face,"2,896.41"
Oct-2021,10351,Capita Translation and Interpreting (Applied Language Solutions Ltd),Interpreters Fees - Telephone,"1,083.55"
Oct-2021,10465,Child Action Northwest,Detained Persons - Appropriate Adult Services,"6,790.56"
Oct-2021,10974,REDACTED COMMERCIAL CONFIDENTIALITY,REDACTED COMMERCIAL CONFIDENTIALITY,677.15
Oct-2021,10986,REDACTED COMMERCIAL CONFIDENTIALITY,REDACTED COMMERCIAL CONFIDENTIALITY,618.18
Oct-2021,12638,Comensura Ltd,Agency Staff,955.34
Oct-2021,12643,Comensura Ltd,Agency Staff,955.34
Oct-2021,12644,Comensura Ltd,Agency Staff,955.34
Oct-2021,12645,Comensura Ltd,Agency Staff,955.34
Oct-2021,12646,Comensura Ltd,Agency Staff,955.34
Oct-2021,13070,G4S Health Services (UK) Ltd,Custody Medical Contract,"112,084.57"
Oct-2021,13985,Chimp Management Limited,CID Training,"2,500.00"
Oct-2021,13113,Comensura Ltd,Agency Staff,732.40
Oct-2021,13118,Comensura Ltd,Agency Staff,739.90
Oct-2021,13119,Comensura Ltd,Agency Staff,591.92
Oct-2021,13120,Comensura Ltd,Agency Staff,591.92
Oct-2021,13121,Comensura Ltd,Agency Staff,739.90
Oct-2021,10448,Remedi Restorative Services,Other Third Party Payments,"7,500.00"
Oct-2021,13602,Mark Tubman (Locksmith & Joinery),Crime Prevention - Labour Costs / Fitting,950.00
Oct-2021,13879,REDACTED COMMERCIAL CONFIDENTIALITY,REDACTED COMMERCIAL CONFIDENTIALITY,588.60
Oct-2021,11732,Enterprise Rent-a-car UK Limited,Vehicle Hire - Long Term,630.84
Oct-2021,12872,Agiito Limited,Hotel Accommodation - Training,500.00
Oct-2021,12997,Shortridge Ltd,Detained Persons - Laundry,558.45
Oct-2021,13386,Kirkbride Eyecare,Protective Clothing,577.20
Oct-2021,13837,Lion Laboratories Ltd,Operational Equipment - Breathalyser Equipment,"1,631.00"
Oct-2021,18259,Long Lane Garage,Accident Damage (Below Insurance Threshold),"1,000.00"
Oct-2021,18261,Long Lane Garage,Accident Damage (Below Insurance Excess)),554.20
Oct-2021,12342,Gallagher Bassett,Settlement of 3rd Party Claims for damage to property / vehicles,"8,750.09"
Oct-2021,12343,Gallagher Bassett,Settlement of 3rd Party Claims for damage to property / vehicles,"12,395.31"
Oct-2021,10028,SMSR Ltd,Consultants Fees - Other,950.00
Oct-2021,10029,SMSR Ltd,Consultants Fees - Other,950.00
Oct-2021,10901,Treble 5 Treble 1 Ltd,Crimestoppers,"3,485.00"
Oct-2021,13273,College of Policing (NPIA),CID Training,"2,647.00"
Oct-2021,13274,College of Policing (NPIA),Hotel Accommodation,760.00
Oct-2021,13750,Police and Crime Commissioner for Merseyside,TITAN - North West Collaboration,"9,986.37"
Oct-2021,10149,Peugeot Motor Company Plc,Vehicle Purchases - Capital,"21,994.88"
Oct-2021,10150,Peugeot Motor Company Plc,Vehicle Purchases - Capital,"21,994.88"
Oct-2021,10162,Peugeot Motor Company Plc,Vehicle Purchases - Capital,"21,994.88"
Oct-2021,10163,Peugeot Motor Company Plc,Vehicle Purchases - Capital,"21,994.88"
Oct-2021,10164,Peugeot Motor Company Plc,Vehicle Purchases - Capital,"21,994.88"
Oct-2021,10165,Peugeot Motor Company Plc,Vehicle Purchases - Capital,"21,994.88"
Oct-2021,10498,Ian Robinson Electrical Contractors,Unplanned Building Maintenance Electrics,"1,146.72"
Oct-2021,11276,Dalton Community Association,Estates Leases,"1,100.00"
Oct-2021,11284,Cumbria County Council,Estates Leases,"1,706.25"
Oct-2021,11285,Cumbria County Council,Estates Leases,"1,706.25"
Oct-2021,11286,Cumbria County Council,Estates Leases,"-1,706.25"
Oct-2021,11394,S Nicholson Grounds Maintenance,Grounds Maintenance - Contract,700.00
Oct-2021,11407,Carlisle City Council,Estates Leases,"8,731.78"
Oct-2021,11464,FTS Fire and  Security Ltd,Planned Servicing Fire Systems,"2,036.50"
Oct-2021,11468,FTS Fire and  Security Ltd,Planned Servicing Fire Systems,"4,103.00"
Oct-2021,11469,FTS Fire and  Security Ltd,Planned Servicing Fire Systems,965.00
Oct-2021,11475,Burtonwood Generator & Switchgear Services Limited,Planned Servicing Generators/UPS,"1,240.00"
Oct-2021,11476,Burtonwood Generator & Switchgear Services Limited,Planned Servicing Generators/UPS,547.00
Oct-2021,11482,JJ Group (Contracting) Ltd,Unplanned Building Maintenance Electrics,"-1,735.00"
Oct-2021,11483,JJ Group (Contracting) Ltd,Unplanned Building Maintenance Electrics,"6,356.00"
Oct-2021,11577,Rijo 42 Ingredients Ltd,Canteen - Hot Drink Machines,"1,032.36"
Oct-2021,11651,Pioneer Foodservice,Canteen - Purchase of Food / Ingredients,"1,616.99"
Oct-2021,11657,Pioneer Foodservice,Canteen - Purchase of Food / Ingredients,515.91
Oct-2021,11742,Goodyear Dunlop Tyres UK Limited,Vehicle Maintenance - Tyres & Tubes,"1,263.46"
Oct-2021,11743,Goodyear Dunlop Tyres UK Limited,Vehicle Maintenance - Tyres & Tubes,"11,285.22"
Oct-2021,11753,West Cumbria Estates Management Limited,PFI Occupancy Charges,"106,200.00"
Oct-2021,11754,West Cumbria Estates Management Limited,PFI Occupancy Charges,"106,200.00"
Oct-2021,11770,Allstar Business Solutions Ltd,Vehicle Fuel,"2,664.70"
Oct-2021,11813,Allstar Business Solutions Ltd,Vehicle Fuel,"1,034.40"
Oct-2021,11814,Allstar Business Solutions Ltd,Vehicle Fuel,"2,369.40"
Oct-2021,11815,Allstar Business Solutions Ltd,Vehicle Fuel,"1,746.01"
Oct-2021,11816,Allstar Business Solutions Ltd,Vehicle Fuel,"1,186.46"
Oct-2021,11817,Allstar Business Solutions Ltd,Vehicle Fuel,852.61
Oct-2021,11818,Allstar Business Solutions Ltd,Vehicle Fuel,716.05
Oct-2021,11870,Jack Hodson Ltd,Vehicle Adaptations - Capital,"-5,951.00"
Oct-2021,11872,Jack Hodson Ltd,Vehicle Adaptations - Capital,"5,951.00"
Oct-2021,11960,Biffa Waste Services Limited,Refuse,943.50
Oct-2021,11961,Biffa Waste Services Limited,Refuse,642.00
Oct-2021,11962,Biffa Waste Services Limited,Refuse,787.20
Oct-2021,11963,Biffa Waste Services Limited,Refuse,754.80
Oct-2021,11964,Biffa Waste Services Limited,Refuse,590.40
Oct-2021,11965,Biffa Waste Services Limited,Refuse,513.60
Oct-2021,12112,FMG Support (RRRM) Ltd,Police Vehicle Recovery & Transport,"2,570.20"
Oct-2021,12167,Allstar Business Solutions Ltd,Vehicle Fuel,"1,034.15"
Oct-2021,12168,Allstar Business Solutions Ltd,Vehicle Fuel,704.10
Oct-2021,12169,Allstar Business Solutions Ltd,Vehicle Fuel,"67,331.47"
Oct-2021,12414,Bulloughs Cleaning Services Ltd,Cleaning Contract,"4,842.90"
Oct-2021,12415,Bulloughs Cleaning Services Ltd,Cleaning Contract,"14,175.30"
Oct-2021,12416,Bulloughs Cleaning Services Ltd,Cleaning Contract,648.11
Oct-2021,12418,Bulloughs Cleaning Services Ltd,Cleaning Contract,"5,756.68"
Oct-2021,12422,Bulloughs Cleaning Services Ltd,Cleaning Contract,"2,840.22"
Oct-2021,12423,Bulloughs Cleaning Services Ltd,Cleaning Contract,"4,342.29"
Oct-2021,12424,Bulloughs Cleaning Services Ltd,Cleaning Contract,"1,101.77"
Oct-2021,12425,Bulloughs Cleaning Services Ltd,Cleaning Contract,518.48
Oct-2021,12426,Bulloughs Cleaning Services Ltd,Cleaning Contract,648.10
Oct-2021,12429,Bulloughs Cleaning Services Ltd,Cleaning Contract,"2,962.27"
Oct-2021,12431,Bulloughs Cleaning Services Ltd,Cleaning Contract,"1,620.25"
Oct-2021,12615,REDACTED COMMERCIAL CONFIDENTIALITY,REDACTED COMMERCIAL CONFIDENTIALITY,696.00
Oct-2021,12939,Intruder Detection & Surveillance Ltd T/A IDS Fire & Security,Purchase of Security and Alarms (inc locks),"1,298.00"
Oct-2021,12964,Margrange Limited � In Administration,Planned Servicing Electrics,"1,765.00"
Oct-2021,13079,S M Flooring Ltd,Unplanned Building Maintenance Internal Maintenance,740.00
Oct-2021,13276,Margrange Limited � In Administration,Planned Servicing Electrics,"1,950.00"
Oct-2021,13277,W S Controls Ltd,Planned Servicing HVAC System,"2,550.00"
Oct-2021,13361,Burtonwood Generator & Switchgear Services Limited,Planned Servicing Generators/UPS,547.00
Oct-2021,13385,Signo Nanocare UK Ltd,Cleaning Materials,531.20
Oct-2021,13504,Aberswift De-Leading Specialists Limited,Unplanned Building Maintenance Internal Maintenance,"9,020.00"
Oct-2021,13640,Pioneer Foodservice,Canteen - Purchase of Food / Ingredients,582.07
Oct-2021,13641,Pioneer Foodservice,Canteen - Purchase of Food / Ingredients,"1,002.05"
Oct-2021,13642,Pioneer Foodservice,Canteen - Purchase of Food / Ingredients,665.74
Oct-2021,13643,Pioneer Foodservice,Canteen - Purchase of Food / Ingredients,742.73
Oct-2021,13645,Pioneer Foodservice,Canteen - Purchase of Food / Ingredients,830.45
Oct-2021,13739,Burtonwood Generator & Switchgear Services Limited,Unplanned Building Maintenance Electrics,"3,982.80"
Oct-2021,13740,Burtonwood Generator & Switchgear Services Limited,Unplanned Building Maintenance Electrics,"1,839.34"
Oct-2021,13744,A W Blake Ltd,Planned Survey Alterations & Improvements,"3,650.00"
Oct-2021,13756,FTS Fire and  Security Ltd,North West Ambulance Service - Estates Management Collaboration,520.64
Oct-2021,13757,K and S McKenzie  Ltd,Vehicle Adaptations - Capital,718.29
Oct-2021,13759,Certas Energy Limited,Oil,"10,143.94"
Oct-2021,13773,Arco Limited,Vehicle Adaptations - Capital,652.80
Oct-2021,13796,JJ Group (Contracting) Ltd,North West Ambulance Service - Estates Management Collaboration,"16,691.54"
Oct-2021,13797,A1 Lifts Limited,Unplanned Building Services Internal Other,825.00
Oct-2021,13804,BID Group Ltd,North West Ambulance Service - Estates Management Collaboration,510.00
Oct-2021,13816,West Cumbria Estates Management Limited,Window Cleaning,"1,638.90"
Oct-2021,13821,West Cumbria Estates Management Limited,Cleaning Contract,518.26
Oct-2021,13882,Jack Hodson Ltd,Vehicle Adaptations - Capital,"1,748.00"
Oct-2021,13883,Jack Hodson Ltd,Vehicle Adaptations - Capital,874.00
Oct-2021,13885,Jack Hodson Ltd,Vehicle Adaptations - Capital,600.00
Oct-2021,13889,Arnold Clark Automobiles Ltd,Vehicle Adaptations - Capital,621.98
Oct-2021,13890,Arnold Clark Automobiles Ltd,Vehicle Adaptations - Capital,-714.61
Oct-2021,13891,Arnold Clark Automobiles Ltd,Vehicle Adaptations - Capital,"1,466.83"
Oct-2021,13892,Arnold Clark Automobiles Ltd,Vehicle Adaptations - Capital,714.61
Oct-2021,13926,JJ Group (Contracting) Ltd,Planned Servicing Electrics,"1,440.00"
Oct-2021,13927,JJ Group (Contracting) Ltd,Planned Survey Electrics,"1,735.00"
Oct-2021,13929,City Electrical Factors Ltd,Refuse,"2,745.74"
Oct-2021,13938,CSS Engineering Solutions Limited,Vehicle Maintenance - Parts Purchase,"1,387.50"
Oct-2021,13939,Pointer Ltd,Unplanned Building Services Security & Security Equipment Maintenance,525.00
Oct-2021,13940,BID Group Ltd,Unplanned Building Services External Other,888.25
Oct-2021,13941,Cumbria Mechanical and Plumbing Ltd,Unplanned Building Services Boiler & Heating Plant,789.00
Oct-2021,13942,Cumbria Mechanical and Plumbing Ltd,Unplanned Building Services Boiler & Heating Plant,"1,989.14"
Oct-2021,13943,JJ Group (Contracting) Ltd,Unplanned Building Services Boiler & Heating Plant,595.00
Oct-2021,13944,JJ Group (Contracting) Ltd,Unplanned Building Services Electrics,694.00
Oct-2021,13945,BID Group Ltd,Unplanned Building Services External Other,553.50
Oct-2021,13947,Pointer Ltd,Unplanned Building Services HVAC System,525.00
Oct-2021,14002,Cumbria Mechanical and Plumbing Ltd,North West Ambulance Service - Estates Management Collaboration,"2,845.00"
Oct-2021,14005,Lambert-gill Ltd,North West Ambulance Service - Estates Management Collaboration,"5,844.80"
Oct-2021,14015,Burtonwood Generator & Switchgear Services Limited,Planned Survey Electrics,"3,048.90"
Oct-2021,14029,Castle Water Limited,Metered Water,"7,702.81"
Oct-2021,14030,Castle Water Limited,Sewerage & Environmental Services,"10,598.25"
Oct-2021,14031,Michael Thompson Limited,North West Ambulance Service - Estates Management Collaboration,540.00
Oct-2021,14037,JJ Group (Contracting) Ltd,Planned Survey Alterations & Improvements,980.00
Oct-2021,14042,Frederick Potts and Sons Ltd,Unplanned Building Services Security & Security Equipment Maintenance,900.53
Oct-2021,14047,Cumbria Mechanical and Plumbing Ltd,North West Ambulance Service - Estates Management Collaboration,565.82
Oct-2021,14073,R B Loveridge & Son Ltd,North West Ambulance Service - Estates Management Collaboration,714.10
Oct-2021,14074,R B Loveridge & Son Ltd,North West Ambulance Service - Estates Management Collaboration,540.22
Oct-2021,14075,R B Loveridge & Son Ltd,North West Ambulance Service - Estates Management Collaboration,903.21
Oct-2021,14078,BID Group Ltd,Unplanned Building Services External Other,"1,591.05"
Oct-2021,14082,Frederick Potts and Sons Ltd,Planned Survey External Maintenance,"1,485.35"
Oct-2021,14088,Total Gas & Power Limited,Gas,"5,507.79"
Oct-2021,14089,Total Gas & Power Limited,Climate Change Levy,627.50
Oct-2021,14097,Chubb Fire and Security Limited,Unplanned Building Services Security & Security Equipment Maintenance,900.86
Oct-2021,14105,Certas Energy Limited,Oil,"10,292.10"
Oct-2021,14106,Margrange Limited � In Administration,Unplanned Building Services Electrics,583.68
Oct-2021,14137,Carlisle Refrigeration Limited,Unplanned Building Services HVAC System,698.47
Oct-2021,14144,R B Loveridge & Son Ltd,Unplanned Building Services Environmental Services/Plumbing,691.12
Oct-2021,15990,Thompson Accident Repair Centre Ltd,Accident Damage (Below Insurance Threshold),"6,762.40"
Oct-2021,15994,Thompson Accident Repair Centre Ltd,Accident Damage (Below Insurance Threshold),"2,065.00"
Oct-2021,15996,Thompson Accident Repair Centre Ltd,Accident Damage (Below Insurance Threshold),"1,115.85"
Oct-2021,17702,Post Office Counters Ltd,Vehicle Road Fund Licenses,"1,170.00"
Oct-2021,12201,Insight Direct (UK) Ltd,Other Support Function Training,"3,415.83"
Oct-2021,12996,Shortridge Ltd,Detained Persons - Laundry,"1,036.75"
Oct-2021,13628,Charles Fellows Supplies Limited,Detained Persons - Clothing,"2,730.00"
Oct-2021,17856,Arnold Clark Automobiles Ltd,Vehicle Maintenance - Parts Purchase,521.00
Oct-2021,10589,REDACTED COMMERCIAL CONFIDENTIALITY,REDACTED COMMERCIAL CONFIDENTIALITY,"3,443.73"
Oct-2021,10641,Orchid Cellmark Ltd,Forensic Analysis - Serious Crime,939.14
Oct-2021,10642,Orchid Cellmark Ltd,Forensic Analysis - Serious Crime,"1,012.10"
Oct-2021,10643,Orchid Cellmark Ltd,Forensic Analysis - Volume Crime,"1,299.20"
Oct-2021,10644,Orchid Cellmark Ltd,Forensic Analysis - Over Prescribed Limit,877.25
Oct-2021,10645,Orchid Cellmark Ltd,Forensic Analysis - Serious Crime,-939.60
Oct-2021,10646,Orchid Cellmark Ltd,Forensic Analysis - Over Prescribed Limit,"2,466.45"
Oct-2021,10647,Orchid Cellmark Ltd,Forensic Analysis - Over Prescribed Limit,703.25
Oct-2021,10649,Orchid Cellmark Ltd,Forensic Analysis - Serious Crime,697.45
Oct-2021,10650,Orchid Cellmark Ltd,Forensic Analysis - Serious Crime,649.60
Oct-2021,10828,Key Forensic Services Ltd (Orange UK Holdings Ltd),Forensic Analysis - Volume Crime,"1,174.12"
Oct-2021,10829,Key Forensic Services Ltd (Orange UK Holdings Ltd),Forensic Analysis - Serious Crime,"6,021.15"
Oct-2021,10830,Key Forensic Services Ltd (Orange UK Holdings Ltd),Forensic Analysis - Over Prescribed Limit,"1,305.00"
Oct-2021,10831,Key Forensic Services Ltd (Orange UK Holdings Ltd),Forensic Analysis - Over Prescribed Limit,"1,805.25"
Oct-2021,10832,Key Forensic Services Ltd (Orange UK Holdings Ltd),Forensic Analysis - Over Prescribed Limit,"1,283.25"
Oct-2021,10833,Key Forensic Services Ltd (Orange UK Holdings Ltd),Forensic Analysis - Serious Crime,961.95
Oct-2021,10835,Key Forensic Services Ltd (Orange UK Holdings Ltd),Forensic Analysis - Over Prescribed Limit,"2,059.00"
Oct-2021,10836,Key Forensic Services Ltd (Orange UK Holdings Ltd),Forensic Analysis - Over Prescribed Limit,"2,805.75"
Oct-2021,10837,Key Forensic Services Ltd (Orange UK Holdings Ltd),Forensic Analysis - Over Prescribed Limit,"1,340.53"
Oct-2021,10838,Key Forensic Services Ltd (Orange UK Holdings Ltd),Forensic Analysis - Serious Crime,696.00
Oct-2021,12761,United Kingdom Accreditation Service,Consultants Fees - Other,"17,613.00"
Oct-2021,13529,Police and Crime Commissioner for Lancashire,Other Collaboration Payments,"10,731.00"
Oct-2021,13597,United Kingdom Accreditation Service,Consultants Fees - Other,"4,689.50"
Oct-2021,13741,West Technology Systems Ltd,CSI Consumables,507.00
Oct-2021,13813,Wex Photo Video,Photographic & Imaging,738.50
Oct-2021,12678,Comensura Ltd,Agency Staff,711.75
Oct-2021,12682,Comensura Ltd,Agency Staff,633.75
Oct-2021,12683,Comensura Ltd,Agency Staff,702.00
Oct-2021,12684,Comensura Ltd,Agency Staff,624.00
Oct-2021,12685,Comensura Ltd,Agency Staff,624.00
Oct-2021,13833,Behavioural Measures Ltd,Other Operational Training,"5,000.00"
Oct-2021,10189,SCC (Specialist Computer Centre),Computer Software - Maintenance,"15,937.18"
Oct-2021,10227,Softcat PLC,Computer Software - Maintenance,"32,844.00"
Oct-2021,10232,Insight Direct (UK) Ltd,Networks Private Circuits,"7,953.80"
Oct-2021,11238,Stone Computers Ltd,Computer Hardware - Purchase,"2,092.80"
Oct-2021,11313,GPD Installation Services Ltd,Radio / Airwave Equipment - Purchases,"5,445.00"
Oct-2021,11527,Specialised Equipment Cleaning,Computer Hardware - Maintenance,586.50
Oct-2021,12564,TalkTalk,Telephone Charges - Landlines,"3,075.08"
Oct-2021,12731,Stone Computers Ltd,Computer Hardware - Purchase,"1,244.72"
Oct-2021,12741,MHR International UK LTD,Consultants Fees - ICT,"1,348.47"
Oct-2021,12815,Vodafone Limited,Networks Private Circuits,"1,776.00"
Oct-2021,13041,Xerox UK Ltd,Computer & Printer Consumables,637.02
Oct-2021,13090,EE Limited,Telephone Charges - Mobile Phones,"8,641.52"
Oct-2021,13250,Nevis Systems Ltd,Computer Software - Maintenance,"2,681.97"
Oct-2021,13345,SCC (Specialist Computer Centre),Consultants Fees - ICT,"5,843.30"
Oct-2021,13391,Stone Computers Ltd,Computer Hardware - Purchase,"6,797.50"
Oct-2021,13421,SCC (Specialist Computer Centre),Computer Software - Maintenance,"5,017.29"
Oct-2021,13422,SCC (Specialist Computer Centre),Computer Software - Maintenance,"1,900.05"
Oct-2021,13862,Stone Computers Ltd,Computer Hardware - Purchase,"3,435.00"
Oct-2021,13864,Corporate Project Solutions,Computer Hardware - Purchase,"32,625.00"
Oct-2021,13901,Stone Computers Ltd,Computer Hardware - Purchase,"14,885.00"
Oct-2021,13910,Axon Public Safety UK Limited,Operational Equipment - Audio / Video Equipment,"10,000.00"
Oct-2021,13911,Axon Public Safety UK Limited,Computer Software - Maintenance,"6,034.00"
Oct-2021,13913,Griffeye Technologies AB,Computer Software - Maintenance,"7,446.00"
Oct-2021,14003,NCC Group Security Services Limited,Computer Software - Maintenance,511.75
Oct-2021,14018,Avatu Ltd,Computer Hardware - Purchase,"1,058.00"
Oct-2021,14038,Computacenter UK Ltd,Computer Software - Maintenance,"11,947.33"
Oct-2021,10111,University of the West of Scotland,Leadership Training,560.00
Oct-2021,10442,Agiito Limited,Hotel Accommodation - Training,566.90
